Workbook

Sheet Info
E2: FCEC v. 1.0 - A Streamlined Sustainability Assessment Tool for high temperature fuel cells
C10: Objective: The aim of FCEC tool is to provide a simple tool to enable the simulation of inputs and calculation process for environmental impacts and economic analysis power-togas-to-power- (P2G2P) via high temperature fuel cells, an emerging technology. This version is adapted for High temperature Fuel Cells, although it could be used for any other energy system if inventory flows are properly identified.
C17: Investigated metrics: LCA-based indicators using LCA-ReCiPe 2016 method - Midpoint (Hierarchist), simplified Levelized Cost of Electricity (LCOE) in FC mode and simplified Levelized Cost of Fuel (LCOF) in electrolysis mode. The tool bridge the "language gap" between the environmental terminology used in LCAs and the engineering language of FC developers.
C48: Audience and purpose: The tool allow fuel cell producers, students and researchers in the field of FC production to provide a “rough first look” of LCA-based impacts and economics of High-Temperature Fuel Cells without engaging a commercial software, without overlooking the quality of results, and the scientific aspects of the problem.
C53: Outcomes: This model can serve as an important process development tool for pre-eleminary calculations at an early stage of a project or research-based teaching in Fuel Cells and sustainable energy education. The users have to enter some key data such as the material balance or the most important operating parameters for fuel cell power plants. With the help of the key parameter models for energy systems, any interested actor can carry out a simplified LCA and economic analysis within a few minutes. The results should not be considered a precise prediction, but rather an indicative simulation.
C58: Disclaimer: This Calculator has been designed based on literature studies to give sufficiently accurate calculations of life cycle inventory flows, environmental impacts and economic indexes. Nevertheless, the author/s does not guarantee that the contents are error-free or give no warranties as to its accuracy or correctness. Morover, cannot be held responsible for possible errors and abuse of the tool provided, neither for the results of applying these data in any case-study. Note that parts of this spreadsheet may need regular updating. For more sophisticated uses please refer to commercial softwares. Please send questions or feedback to: andi.mehmeti@uniparthenope.it
C65: Terms of use: The Authors of this tool grants you the right to download this TOOL free of charge for personal use or use within your company or organization. You may copy and redistribute the material in any medium or format or customize this TOOL with your personal information. If you remix, transform, or build upon the material, you must distribute your contributions under the same license as the original. You must give appropriate credit, provide a link to the license, and indicate if changes were made. You may not use the material for commercial purposes.
C70: This work is licensed under a Creative Commons Attribution-NonCommercial-ShareAlike 4.0 International License.
C72: Acknowledgments: This study has been accomplished with support from the Fuel Cells and Hydrogen Joint Undertaking in the framework of the project INNOSOFC (Development of innovative 50 kW SOFC system and related value chain, Grant Agreement 671403), BALANCE (Increasing penetration of renewable power, alternative fuels and grid flexibility by cross-vector electrochemical processes, Grant Agreement 731224) and EUFORIE (European Futures for Energy Efficiency, H2020 programme, call identifier H2020-EE-2014-2-RIA, topic EE-12-2014, Socio-economic research on energy efficiency). The views expressed here are those of the authors alone and do not necessarily reflect the views of the collaborators or the policies of the funding bodIes. and .
C77: Authors: Dr. Andi MEHMETI (andi.mehmeti@uniparthenope.it); Dr. Eng. Stephen J. McPHAIL (stephen.mcphail@enea.it); Professor Sergio ULGIATI (sergio.ulgiati@uniparthenope.it)
C79: Citation: Life cycle inventory data and metrics for high-temperature fuel cells: A streamlined decision-support tool and case study application. Energy, xxx, xxx-xxx.
C81: [Link]

Sheet Readme

Sheet 1- INPUTS
B1: DATA INPUT
C2: Key code
C3: Input - Drop-down boxes
C4: Input - User data
C5: Input data (Default values)
C6: Calculated values
C7: Not applicable in Fuel Cell or Electrolysis mode
B9: Data input | C9: Input data module
B10: General data
B11: FC technology studied | C11: SOFC PLANAR | D11: dimensionless
B12: Gross Electrical Capacity | C12: 0 | D12: kWe
B13: Total Installed Cost | C13: 0 | D13: €/kW
B14: =+IF(C11="ReSOFC","NOT APPLICABLE IN ELECTROLYSIS MODE","Thermal capacity") -> Thermal capacity | C14: =+(GrossElCapacity/Systemefficiency)*Thermalefficiency -> 0 | D14: kWth
B15: =++IF(C11="ReSOFC","NOT APPLICABLE IN ELECTROLYSIS MODE","System efficiency (LHV)") -> System efficiency (LHV) | C15: 0.6 | D15: decimal
B16: =+IF(C11="ReSOFC","NOT APPLICABLE IN ELECTROLYSIS MODE", "Thermal efficiency") -> Thermal efficiency | C16: 0.25 | D16: decimal
B17: Estimated lifetime of the operative system | C17: 0 | D17: yr
B18: Estimated lifetime of the stack | C18: 0 | D18: yr
B19: Estimated lifetime of the BoP | C19: 0 | D19: year
B20: Capacity Factor | C20: 0 | D20: dimensionless
B21: Expected number of operative hours per year of the operative system | C21: =CapacityFactor*8760 -> 0 | D21: hr/yr
B22: Land occupation | C22: 0 | D22: m²/kW
B23: Specific Weight of FC system | C23: 128 | D23: kg/kW
B24: Total Weight of FC sysetm | C24: =Weight_System*GrossElCapacity -> 0 | D24: kg
B25: Engine installation: transport, lorry >28t, fleet average | C25: 200 | D25: km
B26: Transport, van <3.5t | C26: 200 | D26: km
B27: Transport, lorry >16t, fleet average | C27: 200 | D27: km
B28: Transport, freight, rail/RER U | C28: 200 | D28: km
B29: Transport, transoceanic freight ship | C29: 200 | D29: km
B30: Transport, lorry >28t, fleet average | C30: 200 | D30: km
B31: Transport, barge | C31: 200 | D31: km
B32: Planning hours | C32: 600 | D32: hours
B33: Visits at study site | C33: 15 | D33: times
B34: Transport engineering: transport, passenger car | C34: 200 | D34: km
B35: Specific water requirement for manufacturing | C35: 1.22 | D35: kg/kg product
B36: Specific electricity requirement for planning and engineering | C36: 2 | D36: kWh/hr
B37: Specific heating | C37: 3.8 | D37: MJ/kg
B38: Fuel cell mode
B39: =+IF(C$11="ReSOFC","NOT APPLICABLE IN ELECTROLYSIS MODE","Type of fuel") -> Type of fuel | C39: NATURAL GAS | D39: dimensionless
B40: =+IF(C$11="ReSOFC","NOT APPLICABLE IN ELECTROLYSIS MODE","LHV of fuel") -> LHV of fuel | C40: 9.63 | D40: kWh/m³
B41: =+IF(C$11="ReSOFC","NOT APPLICABLE IN ELECTROLYSIS MODE","LHV of fuel") -> LHV of fuel | C41: 36.5 | D41: MJ/m³
B42: =+IF(C$11="ReSOFC","NOT APPLICABLE IN ELECTROLYSIS MODE","Density fuel") -> Density fuel | C42: =+IF(C$39="NATURAL GAS",Density_NG,Density_BG) -> 0.8 | D42: kg/m³
B43: =+IF(C$11="ReSOFC","NOT APPLICABLE IN ELECTROLYSIS MODE","Fuel cost") -> Fuel cost | C43: 0.018 | D43: €/kWh
B44: =+IF(C$11="ReSOFC","NOT APPLICABLE IN ELECTROLYSIS MODE","Carbon dioxide (CO₂)") -> Carbon dioxide (CO₂) | C44: 56 | D44: kg/MJ
B45: =+IF(C$11="ReSOFC","NOT APPLICABLE IN ELECTROLYSIS MODE","Carbon monoxide (CO)") -> Carbon monoxide (CO) | C45: 1.7e-06 | D45: kg/MJ
B46: =+IF(C$11="ReSOFC","NOT APPLICABLE IN ELECTROLYSIS MODE","Non-methane volatile organic compound (NMVOC)") -> Non-methane volatile organic compound (NMVOC) | C46: 7e-07 | D46: kg/MJ
B47: =+IF(C$11="ReSOFC","NOT APPLICABLE IN ELECTROLYSIS MODE","Nitrous oxide (NOx)") -> Nitrous oxide (NOx) | C47: 2e-06 | D47: kg/MJ
B48: =+IF(C$11="ReSOFC","NOT APPLICABLE IN ELECTROLYSIS MODE","Methane (CH₄)") -> Methane (CH₄) | C48: 4e-06 | D48: kg/MJ
B49: =+IF(C$11="ReSOFC","NOT APPLICABLE IN ELECTROLYSIS MODE","Fine particulate matter (PM2.5)") -> Fine particulate matter (PM2.5) | C49: 0 | D49: kg/MJ
B50: =+IF(C$11="ReSOFC","NOT APPLICABLE IN ELECTROLYSIS MODE","Sulfur dioxide (SO₂)") -> Sulfur dioxide (SO₂) | C50: 5.5e-07 | D50: kg/MJ
B51: =+IF(C$11="ReSOFC","NOT APPLICABLE IN ELECTROLYSIS MODE","Dinitrogen monoxide (N₂O)") -> Dinitrogen monoxide (N₂O) | C51: 0 | D51: kg/MJ
B52: =+IF(C$11="ReSOFC","NOT APPLICABLE IN ELECTROLYSIS MODE","Ambient temperature") -> Ambient temperature | C52: 20 | D52: °C
B53: =+IF(C$11="ReSOFC","NOT APPLICABLE IN ELECTROLYSIS MODE","Temperature of delivered heat") -> Temperature of delivered heat | C53: 90 | D53: °C
B54: =+IF(C$11="ReSOFC","NOT APPLICABLE IN ELECTROLYSIS MODE","Allocation method for fuel cell mode") -> Allocation method for fuel cell mode | C54: No allocation | D54: dimensionless
B55: =+IF(C$11="ReSOFC","NOT APPLICABLE IN ELECTROLYSIS MODE","Carnot factor (ɳCarnot)") -> Carnot factor (ɳCarnot) | C55: =1-((CF_CelsiustoKelvin+Amb_Temp)/(CF_CelsiustoKelvin+Heat_Temp)) -> 0.1927578136 | D55: dimensionless
B56: =+IF(C$11="ReSOFC","NOT APPLICABLE IN ELECTROLYSIS MODE","Electricity allocation factor") -> Electricity allocation factor | C56: =+IF(C54="No allocation",0,IF(C54="Allocation Exergy",(GrossElCapacity/(GrossElCapacity+(ThermalCapacity*CarnotFactor))),GrossElCapacity/(GrossElCapacity+ThermalCapacity))) -> 0 | D56: dimensionless
B57: =+IF(C$11="ReSOFC","NOT APPLICABLE IN ELECTROLYSIS MODE","Heat allocation factor") -> Heat allocation factor | C57: =IF(C54="No Allocation",0,1-ELALLF) -> 0 | D57: dimensionless
B58: =+IF(C$11="ReSOFC","NOT APPLICABLE IN ELECTROLYSIS MODE","Water consumption in FC operation") -> Water consumption in FC operation | C58: 0 | D58: kg/kWh
B59: =+IF(C$11="ReSOFC","NOT APPLICABLE IN ELECTROLYSIS MODE","Type of water") -> Type of water | C59: Water, ultrapure | D59: dimensionless
B60: Electrolysis mode
B61: =+IF(C11="ReSOFC","Fuel Plant Capacity","NOT APPLICABLE IN FUEL CELL MODE") -> NOT APPLICABLE IN FUEL CELL MODE | C61: 0 | D61: kg/day
B62: Heat Value of H₂ | C62: 33.3 | D62: kWh/kg
B63: =+IF(C11="ReSOFC","ReSOFC Energy Usage","NOT APPLICABLE IN FUEL CELL MODE") -> NOT APPLICABLE IN FUEL CELL MODE | C63: 0 | D63: kWh/kgH₂
B64: =+IF(C11="ReSOFC","Electricity unitary cost","NOT APPLICABLE IN FUEL CELL MODE") -> NOT APPLICABLE IN FUEL CELL MODE | C64: 0 | D64: €/kWh
B65: =+IF(C11="ReSOFC","ReSOFC Heat Usage","NOT APPLICABLE IN FUEL CELL MODE") -> NOT APPLICABLE IN FUEL CELL MODE | C65: 0 | D65: kWh/kgH₂
B66: =+IF(C11="ReSOFC","ReSOFC Origin of heat","NOT APPLICABLE IN FUEL CELL MODE") -> NOT APPLICABLE IN FUEL CELL MODE | C66: Heat, natural gas, allocation exergy, at micro gas turbine 100kWe | D66: dimensionless
B67: =+IF(C11="ReSOFC","Heat unitary cost","NOT APPLICABLE IN FUEL CELL MODE") -> NOT APPLICABLE IN FUEL CELL MODE | C67: 0 | D67: €/kWh
B68: =+IF(C11="ReSOFC","Water consumption","NOT APPLICABLE IN FUEL CELL MODE") -> NOT APPLICABLE IN FUEL CELL MODE | C68: 0 | D68: kg/kgH₂
B69: =+IF(C11="ReSOFC","Type of water","NOT APPLICABLE IN FUEL CELL MODE") -> NOT APPLICABLE IN FUEL CELL MODE | C69: Water, ultrapure | D69: dimensionless
B70: =+IF(C11="ReSOFC","Cost of water","NOT APPLICABLE IN FUEL CELL MODE") -> NOT APPLICABLE IN FUEL CELL MODE | C70: 0 | D70: €/kg
B71: =+IF(C11="ReSOFC","Hydrogen market price","NOT APPLICABLE IN FUEL CELL MODE") -> NOT APPLICABLE IN FUEL CELL MODE | C71: 0 | D71: €/kg
B72: =+IF(C11="ReSOFC","Oxygen production (co-product)","NOT APPLICABLE IN FUEL CELL MODE") -> NOT APPLICABLE IN FUEL CELL MODE | C72: 0 | D72: kg/kgH₂
B73: =+IF(C11="ReSOFC","Oxygen market price","NOT APPLICABLE IN FUEL CELL MODE") -> NOT APPLICABLE IN FUEL CELL MODE | C73: 0 | D73: €/kg
B74: =+IF(C11="ReSOFC","Allocation method for electrolysis mode","NOT APPLICABLE IN FUEL CELL MODE") -> NOT APPLICABLE IN FUEL CELL MODE | C74: No allocation | D74: dimensionless
B75: Allocation ration H₂ | C75: =+IF(C74="No allocation",0,H2MP/(H2MP+(Oxygen_Production*H2CPMP))) -> 0 | D75: dimensionless
B76: =+IF(C11="ReSOFC","ReSOFC Energy Usage, allocated","NOT APPLICABLE IN FUEL CELL MODE") -> NOT APPLICABLE IN FUEL CELL MODE | C76: =+IF(C74="No allocation",0,((LHVH2*(ReSOFCEl/(ReSOFCEl+ReSOFCHeat)))+((ReSOFCEl-(LHVH2*(ReSOFCEl/(ReSOFCEl+ReSOFCHeat))))*C75))) -> 0 | D76: kWh/kgH₂
B77: =+IF(C11="ReSOFC","ReSOFC Heat Usage, allocated","NOT APPLICABLE IN FUEL CELL MODE") -> NOT APPLICABLE IN FUEL CELL MODE | C77: =+IF(C74="No allocation",0,((LHVH2*(ReSOFCHeat/(ReSOFCEl+ReSOFCHeat)))+((ReSOFCHeat-(LHVH2*(ReSOFCHeat/(ReSOFCEl+ReSOFCHeat))))*C75))) -> 0 | D77: kWh/kgH₂
B78: =+IF(C11="ReSOFC","Fixed Operation and Maintenance Cost (O&M) cost", "NOT APPLICABLE IN FUEL CELL MODE") -> NOT APPLICABLE IN FUEL CELL MODE | C78: 0 | D78: dimensionless
B79: Electricity grid (Fuel cell + Electrolysis mode)
B80: Electricity Grid | C80: European average | D80: dimensionless
B81: Electricity, hard coal, at power plant | C81: 0 | D81: dimensionless
B82: Electricity, oil, at power plant | C82: 0 | D82: dimensionless
B83: Electricity, natural gas, at power plant | C83: 0 | D83: dimensionless
B84: Electricity, industrial gas, at power plant | C84: 0 | D84: dimensionless
B85: Electricity, at cogen ORC 1400kWth, wood | C85: 0 | D85: dimensionless
B86: Electricity, at cogen 6400kWth, wood | C86: 0 | D86: dimensionless
B87: Electricity, hydropower, at run-of-river power plant | C87: 0 | D87: dimensionless
B88: Electricity, hydropower, at reservoir power plant, non alpine regions | C88: 0 | D88: dimensionless
B89: Electricity, hydropower, at reservoir power plant, alpine region | C89: 0 | D89: dimensionless
B90: Electricity, natural gas, at micro gas turbine 100kWe | C90: 0 | D90: dimensionless
B91: Electricity, biogas, at micro gas turbine 100kWe | C91: 0 | D91: dimensionless
B92: Electricity, at cogen with biogas engine | C92: 0 | D92: dimensionless
B93: Electricity, at Mini CHP plant | C93: 0 | D93: dimensionless
B94: Electricity, at cogen 160kWe Jakobsberg | C94: 0 | D94: dimensionless
B95: Electricity, at wind power plant | C95: 0 | D95: dimensionless
B96: Electricity, production mix photovoltaic, at plant | C96: 0 | D96: dimensionless
B97: Electricity, nuclear, at power plant | C97: 0 | D97: dimensionless
B98: Equipment needed
B99: Infrastructure needed | C99: =1/(Product_Generated*Stack_Lifetime) ->  | D99: =+IF(C$11="ReSOFC","piece/kgH₂","piece/kWh") -> piece/kWh
B100: Infrastructure needed | C100: =1/(Product_Generated*BoP_Lifetime) ->  | D100: =+IF(C$11="ReSOFC","piece/kgH₂","piece/kWh") -> piece/kWh
B101: BoP regression coefficents
B102: Scaling factor - Reformer | C102: 0.5 | D102: dimensionless
B103: Scaling factor - Air Blower | C103: 0.5 | D103: dimensionless
B104: Scaling factor - Fuel blower | C104: 0.5 | D104: dimensionless
B105: Scaling factor - Catalytic combustor | C105: 0.5 | D105: dimensionless
B106: Scaling factor - Heat exchangers | C106: 0.5 | D106: dimensionless
B107: Scaling factor - Heat recovery steam generator (HRSG) | C107: 0.5 | D107: dimensionless
B108: Scaling factor - Water pump | C108: 0.5 | D108: dimensionless
B109: FC START-UP
B110: Time for start up | C110: 0 | D110: days
B111: Process water | C111: 0 | D111: kg/kWh
B112: Electricity | C112: 0 | D112: kWh/startup
B113: FC MAINTENANCE
B114: Reinforcing steel | C114: 0.025 | D114: %/year
B115: Chromium steel | C115: 0.025 | D115: %/year
B116: Deionized water consumption | C116: 0 | D116: kg/kWh
B117: Stack Fuel cell | C117: =1/Stack_Lifetime ->  | D117: p/year

Sheet 2-LCI
B1: LIFE CYCLE INVENTORY CALCULATION (LCI)
D2: Key code
D3: Drop-down boxes
D4: User Input data
D5: Input data (Default values)
D6: Calculated values
D7: Not applicable in Fuel Cell or Electrolysis mode
D8: Values equal to zero
B9: Technology | D9: =+'1- INPUTS'!C11 -> SOFC PLANAR
B10: Material/Process input | D10: LCI data module
B11: Component | C11: Material/Process input | D11: Fuel cell manufacturing | E11: Your input | F11: Unit
B12: Stack manufacturing | C12: =+DB!C61 -> LaMnO₃ powder | D12: =+IF(E12>0,E12,DB!G61) -> 0 | E12: 0 | F12: kg
C13: =+DB!C62 -> LaCrO₃ powder | D13: =+IF(E13>0,E13,DB!G62) -> 0 | E13: 0 | F13: kg
C14: =+DB!C63 -> Zirconium chloride powder | D14: =+IF(E14>0,E14,DB!G63) -> 0 | E14: 0 | F14: kg
C15: =+DB!C64 -> Yttrium chloride powder | D15: =+IF(E15>0,E15,DB!G64) -> 0 | E15: 0 | F15: kg
C16: =+DB!C65 -> Zirconium oxide powder | D16: =+IF(E16>0,E16,DB!G65) -> 0 | E16: 0 | F16: kg
C17: =+DB!C66 -> YSZ 3% | D17: =+IF(E17>0,E17,DB!G66) -> 0 | E17: 0 | F17: kg
C18: =+DB!C67 -> Lanthanum Strontium Manganite (LSM) | D18: =+IF(E18>0,E18,DB!G67) -> 0 | E18: 0 | F18: kg
C19: =+DB!C68 -> Nickel Oxide | D19: =+IF(E19>0,E19,DB!G68) -> 0 | E19: 0 | F19: kg
C20: =+DB!C69 -> Nickel | D20: =+IF(E20>0,E20,DB!G69) -> 0 | E20: 0 | F20: kg
C21: =+DB!C70 -> Ethanol | D21: =+IF(E21>0,E21,DB!G70) -> 0 | E21: 0 | F21: kg
C22: =+DB!C71 -> Polyvinylbutyral (PVB) | D22: =+IF(E22>0,E22,DB!G71) -> 0 | E22: 0 | F22: kg
C23: =+DB!C72 -> Polyethyleneglycol | D23: =+IF(E23>0,E23,DB!G72) -> 0 | E23: 0 | F23: kg
C24: =+DB!C73 -> Dibutylphthalat | D24: =+IF(E24>0,E24,DB!G73) -> 0 | E24: 0 | F24: kg
C25: =+DB!C74 -> Tetrachloroethylene | D25: =+IF(E25>0,E25,DB!G74) -> 0 | E25: 0 | F25: kg
C26: =+DB!C75 -> Trichloroethylene | D26: =+IF(E26>0,E26,DB!G75) -> 0 | E26: 0 | F26: kg
C27: =+DB!C76 -> Isobutanol | D27: =+IF(E27>0,E27,DB!G76) -> 0 | E27: 0 | F27: kg
C28: =+DB!C77 -> Methyl ethyl ketone (solvent) | D28: =+IF(E28>0,E28,DB!G77) -> 0 | E28: 0 | F28: kg
C29: =+DB!C78 -> Benzyl alcohol (solvent) | D29: =+IF(E29>0,E29,DB!G78) -> 0 | E29: 0 | F29: kg
C30: =+DB!C79 -> Modified starch (binder) | D30: =+IF(E30>0,E30,DB!G79) -> 0 | E30: 0 | F30: kg
C31: =+DB!C80 -> Ethylene glycol (binder) | D31: =+IF(E31>0,E31,DB!G80) -> 0 | E31: 0 | F31: kg
C32: =+DB!C81 -> Water, deionised | D32: =+IF(E32>0,E32,DB!G81) -> 0 | E32: 0 | F32: kg
C33: =+DB!C82 -> Nitric acid, for powder preparation | D33: =+IF(E33>0,E33,DB!G82) -> 0 | E33: 0 | F33: kg
C34: =+DB!C83 -> Chlorine, for carbochlorination of oxide powder | D34: =+IF(E34>0,E34,DB!G83) -> 0 | E34: 0 | F34: kg
C35: =+DB!C84 -> Petroleum coke, for carbochlorination of oxide powder | D35: =+IF(E35>0,E35,DB!G84) -> 0 | E35: 0 | F35: kg
C36: =+DB!C85 -> Urea, as N, for SCR emission treatment | D36: =+IF(E36>0,E36,DB!G85) -> 0 | E36: 0 | F36: kg
C37: =+DB!C86 -> Chromium | D37: =+IF(E37>0,E37,DB!G86) -> 0 | E37: 0 | F37: kg
C38: =+DB!C87 -> Lithium aluminate (LiAlO₂) | D38: =+IF(E38>0,E38,DB!G87) -> 0 | E38: 0 | F38: kg
C39: =+DB!C88 -> Lithium carbonate (Li₂CO₃) | D39: =+IF(E39>0,E39,DB!G88) -> 0 | E39: 0 | F39: kg
C40: =+DB!C89 -> Sodium Carbonate(Na₂CO₃) | D40: =+IF(E40>0,E40,DB!G89) -> 0 | E40: 0 | F40: kg
C41: =+DB!C90 -> Reinforcing steel, at plant | D41: =+IF(E41>0,E41,DB!G90) -> 0 | E41: 0 | F41: kg
C42: =+DB!C91 -> Sheet rooling steel | D42: =+IF(E42>0,E42,DB!G91) -> 0 | E42: 0 | F42: kg
C43: =+DB!C92 -> Chromium steel 18/8, at plant | D43: =+IF(E43>0,E43,DB!G92) -> 0 | E43: 0 | F43: kg
C44: =+DB!C93 -> Sheet rolling, chromium steel | D44: =+IF(E44>0,E44,DB!G93) -> 0 | E44: 0 | F44: kg
C45: =+DB!C94 -> Heating production site: natural gas, at industrial furnace >100kW | D45: =+IF(E45>0,E45,DB!G94) -> 0 | E45: 0 | F45: MJ
C46: =+DB!C95 -> Electricity, medium voltage, production UCTE, at grid | D46: =+IF(E46>0,E46,DB!G95) -> 0 | E46: 0 | F46: kWh
C47: =+DB!C96 -> Aluminium oxide, at plant | D47: =+IF(E47>0,E47,DB!G96) -> 0 | E47: 0 | F47: kg
C48: =+DB!C97 -> Alumina-silica insulation material | D48: =+IF(E48>0,E48,DB!G97) -> 0 | E48: 0 | F48: kg
C49: =+DB!C98 -> Iron-nickel-chromium alloy | D49: =+IF(E49>0,E49,DB!G98) -> 0 | E49: 0 | F49: kg
C50: =+DB!C99 -> Copper | D50: =+IF(E50>0,E50,DB!G99) -> 0 | E50: 0 | F50: kg
C51: =+DB!C100 -> Polyethylene, HDPE, granulate | D51: =+IF(E51>0,E51,DB!G100) -> 0 | E51: 0 | F51: kg
C52: =+DB!C101 -> Polyethylene, LDPE, granulate | D52: =+IF(E52>0,E52,DB!G101) -> 0 | E52: 0 | F52: kg
C53: =+DB!C102 -> Polypropylene, PP, granulate | D53: =+IF(E53>0,E53,DB!G102) -> 0 | E53: 0 | F53: kg
C54: =+DB!C103 -> Polyvinylidenchloride, granulate | D54: =+IF(E54>0,E54,DB!G103) -> 0 | E54: 0 | F54: kg
C55: =+DB!C104 -> Synthetic rubber | D55: =+IF(E55>0,E55,DB!G104) -> 0 | E55: 0 | F55: kg
C56: =+DB!C105 -> Brass | D56: =+IF(E56>0,E56,DB!G105) -> 0 | E56: 0 | F56: kg
C57: =+DB!C106 -> Zinc catalyst for desulphuriser | D57: =+IF(E57>0,E57,DB!G106) -> 0 | E57: 0 | F57: kg
C58: =+DB!C107 -> Transport, van <3.5t | D58: =+IF(E58>0,E58,DB!G107) -> 0 | E58: 0 | F58: tkm
C59: =+DB!C108 -> Transport, lorry >16t, fleet average | D59: =+IF(E59>0,E59,DB!G108) -> 0 | E59: 0 | F59: tkm
C60: =+DB!C109 -> Transport, freight, rail | D60: =+IF(E60>0,E60,DB!G109) -> 0 | E60: 0 | F60: tkm
C61: =+DB!C110 -> Transport, transoceanic freight ship | D61: =+IF(E61>0,E61,DB!G110) -> 0 | E61: 0 | F61: tkm
C62: =+DB!C111 -> Transport, lorry >28t, fleet average | D62: =+IF(E62>0,E62,DB!G111) -> 0 | E62: 0 | F62: tkm
C63: =+DB!C112 -> Transport, barge | D63: =+IF(E63>0,E63,DB!G112) -> 0 | E63: 0 | F63: tkm
B64: Reformer | C64: Chromium steel 18/8 | D64: =+IF(E64>0,E64,IF(SFRef=0,0,DB!F120*('1- INPUTS'!C$12)^SFRef)) -> 0 | E64: 0 | F64: kg
C65: Sheet rolling, chromium steel | D65: =+IF(E65>0,E65,IF(SFRef=0,0,DB!F121*('1- INPUTS'!C$12)^SFRef)) -> 0 | E65: 0 | F65: kg
C66: Chromium alloy | D66: =+IF(E66>0,E66,IF(SFRef=0,0,DB!F122*('1- INPUTS'!C$12)^SFRef)) -> 0 | E66: 0 | F66: kg
C67: Insulation | D67: =+IF(E67>0,E67,IF(SFRef=0,0,DB!F123*('1- INPUTS'!C$12)^SFRef)) -> 0 | E67: 0 | F67: kg
C68: Nickel Oxide | D68: =+IF(E68>0,E68,IF(SFRef=0,0,DB!F124*('1- INPUTS'!C$12)^SFRef)) -> 0 | E68: 0 | F68: kg
C69: Lanthanum Oxide | D69: =+IF(E69>0,E69,IF(SFRef=0,0,DB!F125*('1- INPUTS'!C$12)^SFRef)) -> 0 | E69: 0 | F69: kg
C70: Aluminium Oxide | D70: =+IF(E70>0,E70,IF(SFRef=0,0,DB!F126*('1- INPUTS'!C$12)^SFRef)) -> 0 | E70: 0 | F70: kg
C71: Zinc Oxide | D71: =+IF(E71>0,E71,IF(SFRef=0,0,DB!F127*('1- INPUTS'!C$12)^SFRef)) -> 0 | E71: 0 | F71: kg
C72: Electricity, medium voltage, production UCTE, at grid | D72: =+IF(E72>0,E72,IF(SFRef=0,0,DB!F128*('1- INPUTS'!C$12)^SFRef)) -> 0 | E72: 0 | F72: kWh
B73: Power conditioner | C73: Inverter units | D73: =+IF(E73>0,E73,GrossElCapacity/2.5) -> 0 | E73: 0 | F73: units
B74: Air Blower | C74: Reinforcing steel | D74: =+IF(E74>0,E74,IF(SFAB=0,0,DB!F133*(GrossElCapacity/100)^SFAB)) -> 0 | E74: 0 | F74: kg
C75: Sheet rolling, steel | D75: =+IF(E75>0,E75,IF(SFAB=0,0,DB!F134*(GrossElCapacity/100)^SFAB)) -> 0 | E75: 0 | F75: kg
C76: Al-alloy | D76: =+IF(E76>0,E76,IF(SFAB=0,0,DB!F135*(GrossElCapacity/100)^SFAB)) -> 0 | E76: 0 | F76: kg
C77: Copper | D77: =+IF(E77>0,E77,IF(SFAB=0,0,DB!F136*(GrossElCapacity/100)^SFAB)) -> 0 | E77: 0 | F77: kg
B78: Fuel Blower | C78: Reinforcing Steel | D78: =+IF(E78>0,E78,IF(SFFB=0,0,DB!F139*(GrossElCapacity/100)^SFFB)) -> 0 | E78: 0 | F78: kg
C79: Sheet rolling, steel | D79: =+IF(E79>0,E79,IF(SFFB=0,0,DB!F140*(GrossElCapacity/100)^SFFB)) -> 0 | E79: 0 | F79: kg
C80: Aluminium alloy | D80: =+IF(E80>0,E80,IF(SFFB=0,0,DB!F141*(GrossElCapacity/100)^SFFB)) -> 0 | E80: 0 | F80: kg
C81: Copper | D81: =+IF(E81>0,E81,IF(SFFB=0,0,DB!F142*(GrossElCapacity/100)^SFFB)) -> 0 | E81: 0 | F81: kg
B82: Catalytic combustor | C82: Aluminium Oxide | D82: =+IF(E82>0,E82,IF(SFCC=0,0,DB!F145*(GrossElCapacity/100)^SFCC)) -> 0 | E82: 0 | F82: kg
C83: Platinum | D83: =+IF(E83>0,E83,IF(SFCC=0,0,DB!F146*(GrossElCapacity/100)^SFCC)) -> 0 | E83: 0 | F83: kg
C84: Palladium | D84: =+IF(E84>0,E84,IF(SFCC=0,0,DB!F147*(GrossElCapacity/100)^SFCC)) -> 0 | E84: 0 | F84: kg
C85: Reactor tubes (Chromium steel 18/8) | D85: =+IF(E85>0,E85,IF(SFCC=0,0,DB!F148*(GrossElCapacity/100)^SFCC)) -> 0 | E85: 0 | F85: kg
C86: Sheet rolling, chromium steel | D86: =+IF(E86>0,E86,IF(SFCC=0,0,DB!F149*(GrossElCapacity/100)^SFCC)) -> 0 | E86: 0 | F86: kg
B87: Heat exchangers | C87: Chromium steel 18/8 | D87: =+IF(E87>0,E87,IF(SFHE=0,0,DB!F152*(GrossElCapacity/100)^SFHE)) -> 0 | E87: 0 | F87: kg
C88: Sheet rolling, chromium steel | D88: =+IF(E88>0,E88,IF(SFHE=0,0,DB!F153*(GrossElCapacity/100)^SFHE)) -> 0 | E88: 0 | F88: kg
C89: Cr alloy | D89: =+IF(E89>0,E89,IF(SFHE=0,0,DB!F154*(GrossElCapacity/100)^SFHE)) -> 0 | E89: 0 | F89: kg
B90: Heat recovery steam generator (HRSG) | C90: Chromium steel 18/8 | D90: =+IF(E90>0,E90,IF(SFHRSG=0,0,DB!F157*(GrossElCapacity/100)^SFHRSG)) -> 0 | E90: 0 | F90: kg
C91: Sheet rolling, chromium steel | D91: =+IF(E91>0,E91,IF(SFHRSG=0,0,DB!F158*(GrossElCapacity/100)^SFHRSG)) -> 0 | E91: 0 | F91: kg
B92: Water Pump | C92: Reinforcing steel | D92: =+IF(E92>0,E92,IF(SFWP=0,0,DB!F161*(GrossElCapacity/100)^SFWP)) -> 0 | E92: 0 | F92: kg
C93: Sheet rolling, steel | D93: =+IF(E93>0,E93,IF(SFWP=0,0,DB!F162*(GrossElCapacity/100)^SFWP)) -> 0 | E93: 0 | F93: kg
C94: Copper | D94: =+IF(E94>0,E94,IF(SFWP=0,0,DB!F163*(GrossElCapacity/100)^SFWP)) -> 0 | E94: 0 | F94: kg
B95: Additional infrastructure | C95: Water for manufacturing (unspecified natural origin) | D95: =+Weight_System*SpecificWaterReq -> 156.16 | E95: 0 | F95: kg
C96: Electricity engineering services: low voltage, at grid | D96: =+IF(E96>0,E96,Planning_Hours*SpecElectricityReq) -> 1200 | E96: 0 | F96: kWh
C97: Transport engineering: transport, passenger car | D97: =+'1- INPUTS'!C34*'1- INPUTS'!C33 -> 3000 | E97: 0 | F97: pkm
B98: Component | C98: Material/Process input | D98: Installation and start-up of the assembled fuel cell system | E98: Your input | F98: Unit
B99: Installation and start up of the SOFC system | C99: Engine installation: transport, lorry >28t, fleet av. | D99: =+IF(E99>0,E99,Total_Weight*'1- INPUTS'!C25*0.001) -> 0 | E99: 0 | F99: tkm
C100: Fuel for start up | D100: =++IF(E100>0,E100,(GrossElCapacity/(Systemefficiency*LHVFuel))*Startuptime*24*LHVFuel_2/(Product_Generated)) ->  | E100: 0 | F100: MJ/kWh
C101: Process water | D101: =++IF(E101>0,E101,'1- INPUTS'!C111) -> 0 | E101: 0 | F101: kg
C102: Electricity | D102: =++IF(E102>0,E102,'1- INPUTS'!C111) -> 0 | E102: 0 | F102: kg
B103: Component | C103: Material/Process input | D103: Fuel cell operation & Maintenance | E103: Your input | F103: Unit
B104: FC operation | C104: =+IF('1- INPUTS'!C$11="ReSOFC","Hydrogen production","Electricity Production") -> Electricity Production | D104: =+IF(E104>0,E104,IF('1- INPUTS'!C11="ReSOFC",H2capacity*CapacityFactor*365,GrossElCapacity*OpHours)) -> 0 | E104: 0 | F104: =+IF('1- INPUTS'!C$11="ReSOFC","kgH₂/year","kWh/yr") -> kWh/yr
C105: =++IF('1- INPUTS'!C$11="ReSOFC","Oxygen production","Heat Production") -> Heat Production | D105: =+IF(E105>0,E105,IF('1- INPUTS'!C$11="ReSOFC",Oxygen_Production*Product_Generated,ThermalCapacity*OpHours)) -> 0 | E105: 0 | F105: =++IF('1- INPUTS'!C$11="ReSOFC","kgO₂/year","kWhth/yr") -> kWhth/yr
C106: =+IF('1- INPUTS'!C$11="ReSOFC","Electricity consumption","Fuel Consumption") -> Fuel Consumption | D106: =+IF(E106>0,E106,IF('1- INPUTS'!C$11="ReSOFC",ReSOFCEl*D$104,(GrossElCapacity/(Systemefficiency*LHVFuel)*OpHours))) -> 0 | E106: 0 | F106: =+IF('1- INPUTS'!C$11="ReSOFC","kWh/yr","Nm³/yr") -> Nm³/yr
C107: =+IF('1- INPUTS'!C$11="ReSOFC","Heat consumption","N/A IN FUEL CELL MODE") -> N/A IN FUEL CELL MODE | D107: =+IF(E107>0,E107,IF('1- INPUTS'!C$11="ReSOFC",ReSOFCHeat*Product_Generated)) -> FALSE | E107: 0 | F107: =+IF('1- INPUTS'!C$11="ReSOFC","kWh/yr","N/A") -> N/A
C108: Water consumption | D108: =+IF(E108>0,0,IF('1- INPUTS'!C$11="ReSOFC",ReSOFCH2O*Product_Generated,FCH2O*Product_Generated)) -> 0 | E108: 0 | F108: kg/year
C109: =+IF('1- INPUTS'!C$11="ReSOFC","N/A IN ELECTROLYSIS MODE",'1- INPUTS'!B44) -> Carbon dioxide (CO₂) | D109: =+IF(E109>0,E109,IF('1- INPUTS'!C$11="ReSOFC","0",FuelCO2*MJ_kWh*(1/Systemefficiency))) -> 0.336 | E109: 0 | F109: kg/kWh
C110: =+IF('1- INPUTS'!C$11="ReSOFC","N/A IN ELECTROLYSIS MODE",'1- INPUTS'!B45) -> Carbon monoxide (CO) | D110: =+IF(E110>0,E110,IF('1- INPUTS'!C$11="ReSOFC","0",FuelCO*MJ_kWh*(1/Systemefficiency))) -> 1.02e-08 | E110: 0 | F110: kg/kWh
C111: =+IF('1- INPUTS'!C$11="ReSOFC","N/A IN ELECTROLYSIS MODE",'1- INPUTS'!B46) -> Non-methane volatile organic compound (NMVOC) | D111: =+IF(E111>0,E111,IF('1- INPUTS'!C$11="ReSOFC","0",FuelNMVOC*MJ_kWh*(1/Systemefficiency))) -> 4.2e-09 | E111: 0 | F111: kg/kWh
C112: =+IF('1- INPUTS'!C$11="ReSOFC","N/A IN ELECTROLYSIS MODE",'1- INPUTS'!B47) -> Nitrous oxide (NOx) | D112: =+IF(E112>0,E112,IF('1- INPUTS'!C$11="ReSOFC","0",FuelNOx*MJ_kWh*(1/Systemefficiency))) -> 1.2e-08 | E112: 0 | F112: kg/kWh
C113: =+IF('1- INPUTS'!C$11="ReSOFC","N/A IN ELECTROLYSIS MODE",'1- INPUTS'!B48) -> Methane (CH₄) | D113: =+IF(E113>0,E113,IF('1- INPUTS'!C$11="ReSOFC","0",FuelCH4*MJ_kWh*(1/Systemefficiency))) -> 2.4e-08 | E113: 0 | F113: kg/kWh
C114: =+IF('1- INPUTS'!C$11="ReSOFC","N/A IN ELECTROLYSIS MODE",'1- INPUTS'!B49) -> Fine particulate matter (PM2.5) | D114: =+IF(E114>0,E114,IF('1- INPUTS'!C$11="ReSOFC","0",FuelPM2.5*MJ_kWh*(1/Systemefficiency))) -> 0 | E114: 0 | F114: kg/kWh
C115: =+IF('1- INPUTS'!C$11="ReSOFC","N/A IN ELECTROLYSIS MODE",'1- INPUTS'!B50) -> Sulfur dioxide (SO₂) | D115: =+IF(E115>0,E115,IF('1- INPUTS'!C$11="ReSOFC","0",FuelSO2*MJ_kWh*(1/Systemefficiency))) -> 3.3e-09 | E115: 0 | F115: kg/kWh
C116: =+IF('1- INPUTS'!C$11="ReSOFC","N/A IN ELECTROLYSIS MODE",'1- INPUTS'!B51) -> Dinitrogen monoxide (N₂O) | D116: =+IF(E116>0,E116,IF('1- INPUTS'!C$11="ReSOFC","0",FuelN2O*MJ_kWh*(1/Systemefficiency))) -> 0 | E116: 0 | F116: kg/kWh
B117: FC maintenance | C117: Reinforcing steel | D117: =+IF(E117>0,E117,('1- INPUTS'!C114*(D74+D78+D92))) -> 0 | E117: 0 | F117: kg/yr
C118: Sheet rolling, steel | D118: =+D117 -> 0 | E118: 0 | F118: kg/yr
C119: Chromium steel 18/8 | D119: =+IF(E119>0,E119,('1- INPUTS'!C114*(D64+D85+D87+D90))) -> 0 | E119: 0 | F119: kg/yr
C120: Sheet rolling, chromium steel | D120: =+D119 -> 0 | E120: 0 | F120: kg/yr
C121: Water consumption | D121: =+IF(E121>0,E121,'1- INPUTS'!C116) -> 0 | E121: 0 | F121: kg/kWh
C122: Stack Fuel cell | D122: =IF(E122>0,E122,1/Stack_Lifetime) ->  | E122: 0 | F122: p/yr
B123: Component | C123: Material/Process input | D123: Fuel cell Disposal | F123: Unit
B124: FC disposal | C124: Disposal, building, reinforcement steel, to final disposal | D124: 0 | F124: kg
C125: Disposal, inert waste, 5% water, to inert material landfill | D125: 0 | F125: kg
C126: Disposal, inert material, 0% water, to sanitary landfill | D126: 0 | F126: kg
C127: Disposal, copper, 0% water, to municipal incineration | D127: 0 | F127: kg
C128: Disposal, aluminium, 0% water, to sanitary landfill | D128: 0 | F128: kg
C129: Disposal, plastics, mixture, 15.3% water, to sanitary landfill | D129: 0 | F129: kg

Sheet 3-LCIA
C1: LIFE CYCLE IMPACT ASSESSMENT (LCIA) - LCA ReCiPe 2016 (Hierarchist perspective)
E56: GWP | F56: ODP | G56: IRP | H56: HOFP | I56: PMPF | J56: EOFP | K56: TAP | L56: FEP | M56: TETP | N56: FETP | O56: METP | P56: HTPc | Q56: HTPnc | R56: LOP | S56: SOP | T56: FFP | U56: WCP | V56: HH | W56: EQ | X56: RA
D57: Abbreviations | E57: Global warming | F57: Stratospheric ozone depletion | G57: Ionizing radiation | H57: Ozone formation, Human health | I57: Fine particulate matter formation | J57: Ozone formation, Terrestrial ecosystems | K57: Terrestrial acidification | L57: Freshwater eutrophication | M57: Terrestrial ecotoxicity | N57: Freshwater ecotoxicity | O57: Marine ecotoxicity | P57: Human carcinogenic toxicity | Q57: Human non-carcinogenic toxicity | R57: Land use | S57: Mineral resource scarcity | T57: Fossil resource scarcity | U57: Water consumption | V57: Human Health | W57: Ecosystem quality | X57: Resource availability
C59: LIFE CYCLE IMPACT ASSESSMENT (LCIA) - PRODUCT LIFE CYCLE, ALLOCATED
C61: 1 | D61: LCIA product life cycle | E61: Midpoint | V61: Endpoint
D62: Stage/Unit | E62: GWP | F62: ODP | G62: IRP | H62: HOFP | I62: PMPF | J62: EOFP | K62: TAP | L62: FEP | M62: TETP | N62: FETP | O62: METP | P62: HTPc | Q62: HTPnc | R62: LOP | S62: SOP | T62: FFP | U62: WCP | V62: HH | W62: EQ | X62: RA
E63: kg CO₂ eq | F63: kg CFC11 eq | G63: kBq Co-60 eq | H63: kg NOx eq | I63: kg PM2.5 eq | J63: kg NOx eq | K63: kg SO₂ eq | L63: kg P eq | M63: kg 1,4-DCB eq | N63: kg 1,4-DCB eq | O63: kg 1,4-DCB eq | P63: kg 1,4-DCB eq | Q63: kg 1,4-DCB eq | R63: m2a crop eq | S63: kg Cu eq | T63: kg oil eq | U63: m³ | V63: DALY | W63: species*yr | X63: USD2013
D64: Operation&Maintenance | E64: =+E77+E80+E81+E83+E84 ->  | F64: =+F77+F80+F81+F83+F84 ->  | W64: =+W77+W80+W81+W83+W84 -> 
D65: Start-up | E65: =+E82 ->  | F65: =+F82 ->  | W65: =+W82 -> 
D66: System manufacturing | E66: =+E78+E79 ->  | F66: =+F78+F79 ->  | W66: =+W78+W79 -> 
D67: Disposal | E67: =+E85 ->  | F67: =+F85 ->  | W67: =+W85 -> 
D68: Total | E68: =SUM(E64:E67) ->  | F68: =SUM(F64:F67) -> 
C74: 2 | D74: LCIA product life cycle | E74: Midpoint | V74: Endpoint
D75: Stage/Unit | E75: GWP | F75: ODP | G75: IRP | H75: HOFP | I75: PMPF | J75: EOFP | K75: TAP | L75: FEP | M75: TETP | N75: FETP | O75: METP | P75: HTPc | Q75: HTPnc | R75: LOP | S75: SOP | T75: FFP | U75: WCP | V75: HH | W75: EQ | X75: RA
E76: kg CO₂ eq | F76: kg CFC11 eq | G76: kBq Co-60 eq | H76: kg NOx eq | I76: kg PM2.5 eq | J76: kg NOx eq | K76: kg SO₂ eq | L76: kg P eq | M76: kg 1,4-DCB eq | N76: kg 1,4-DCB eq | O76: kg 1,4-DCB eq | P76: kg 1,4-DCB eq | Q76: kg 1,4-DCB eq | R76: m2a crop eq | S76: kg Cu eq | T76: kg oil eq | U76: m³ | V76: DALY | W76: species*yr | X76: USD2013
D77: =+IF('1- INPUTS'!C11="ReSOFC","N/A IN FC MODE","Electricity, at FC") -> Electricity, at FC | E77: =+DB!H16 -> 0.336000864 | F77: =+DB!I16 -> 0 | G77: =+DB!J16 -> 0 | H77: =+DB!K16 -> 1.2756e-08 | I77: =+DB!L16 -> 9.57e-10 | J77: =+DB!M16 -> 1.3218e-08 | K77: =+DB!N16 -> 7.62e-09 | L77: =+DB!O16 -> 0 | M77: =+DB!P16 -> 0 | N77: =+DB!Q16 -> 0 | O77: =+DB!R16 -> 0 | P77: =+DB!S16 -> 0 | Q77: =+DB!T16 -> 0 | R77: =+DB!U16 -> 0 | S77: =+DB!V16 -> 0 | T77: =+DB!W16 -> 0 | U77: =+DB!X16 -> 0 | V77: =+DB!Y16 -> 3.118094154e-07 | W77: =+DB!Z16 -> 9.408314438e-10 | X77: =+DB!AA16 -> 0
D78: Stack mfg | E78: =+DB!H114 ->  | F78: =+DB!I114 ->  | G78: =+DB!J114 ->  | H78: =+DB!K114 ->  | I78: =+DB!L114 ->  | J78: =+DB!M114 ->  | K78: =+DB!N114 ->  | L78: =+DB!O114 ->  | M78: =+DB!P114 ->  | N78: =+DB!Q114 ->  | O78: =+DB!R114 ->  | P78: =+DB!S114 ->  | Q78: =+DB!T114 ->  | R78: =+DB!U114 ->  | S78: =+DB!V114 ->  | T78: =+DB!W114 ->  | U78: =+DB!X114 ->  | V78: =+DB!Y114 ->  | W78: =+DB!Z114 ->  | X78: =+DB!AA114 -> 
D79: BoP mfg | E79: =+DB!H178 ->  | F79: =+DB!I178 ->  | G79: =+DB!J178 ->  | H79: =+DB!K178 ->  | I79: =+DB!L178 ->  | J79: =+DB!M178 ->  | K79: =+DB!N178 ->  | L79: =+DB!O178 ->  | M79: =+DB!P178 ->  | N79: =+DB!Q178 ->  | O79: =+DB!R178 ->  | P79: =+DB!S178 ->  | Q79: =+DB!T178 ->  | R79: =+DB!U178 ->  | S79: =+DB!V178 ->  | T79: =+DB!W178 ->  | U79: =+DB!X178 ->  | V79: =+DB!Y178 ->  | W79: =+DB!Z178 ->  | X79: =+DB!AA178 -> 
D80: FC maintenance | E80: =+E151 ->  | F80: =+F151 -> 
D81: =+IF('1- INPUTS'!C$11="ReSOFC","Electricity Supply", "Fuel Supply") -> Fuel Supply | E81: =+IF('1- INPUTS'!$C11="ReSOFC",DB!H18,DB!H14) ->  | F81: =+IF('1- INPUTS'!$C11="ReSOFC",DB!I18,DB!I14) ->  | G81: =+IF('1- INPUTS'!$C11="ReSOFC",DB!J18,DB!J14) ->  | H81: =+IF('1- INPUTS'!$C11="ReSOFC",DB!K18,DB!K14) ->  | I81: =+IF('1- INPUTS'!$C11="ReSOFC",DB!L18,DB!L14) ->  | J81: =+IF('1- INPUTS'!$C11="ReSOFC",DB!M18,DB!M14) ->  | K81: =+IF('1- INPUTS'!$C11="ReSOFC",DB!N18,DB!N14) ->  | L81: =+IF('1- INPUTS'!$C11="ReSOFC",DB!O18,DB!O14) ->  | M81: =+IF('1- INPUTS'!$C11="ReSOFC",DB!P18,DB!P14) ->  | N81: =+IF('1- INPUTS'!$C11="ReSOFC",DB!Q18,DB!Q14) ->  | O81: =+IF('1- INPUTS'!$C11="ReSOFC",DB!R18,DB!R14) ->  | P81: =+IF('1- INPUTS'!$C11="ReSOFC",DB!S18,DB!S14) ->  | Q81: =+IF('1- INPUTS'!$C11="ReSOFC",DB!T18,DB!T14) ->  | R81: =+IF('1- INPUTS'!$C11="ReSOFC",DB!U18,DB!U14) ->  | S81: =+IF('1- INPUTS'!$C11="ReSOFC",DB!V18,DB!V14) ->  | T81: =+IF('1- INPUTS'!$C11="ReSOFC",DB!W18,DB!W14) ->  | U81: =+IF('1- INPUTS'!$C11="ReSOFC",DB!X18,DB!X14) ->  | V81: =+IF('1- INPUTS'!$C11="ReSOFC",DB!Y18,DB!Y14) ->  | W81: =+IF('1- INPUTS'!$C11="ReSOFC",DB!Z18,DB!Z14) ->  | X81: =+IF('1- INPUTS'!$C11="ReSOFC",DB!AA18,DB!AA14) -> 
D82: FC start-up | E82: =+E136 ->  | F82: =+F136 -> 
D83: Water supply | E83: =+DB!H38 -> 0 | F83: =+DB!I38 -> 0 | G83: =+DB!J38 -> 0 | H83: =+DB!K38 -> 0 | I83: =+DB!L38 -> 0 | J83: =+DB!M38 -> 0 | K83: =+DB!N38 -> 0 | L83: =+DB!O38 -> 0 | M83: =+DB!P38 -> 0 | N83: =+DB!Q38 -> 0 | O83: =+DB!R38 -> 0 | P83: =+DB!S38 -> 0 | Q83: =+DB!T38 -> 0 | R83: =+DB!U38 -> 0 | S83: =+DB!V38 -> 0 | T83: =+DB!W38 -> 0 | U83: =+DB!X38 -> 0 | V83: =+DB!Y38 -> 0 | W83: =+DB!Z38 -> 0 | X83: =+DB!AA38 -> 0
D84: =+IF('1- INPUTS'!C11="ReSOFC","Heat supply","N/A IN FC MODE") -> N/A IN FC MODE | E84: =+DB!H37 -> 0 | F84: =+DB!I37 -> 0 | G84: =+DB!J37 -> 0 | H84: =+DB!K37 -> 0 | I84: =+DB!L37 -> 0 | J84: =+DB!M37 -> 0 | K84: =+DB!N37 -> 0 | L84: =+DB!O37 -> 0 | M84: =+DB!P37 -> 0 | N84: =+DB!Q37 -> 0 | O84: =+DB!R37 -> 0 | P84: =+DB!S37 -> 0 | Q84: =+DB!T37 -> 0 | R84: =+DB!U37 -> 0 | S84: =+DB!V37 -> 0 | T84: =+DB!W37 -> 0 | U84: =+DB!X37 -> 0 | V84: =+DB!Y37 -> 0 | W84: =+DB!Z37 -> 0 | X84: =+DB!AA37 -> 0
D85: Disposal | E85: =+DB!H285 ->  | F85: =+DB!I285 ->  | G85: =+DB!J285 ->  | H85: =+DB!K285 ->  | I85: =+DB!L285 ->  | J85: =+DB!M285 ->  | K85: =+DB!N285 ->  | L85: =+DB!O285 ->  | M85: =+DB!P285 ->  | N85: =+DB!Q285 ->  | O85: =+DB!R285 ->  | P85: =+DB!S285 ->  | Q85: =+DB!T285 ->  | R85: =+DB!U285 ->  | S85: =+DB!V285 ->  | T85: =+DB!W285 ->  | U85: =+DB!X285 ->  | V85: =+DB!Y285 ->  | W85: =+DB!Z285 ->  | X85: =+DB!AA285 -> 
D86: Total | E86: =SUM(E77:E85) ->  | F86: =SUM(F77:F85) -> 
C90: LIFE CYCLE IMPACT ASSESSMENT (LCIA) - CUMULATIVE STACK, UNALLOCATED
C93: 3 | D93: Stack manufacturing | E93: Midpoint | V93: Endpoint
D94: Input material/Unit | E94: GWP | F94: ODP | G94: IRP | H94: HOFP | I94: PMPF | J94: EOFP | K94: TAP | L94: FEP | M94: TETP | N94: FETP | O94: METP | P94: HTPc | Q94: HTPnc | R94: LOP | S94: SOP | T94: FFP | U94: WCP | V94: HH | W94: EQ | X94: RA
E95: kg CO₂ eq | F95: kg CFC11 eq | G95: kBq Co-60 eq | H95: kg NOx eq | I95: kg PM2.5 eq | J95: kg NOx eq | K95: kg SO₂ eq | L95: kg P eq | M95: kg 1,4-DCB eq | N95: kg 1,4-DCB eq | O95: kg 1,4-DCB eq | P95: kg 1,4-DCB eq | Q95: kg 1,4-DCB eq | R95: m2a crop eq | S95: kg Cu eq | T95: kg oil eq | U95: m³ | V95: DALY | W95: species*yr | X95: USD2013
D96: Powders and salts | E96: =+DB!H184 -> 0 | F96: =+DB!I184 -> 0 | G96: =+DB!J184 -> 0 | H96: =+DB!K184 -> 0 | I96: =+DB!L184 -> 0 | J96: =+DB!M184 -> 0 | K96: =+DB!N184 -> 0 | L96: =+DB!O184 -> 0 | M96: =+DB!P184 -> 0 | N96: =+DB!Q184 -> 0 | O96: =+DB!R184 -> 0 | P96: =+DB!S184 -> 0 | Q96: =+DB!T184 -> 0 | R96: =+DB!U184 -> 0 | S96: =+DB!V184 -> 0 | T96: =+DB!W184 -> 0 | U96: =+DB!X184 -> 0 | V96: =+DB!Y184 -> 0 | W96: =+DB!Z184 -> 0 | X96: =+DB!AA184 -> 0
D97: Solvents | E97: =+DB!H185 -> 0 | F97: =+DB!I185 -> 0 | G97: =+DB!J185 -> 0 | H97: =+DB!K185 -> 0 | I97: =+DB!L185 -> 0 | J97: =+DB!M185 -> 0 | K97: =+DB!N185 -> 0 | L97: =+DB!O185 -> 0 | M97: =+DB!P185 -> 0 | N97: =+DB!Q185 -> 0 | O97: =+DB!R185 -> 0 | P97: =+DB!S185 -> 0 | Q97: =+DB!T185 -> 0 | R97: =+DB!U185 -> 0 | S97: =+DB!V185 -> 0 | T97: =+DB!W185 -> 0 | U97: =+DB!X185 -> 0 | V97: =+DB!Y185 -> 0 | W97: =+DB!Z185 -> 0 | X97: =+DB!AA185 -> 0
D98: Binders | E98: =+DB!H186 -> 0 | F98: =+DB!I186 -> 0 | G98: =+DB!J186 -> 0 | H98: =+DB!K186 -> 0 | I98: =+DB!L186 -> 0 | J98: =+DB!M186 -> 0 | K98: =+DB!N186 -> 0 | L98: =+DB!O186 -> 0 | M98: =+DB!P186 -> 0 | N98: =+DB!Q186 -> 0 | O98: =+DB!R186 -> 0 | P98: =+DB!S186 -> 0 | Q98: =+DB!T186 -> 0 | R98: =+DB!U186 -> 0 | S98: =+DB!V186 -> 0 | T98: =+DB!W186 -> 0 | U98: =+DB!X186 -> 0 | V98: =+DB!Y186 -> 0 | W98: =+DB!Z186 -> 0 | X98: =+DB!AA186 -> 0
D99: Metal components & processes | E99: =+DB!H187 -> 0 | F99: =+DB!I187 -> 0 | G99: =+DB!J187 -> 0 | H99: =+DB!K187 -> 0 | I99: =+DB!L187 -> 0 | J99: =+DB!M187 -> 0 | K99: =+DB!N187 -> 0 | L99: =+DB!O187 -> 0 | M99: =+DB!P187 -> 0 | N99: =+DB!Q187 -> 0 | O99: =+DB!R187 -> 0 | P99: =+DB!S187 -> 0 | Q99: =+DB!T187 -> 0 | R99: =+DB!U187 -> 0 | S99: =+DB!V187 -> 0 | T99: =+DB!W187 -> 0 | U99: =+DB!X187 -> 0 | V99: =+DB!Y187 -> 0 | W99: =+DB!Z187 -> 0 | X99: =+DB!AA187 -> 0
D100: Transport | E100: =+DB!H188 -> 0 | F100: =+DB!I188 -> 0 | G100: =+DB!J188 -> 0 | H100: =+DB!K188 -> 0 | I100: =+DB!L188 -> 0 | J100: =+DB!M188 -> 0 | K100: =+DB!N188 -> 0 | L100: =+DB!O188 -> 0 | M100: =+DB!P188 -> 0 | N100: =+DB!Q188 -> 0 | O100: =+DB!R188 -> 0 | P100: =+DB!S188 -> 0 | Q100: =+DB!T188 -> 0 | R100: =+DB!U188 -> 0 | S100: =+DB!V188 -> 0 | T100: =+DB!W188 -> 0 | U100: =+DB!X188 -> 0 | V100: =+DB!Y188 -> 0 | W100: =+DB!Z188 -> 0 | X100: =+DB!AA188 -> 0
D101: Plastics | E101: =+DB!H189 -> 0 | F101: =+DB!I189 -> 0 | G101: =+DB!J189 -> 0 | H101: =+DB!K189 -> 0 | I101: =+DB!L189 -> 0 | J101: =+DB!M189 -> 0 | K101: =+DB!N189 -> 0 | L101: =+DB!O189 -> 0 | M101: =+DB!P189 -> 0 | N101: =+DB!Q189 -> 0 | O101: =+DB!R189 -> 0 | P101: =+DB!S189 -> 0 | Q101: =+DB!T189 -> 0 | R101: =+DB!U189 -> 0 | S101: =+DB!V189 -> 0 | T101: =+DB!W189 -> 0 | U101: =+DB!X189 -> 0 | V101: =+DB!Y189 -> 0 | W101: =+DB!Z189 -> 0 | X101: =+DB!AA189 -> 0
D102: Energy | E102: =+DB!H190 -> 0 | F102: =+DB!I190 -> 0 | G102: =+DB!J190 -> 0 | H102: =+DB!K190 -> 0 | I102: =+DB!L190 -> 0 | J102: =+DB!M190 -> 0 | K102: =+DB!N190 -> 0 | L102: =+DB!O190 -> 0 | M102: =+DB!P190 -> 0 | N102: =+DB!Q190 -> 0 | O102: =+DB!R190 -> 0 | P102: =+DB!S190 -> 0 | Q102: =+DB!T190 -> 0 | R102: =+DB!U190 -> 0 | S102: =+DB!V190 -> 0 | T102: =+DB!W190 -> 0 | U102: =+DB!X190 -> 0 | V102: =+DB!Y190 -> 0 | W102: =+DB!Z190 -> 0 | X102: =+DB!AA190 -> 0
D103: Insulation | E103: =+DB!H191 -> 0 | F103: =+DB!I191 -> 0 | G103: =+DB!J191 -> 0 | H103: =+DB!K191 -> 0 | I103: =+DB!L191 -> 0 | J103: =+DB!M191 -> 0 | K103: =+DB!N191 -> 0 | L103: =+DB!O191 -> 0 | M103: =+DB!P191 -> 0 | N103: =+DB!Q191 -> 0 | O103: =+DB!R191 -> 0 | P103: =+DB!S191 -> 0 | Q103: =+DB!T191 -> 0 | R103: =+DB!U191 -> 0 | S103: =+DB!V191 -> 0 | T103: =+DB!W191 -> 0 | U103: =+DB!X191 -> 0 | V103: =+DB!Y191 -> 0 | W103: =+DB!Z191 -> 0 | X103: =+DB!AA191 -> 0
D104: Total | E104: =SUM(E96:E103) -> 0 | F104: =SUM(F96:F103) -> 0 | G104: 0 | H104: 0 | I104: 0 | J104: 0 | K104: 0 | L104: 0 | M104: 0 | N104: 0 | O104: 0 | P104: 0 | Q104: 0 | R104: 0 | S104: 0 | T104: 0 | U104: 0 | V104: 0 | W104: 0 | X104: 0
C109: LIFE CYCLE IMPACT ASSESSMENT (LCIA) - BoP
C111: 4 | D111: BoP manufacturing | E111: Midpoint | V111: Endpoint
D112: Input component/Unit | E112: GWP | F112: ODP | G112: IRP | H112: HOFP | I112: PMPF | J112: EOFP | K112: TAP | L112: FEP | M112: TETP | N112: FETP | O112: METP | P112: HTPc | Q112: HTPnc | R112: LOP | S112: SOP | T112: FFP | U112: WCP | V112: HH | W112: EQ | X112: RA
E113: kg CO₂ eq | F113: kg CFC11 eq | G113: kBq Co-60 eq | H113: kg NOx eq | I113: kg PM2.5 eq | J113: kg NOx eq | K113: kg SO₂ eq | L113: kg P eq | M113: kg 1,4-DCB eq | N113: kg 1,4-DCB eq | O113: kg 1,4-DCB eq | P113: kg 1,4-DCB eq | Q113: kg 1,4-DCB eq | R113: m2a crop eq | S113: kg Cu eq | T113: kg oil eq | U113: m³ | V113: DALY | W113: species*yr | X113: USD2013
D114: Reformer | E114: =+DB!H129 -> 0 | F114: =+DB!I129 -> 0 | G114: =+DB!J129 -> 0 | H114: =+DB!K129 -> 0 | I114: =+DB!L129 -> 0 | J114: =+DB!M129 -> 0 | K114: =+DB!N129 -> 0 | L114: =+DB!O129 -> 0 | M114: =+DB!P129 -> 0 | N114: =+DB!Q129 -> 0 | O114: =+DB!R129 -> 0 | P114: =+DB!S129 -> 0 | Q114: =+DB!T129 -> 0 | R114: =+DB!U129 -> 0 | S114: =+DB!V129 -> 0 | T114: =+DB!W129 -> 0 | U114: =+DB!X129 -> 0 | V114: =+DB!Y129 -> 0 | W114: =+DB!Z129 -> 0 | X114: =+DB!AA129 -> 0
D115: Inverter | E115: =+DB!H131 -> 0 | F115: =+DB!I131 -> 0 | G115: =+DB!J131 -> 0 | H115: =+DB!K131 -> 0 | I115: =+DB!L131 -> 0 | J115: =+DB!M131 -> 0 | K115: =+DB!N131 -> 0 | L115: =+DB!O131 -> 0 | M115: =+DB!P131 -> 0 | N115: =+DB!Q131 -> 0 | O115: =+DB!R131 -> 0 | P115: =+DB!S131 -> 0 | Q115: =+DB!T131 -> 0 | R115: =+DB!U131 -> 0 | S115: =+DB!V131 -> 0 | T115: =+DB!W131 -> 0 | U115: =+DB!X131 -> 0 | V115: =+DB!Y131 -> 0 | W115: =+DB!Z131 -> 0 | X115: =+DB!AA131 -> 0
D116: Air Blower | E116: =+DB!H137 -> 0 | F116: =+DB!I137 -> 0 | G116: =+DB!J137 -> 0 | H116: =+DB!K137 -> 0 | I116: =+DB!L137 -> 0 | J116: =+DB!M137 -> 0 | K116: =+DB!N137 -> 0 | L116: =+DB!O137 -> 0 | M116: =+DB!P137 -> 0 | N116: =+DB!Q137 -> 0 | O116: =+DB!R137 -> 0 | P116: =+DB!S137 -> 0 | Q116: =+DB!T137 -> 0 | R116: =+DB!U137 -> 0 | S116: =+DB!V137 -> 0 | T116: =+DB!W137 -> 0 | U116: =+DB!X137 -> 0 | V116: =+DB!Y137 -> 0 | W116: =+DB!Z137 -> 0 | X116: =+DB!AA137 -> 0
D117: Fuel Blower | E117: =+DB!H143 -> 0 | F117: =+DB!I143 -> 0 | G117: =+DB!J143 -> 0 | H117: =+DB!K143 -> 0 | I117: =+DB!L143 -> 0 | J117: =+DB!M143 -> 0 | K117: =+DB!N143 -> 0 | L117: =+DB!O143 -> 0 | M117: =+DB!P143 -> 0 | N117: =+DB!Q143 -> 0 | O117: =+DB!R143 -> 0 | P117: =+DB!S143 -> 0 | Q117: =+DB!T143 -> 0 | R117: =+DB!U143 -> 0 | S117: =+DB!V143 -> 0 | T117: =+DB!W143 -> 0 | U117: =+DB!X143 -> 0 | V117: =+DB!Y143 -> 0 | W117: =+DB!Z143 -> 0 | X117: =+DB!AA143 -> 0
D118: Catalytic combustor | E118: =+DB!H150 -> 0 | F118: =+DB!I150 -> 0 | G118: =+DB!J150 -> 0 | H118: =+DB!K150 -> 0 | I118: =+DB!L150 -> 0 | J118: =+DB!M150 -> 0 | K118: =+DB!N150 -> 0 | L118: =+DB!O150 -> 0 | M118: =+DB!P150 -> 0 | N118: =+DB!Q150 -> 0 | O118: =+DB!R150 -> 0 | P118: =+DB!S150 -> 0 | Q118: =+DB!T150 -> 0 | R118: =+DB!U150 -> 0 | S118: =+DB!V150 -> 0 | T118: =+DB!W150 -> 0 | U118: =+DB!X150 -> 0 | V118: =+DB!Y150 -> 0 | W118: =+DB!Z150 -> 0 | X118: =+DB!AA150 -> 0
D119: Heat exchanger | E119: =+DB!H155 -> 0 | F119: =+DB!I155 -> 0 | G119: =+DB!J155 -> 0 | H119: =+DB!K155 -> 0 | I119: =+DB!L155 -> 0 | J119: =+DB!M155 -> 0 | K119: =+DB!N155 -> 0 | L119: =+DB!O155 -> 0 | M119: =+DB!P155 -> 0 | N119: =+DB!Q155 -> 0 | O119: =+DB!R155 -> 0 | P119: =+DB!S155 -> 0 | Q119: =+DB!T155 -> 0 | R119: =+DB!U155 -> 0 | S119: =+DB!V155 -> 0 | T119: =+DB!W155 -> 0 | U119: =+DB!X155 -> 0 | V119: =+DB!Y155 -> 0 | W119: =+DB!Z155 -> 0 | X119: =+DB!AA155 -> 0
D120: Heat recovery steam generator (HRSG) | E120: =+DB!H159 -> 0 | F120: =+DB!I159 -> 0 | G120: =+DB!J159 -> 0 | H120: =+DB!K159 -> 0 | I120: =+DB!L159 -> 0 | J120: =+DB!M159 -> 0 | K120: =+DB!N159 -> 0 | L120: =+DB!O159 -> 0 | M120: =+DB!P159 -> 0 | N120: =+DB!Q159 -> 0 | O120: =+DB!R159 -> 0 | P120: =+DB!S159 -> 0 | Q120: =+DB!T159 -> 0 | R120: =+DB!U159 -> 0 | S120: =+DB!V159 -> 0 | T120: =+DB!W159 -> 0 | U120: =+DB!X159 -> 0 | V120: =+DB!Y159 -> 0 | W120: =+DB!Z159 -> 0 | X120: =+DB!AA159 -> 0
D121: Water pump | E121: =+DB!H164 -> 0 | F121: =+DB!I164 -> 0 | G121: =+DB!J164 -> 0 | H121: =+DB!K164 -> 0 | I121: =+DB!L164 -> 0 | J121: =+DB!M164 -> 0 | K121: =+DB!N164 -> 0 | L121: =+DB!O164 -> 0 | M121: =+DB!P164 -> 0 | N121: =+DB!Q164 -> 0 | O121: =+DB!R164 -> 0 | P121: =+DB!S164 -> 0 | Q121: =+DB!T164 -> 0 | R121: =+DB!U164 -> 0 | S121: =+DB!V164 -> 0 | T121: =+DB!W164 -> 0 | U121: =+DB!X164 -> 0 | V121: =+DB!Y164 -> 0 | W121: =+DB!Z164 -> 0 | X121: =+DB!AA164 -> 0
D122: Additional infastructure | E122: =+DB!H175 -> 1276.64205 | F122: =+DB!I175 -> 0.0006134894254 | G122: =+DB!J175 -> 598.9384642 | H122: =+DB!K175 -> 2.863759083 | I122: =+DB!L175 -> 1.210902148 | J122: =+DB!M175 -> 2.96827086 | K122: =+DB!N175 -> 4.259233643 | L122: =+DB!O175 -> 0.8117001533 | M122: =+DB!P175 -> 1.195302196 | N122: =+DB!Q175 -> 38.45475963 | O122: =+DB!R175 -> 55.45905795 | P122: =+DB!S175 -> 75.5190229 | Q122: =+DB!T175 -> 43232.28278 | R122: =+DB!U175 -> 19.03292678 | S122: =+DB!V175 -> 3.783198748 | T122: =+DB!W175 -> 362.9351968 | U122: =+DB!X175 -> 6658.711601 | V122: =+DB!Y175 -> 0.01727339307 | W122: =+DB!Z175 -> 9.551765223e-05 | X122: =+DB!AA175 -> 106.1616146
D123: Total | E123: =SUM(E114:E122) -> 1276.64205 | F123: =SUM(F114:F122) -> 0.0006134894254 | G123: 598.9384642 | H123: 2.863759083 | I123: 1.210902148 | J123: 2.96827086 | K123: 4.259233643 | L123: 0.8117001533 | M123: 1.195302196 | N123: 38.45475963 | O123: 55.45905795 | P123: 75.5190229 | Q123: 43232.28278 | R123: 19.03292678 | S123: 3.783198748 | T123: 362.9351968 | U123: 6658.711601 | V123: =SUM(V114:V121) -> 0 | W123: 0 | X123: 0
C127: LIFE CYCLE IMPACT ASSESSMENT (LCIA) - Start-Up
C129: 5 | D129: Start-up | E129: Midpoint | V129: Endpoint
D130: Input component/Unit | E130: GWP | F130: ODP | G130: IRP | H130: HOFP | I130: PMPF | J130: EOFP | K130: TAP | L130: FEP | M130: TETP | N130: FETP | O130: METP | P130: HTPc | Q130: HTPnc | R130: LOP | S130: SOP | T130: FFP | U130: WCP | V130: HH | W130: EQ | X130: RA
E131: kg CO₂ eq | F131: kg CFC11 eq | G131: kBq Co-60 eq | H131: kg NOx eq | I131: kg PM2.5 eq | J131: kg NOx eq | K131: kg SO₂ eq | L131: kg P eq | M131: kg 1,4-DCB eq | N131: kg 1,4-DCB eq | O131: kg 1,4-DCB eq | P131: kg 1,4-DCB eq | Q131: kg 1,4-DCB eq | R131: m2a crop eq | S131: kg Cu eq | T131: kg oil eq | U131: m³ | V131: DALY | W131: species*yr | X131: USD2013
D132: =+'2-LCI'!C99 -> Engine installation: transport, lorry >28t, fleet av. | E132: =+DB!H45 ->  | F132: =+DB!I45 ->  | G132: =+DB!J45 ->  | H132: =+DB!K45 ->  | I132: =+DB!L45 ->  | J132: =+DB!M45 ->  | K132: =+DB!N45 ->  | L132: =+DB!O45 ->  | M132: =+DB!P45 ->  | N132: =+DB!Q45 ->  | O132: =+DB!R45 ->  | P132: =+DB!S45 ->  | Q132: =+DB!T45 ->  | R132: =+DB!U45 ->  | S132: =+DB!V45 ->  | T132: =+DB!W45 ->  | U132: =+DB!X45 ->  | V132: =+DB!Y45 ->  | W132: =+DB!Z45 ->  | X132: =+DB!AA45 -> 
D133: =+'2-LCI'!C100 -> Fuel for start up | E133: =+DB!H46 ->  | F133: =+DB!I46 ->  | G133: =+DB!J46 ->  | H133: =+DB!K46 ->  | I133: =+DB!L46 ->  | J133: =+DB!M46 ->  | K133: =+DB!N46 ->  | L133: =+DB!O46 ->  | M133: =+DB!P46 ->  | N133: =+DB!Q46 ->  | O133: =+DB!R46 ->  | P133: =+DB!S46 ->  | Q133: =+DB!T46 ->  | R133: =+DB!U46 ->  | S133: =+DB!V46 ->  | T133: =+DB!W46 ->  | U133: =+DB!X46 ->  | V133: =+DB!Y46 ->  | W133: =+DB!Z46 ->  | X133: =+DB!AA46 -> 
D134: =+'2-LCI'!C101 -> Process water | E134: =+DB!H47 -> 0 | F134: =+DB!I47 -> 0 | G134: =+DB!J47 -> 0 | H134: =+DB!K47 -> 0 | I134: =+DB!L47 -> 0 | J134: =+DB!M47 -> 0 | K134: =+DB!N47 -> 0 | L134: =+DB!O47 -> 0 | M134: =+DB!P47 -> 0 | N134: =+DB!Q47 -> 0 | O134: =+DB!R47 -> 0 | P134: =+DB!S47 -> 0 | Q134: =+DB!T47 -> 0 | R134: =+DB!U47 -> 0 | S134: =+DB!V47 -> 0 | T134: =+DB!W47 -> 0 | U134: =+DB!X47 -> 0 | V134: =+DB!Y47 -> 0 | W134: =+DB!Z47 -> 0 | X134: =+DB!AA47 -> 0
D135: Electricity | E135: =+DB!H48 -> 0 | F135: =+DB!I48 -> 0 | G135: =+DB!J48 -> 0 | H135: =+DB!K48 -> 0 | I135: =+DB!L48 -> 0 | J135: =+DB!M48 -> 0 | K135: =+DB!N48 -> 0 | L135: =+DB!O48 -> 0 | M135: =+DB!P48 -> 0 | N135: =+DB!Q48 -> 0 | O135: =+DB!R48 -> 0 | P135: =+DB!S48 -> 0 | Q135: =+DB!T48 -> 0 | R135: =+DB!U48 -> 0 | S135: =+DB!V48 -> 0 | T135: =+DB!W48 -> 0 | U135: =+DB!X48 -> 0 | V135: =+E135*GWP_HH+F135*ODP_HH+G135*IRP_HH+H135*HOFP_HH+I135*PMPF_HH+P135*HTPC_HH+Q135*HTPNC_HH+U135*WCP_HH -> 0 | W135: =+E135*GWP_FE+E135*GWP_TE+J135*EOFP_TE+K135*TAP_TE+L135*FEP_FE+M135*TETP_TE+N135*FETP_FE+O135*METP_ME+R135*LOP_TE+U135*WCP_FE+U135*WCP_TE -> 0 | X135: =+S135*SOP+T135 -> 0
D136: Total | E136: =SUM(E132:E135) ->  | F136: =SUM(F132:F135) -> 
C140: LIFE CYCLE IMPACT ASSESSMENT (LCIA) - Maintenance
C142: 6 | D142: Maintenance | E142: Midpoint | V142: Endpoint
D143: Input component/Unit | E143: GWP | F143: ODP | G143: IRP | H143: HOFP | I143: PMPF | J143: EOFP | K143: TAP | L143: FEP | M143: TETP | N143: FETP | O143: METP | P143: HTPc | Q143: HTPnc | R143: LOP | S143: SOP | T143: FFP | U143: WCP | V143: HH | W143: EQ | X143: RA
E144: kg CO₂ eq | F144: kg CFC11 eq | G144: kBq Co-60 eq | H144: kg NOx eq | I144: kg PM2.5 eq | J144: kg NOx eq | K144: kg SO₂ eq | L144: kg P eq | M144: kg 1,4-DCB eq | N144: kg 1,4-DCB eq | O144: kg 1,4-DCB eq | P144: kg 1,4-DCB eq | Q144: kg 1,4-DCB eq | R144: m2a crop eq | S144: kg Cu eq | T144: kg oil eq | U144: m³ | V144: DALY | W144: species*yr | X144: USD2013
D145: Reinforcing steel | E145: =+DB!H50 ->  | F145: =+DB!I50 ->  | G145: =+DB!J50 ->  | H145: =+DB!K50 ->  | I145: =+DB!L50 ->  | J145: =+DB!M50 ->  | K145: =+DB!N50 ->  | L145: =+DB!O50 ->  | M145: =+DB!P50 ->  | N145: =+DB!Q50 ->  | O145: =+DB!R50 ->  | P145: =+DB!S50 ->  | Q145: =+DB!T50 ->  | R145: =+DB!U50 ->  | S145: =+DB!V50 ->  | T145: =+DB!W50 ->  | U145: =+DB!X50 ->  | V145: =+DB!Y50 ->  | W145: =+DB!Z50 ->  | X145: =+DB!AA50 -> 
D146: Sheet rolling, steel | E146: =+DB!H51 ->  | F146: =+DB!I51 ->  | G146: =+DB!J51 ->  | H146: =+DB!K51 ->  | I146: =+DB!L51 ->  | J146: =+DB!M51 ->  | K146: =+DB!N51 ->  | L146: =+DB!O51 ->  | M146: =+DB!P51 ->  | N146: =+DB!Q51 ->  | O146: =+DB!R51 ->  | P146: =+DB!S51 ->  | Q146: =+DB!T51 ->  | R146: =+DB!U51 ->  | S146: =+DB!V51 ->  | T146: =+DB!W51 ->  | U146: =+DB!X51 ->  | V146: =+DB!Y51 ->  | W146: =+DB!Z51 ->  | X146: =+DB!AA51 -> 
D147: Chromium steel 18/8 | E147: =+DB!H52 ->  | F147: =+DB!I52 ->  | G147: =+DB!J52 ->  | H147: =+DB!K52 ->  | I147: =+DB!L52 ->  | J147: =+DB!M52 ->  | K147: =+DB!N52 ->  | L147: =+DB!O52 ->  | M147: =+DB!P52 ->  | N147: =+DB!Q52 ->  | O147: =+DB!R52 ->  | P147: =+DB!S52 ->  | Q147: =+DB!T52 ->  | R147: =+DB!U52 ->  | S147: =+DB!V52 ->  | T147: =+DB!W52 ->  | U147: =+DB!X52 ->  | V147: =+DB!Y52 ->  | W147: =+DB!Z52 ->  | X147: =+DB!AA52 -> 
D148: Sheet rolling, chromium steel | E148: =+DB!H53 ->  | F148: =+DB!I53 ->  | G148: =+DB!J53 ->  | H148: =+DB!K53 ->  | I148: =+DB!L53 ->  | J148: =+DB!M53 ->  | K148: =+DB!N53 ->  | L148: =+DB!O53 ->  | M148: =+DB!P53 ->  | N148: =+DB!Q53 ->  | O148: =+DB!R53 ->  | P148: =+DB!S53 ->  | Q148: =+DB!T53 ->  | R148: =+DB!U53 ->  | S148: =+DB!V53 ->  | T148: =+DB!W53 ->  | U148: =+DB!X53 ->  | V148: =+DB!Y53 ->  | W148: =+DB!Z53 ->  | X148: =+DB!AA53 -> 
D149: Water consumption | E149: =+DB!H54 ->  | F149: =+DB!I54 ->  | G149: =+DB!J54 ->  | H149: =+DB!K54 ->  | I149: =+DB!L54 ->  | J149: =+DB!M54 ->  | K149: =+DB!N54 ->  | L149: =+DB!O54 ->  | M149: =+DB!P54 ->  | N149: =+DB!Q54 ->  | O149: =+DB!R54 ->  | P149: =+DB!S54 ->  | Q149: =+DB!T54 ->  | R149: =+DB!U54 ->  | S149: =+DB!V54 ->  | T149: =+DB!W54 ->  | U149: =+DB!X54 ->  | V149: =+DB!Y54 ->  | W149: =+DB!Z54 ->  | X149: =+DB!AA54 -> 
D150: Stack Fuel cell | E150: =+DB!H55 ->  | F150: =+DB!I55 ->  | G150: =+DB!J55 ->  | H150: =+DB!K55 ->  | I150: =+DB!L55 ->  | J150: =+DB!M55 ->  | K150: =+DB!N55 ->  | L150: =+DB!O55 ->  | M150: =+DB!P55 ->  | N150: =+DB!Q55 ->  | O150: =+DB!R55 ->  | P150: =+DB!S55 ->  | Q150: =+DB!T55 ->  | R150: =+DB!U55 ->  | S150: =+DB!V55 ->  | T150: =+DB!W55 ->  | U150: =+DB!X55 ->  | V150: =+DB!Y55 ->  | W150: =+DB!Z55 ->  | X150: =+DB!AA55 -> 
D151: Total | E151: =SUM(E145:E150) ->  | F151: =SUM(F145:F150) -> 

Sheet 4-SensAnalysis
A2: This page is designed to store the data of LCIA simulations and different scenarios.
D7: Global warming | E7: Stratospheric ozone depletion | F7: Ionizing radiation | G7: Ozone formation, Human health | H7: Fine particulate matter formation | I7: Ozone formation, Terrestrial ecosystems | J7: Terrestrial acidification | K7: Freshwater eutrophication | L7: Terrestrial ecotoxicity | M7: Freshwater ecotoxicity | N7: Marine ecotoxicity | O7: Human carcinogenic toxicity | P7: Human non-carcinogenic toxicity | Q7: Land use | R7: Mineral resource scarcity | S7: Fossil resource scarcity | T7: Water consumption | U7: Human Health | V7: Ecosystem | W7: Resource availability
C8: SCENARIOS | D8: GWP | E8: ODP | F8: IRP | G8: HOFP | H8: PMFP | I8: EOFP | J8: TAP | K8: FEP | L8: TETP | M8: FETP | N8: METP | O8: HTPc | P8: HTPnc | Q8: LOP | R8: SOP | S8: FFP | T8: WCP | U8: HH | V8: EQ | W8: RA
C9: Baseline
C10: Alternative A
C11: Alternative B
C12: Alternative C
C13: Alternative D
C16: Compare baseline with => | D16: Alternative A
C17: Your Alternative to compare | D17: GWP | E17: ODP | F17: IRP | G17: HOFP | H17: PMFP | I17: EOFP | J17: TAP | K17: FEP | L17: TETP | M17: FETP | N17: METP | O17: HTPc | P17: HTPnc | Q17: LOP | R17: SOP | S17: FFP | T17: WCP | U17: HH | V17: EQ | W17: RA
C18: =+D16 -> Alternative A | D18: =+VLOOKUP($D16,$C10:$T13,2,FALSE) -> 0 | E18: =+VLOOKUP($D16,$C10:$T13,3,FALSE) -> 0 | F18: =+VLOOKUP($D16,$C10:$T13,4,FALSE) -> 0 | G18: =+VLOOKUP($D16,$C10:$T13,5,FALSE) -> 0 | H18: =+VLOOKUP($D16,$C10:$T13,6,FALSE) -> 0 | I18: =+VLOOKUP($D16,$C10:$T13,7,FALSE) -> 0 | J18: =+VLOOKUP($D16,$C10:$T13,8,FALSE) -> 0 | K18: =+VLOOKUP($D16,$C10:$T13,9,FALSE) -> 0 | L18: =+VLOOKUP($D16,$C10:$T13,10,FALSE) -> 0 | M18: =+VLOOKUP($D16,$C10:$T13,11,FALSE) -> 0 | N18: =+VLOOKUP($D16,$C10:$T13,12,FALSE) -> 0 | O18: =+VLOOKUP($D16,$C10:$T13,13,FALSE) -> 0 | P18: =+VLOOKUP($D16,$C10:$T13,14,FALSE) -> 0 | Q18: =+VLOOKUP($D16,$C10:$T13,15,FALSE) -> 0 | R18: =+VLOOKUP($D16,$C10:$T13,16,FALSE) -> 0 | S18: =+VLOOKUP($D16,$C10:$T13,17,FALSE) -> 0 | T18: =+VLOOKUP($D16,$C10:$T13,18,FALSE) -> 0 | U18: =+VLOOKUP($D16,$C10:$T13,18,FALSE) -> 0 | V18: 0 | W18: 0
C19: Your baseline value | D19: =+D$9 -> 0 | E19: =+E$9 -> 0 | F19: 0 | G19: 0 | H19: 0 | I19: 0 | J19: 0 | K19: 0 | L19: 0 | M19: 0 | N19: 0 | O19: 0 | P19: 0 | Q19: 0 | R19: 0 | S19: 0 | T19: 0 | U19: 0 | V19: 0 | W19: 0
C20: Change | D20: =IFERROR(IF(D19<>0,IF(D18>=D19,"UP ", "DOWN ")&TEXT(D18/D19-1,"0%;0%"),"UP 100%"),"") -> UP 100% | E20: =IFERROR(IF(E19<>0,IF(E18>=E19,"UP ", "DOWN ")&TEXT(E18/E19-1,"0%;0%"),"UP 100%"),"") -> UP 100% | F20: UP 100% | G20: UP 100% | H20: UP 100% | I20: UP 100% | J20: UP 100% | K20: UP 100% | L20: UP 100% | M20: UP 100% | N20: UP 100% | O20: UP 100% | P20: UP 100% | Q20: UP 100% | R20: UP 100% | S20: UP 100% | T20: UP 100% | U20: =IFERROR(IF(U19<>0,IF(U18>=U19,"UP ", "DOWN ")&TEXT(U18/U19-1,"0%;0%"),"UP 100%"),"") -> UP 100% | V20: UP 100% | W20: UP 100%
C24: Here you can compare the performance for each alternative for different environmental impact categories
C26: Indicator | D26: Baseline | E26: Alternative A | F26: Alternative B | G26: Alternative C | H26: Alternative D
C27: GWP | D27: =+HLOOKUP(C27,C8:W9,2,FALSE) -> 0 | E27: =+HLOOKUP(C27,C8:W10,3,FALSE) -> 0 | F27: =+HLOOKUP(C27,C8:W11,4,FALSE) -> 0 | G27: =+HLOOKUP(C27,C8:W12,5,FALSE) -> 0 | H27: =+HLOOKUP(C27,C8:W13,6,FALSE) -> 0

Sheet 5-LCOE-LCOF
B1: TECHNO-ECONOMIC ANALYSIS
C4: Key code
C5: Input - User data
C6: Calculated values
B8: LEVELIZED COST OF ELECTRICITY (LCOE)
C10: Analyzed system | D10: =+'1- INPUTS'!C11 -> SOFC PLANAR | E10: Sensitivity analysis | F10: Variation | G10: S1 | H10: S2 | I10: BASELINE | J10: S3 | K10: S4
C11: Investment cost (€/kW) | D11: =+IF('1- INPUTS'!C$11="ReSOFC",0,TIC) -> 0 | E11: Investment cost | F11: 0 | G11: =+DB!C296 ->  | H11: =+DB!D296 ->  | I11: =+DB!E296 ->  | J11: =+DB!F296 ->  | K11: =+DB!G296 -> 
C12: WACC (%) | D12: =+IF('1- INPUTS'!C$11="ReSOFC",0,0.12) -> 0.12 | E12: WACC | F12: 0 | G12: =+DB!C299 ->  | H12: =+DB!D299 ->  | I12: =+DB!E299 ->  | J12: =+DB!F299 ->  | K12: =+DB!G299 -> 
C13: Technical lifetime of plant (years) | D13: =+IF('1- INPUTS'!C$11="ReSOFC",0,System_Lifetime) -> 0 | E13: Lifetime | F13: 0 | G13: =+DB!C302 ->  | H13: =+DB!D302 ->  | I13: =+DB!E302 ->  | J13: =+DB!F302 ->  | K13: =+DB!G302 -> 
C14: Fix operating cost (€/kW/year) | D14: =1/3*D11/Stack_Lifetime ->  | E14: Fix operating cost | F14: 0 | G14: =+DB!C305 ->  | H14: =+DB!D305 ->  | I14: =+DB!E305 ->  | J14: =+DB!F305 ->  | K14: =+DB!G305 -> 
C15: Variable operating cost (€/MWhel) | D15: 2 | E15: Fuel cost | F15: 0 | G15: =+DB!C308 ->  | H15: =+DB!D308 ->  | I15: =+DB!E308 ->  | J15: =+DB!F308 ->  | K15: =+DB!G308 -> 
C16: Fuel cost (€/MWhtherm) | D16: =+IF('1- INPUTS'!C$11="ReSOFC",0,FuelCost*1000) -> 18 | E16: Efficiency | F16: 0 | G16: =+DB!C311 ->  | H16: =+DB!D311 ->  | I16: =+DB!E311 ->  | J16: =+DB!F311 ->  | K16: =+DB!G311 -> 
C17: CO₂-Cost(€/tCO₂) | D17: 0 | E17: Utilization | F17: 0 | G17: =+DB!C314 ->  | H17: =+DB!D314 ->  | I17: =+DB!E314 ->  | J17: =+DB!F314 ->  | K17: =+DB!G314 -> 
C18: Efficiency (only fossil fuel plants, in %) | D18: =IF('1- INPUTS'!C$11="ReSOFC",0,Systemefficiency) -> 0.6 | E18: CO₂ certificate cost | F18: 0 | G18: =+DB!C317 ->  | H18: =+DB!D317 ->  | I18: =+DB!E317 ->  | J18: =+DB!F317 ->  | K18: =+DB!G317 -> 
C19: CO₂ Emmission factor (tCO₂/MWhtherm) | D19: 0 | E19: Sensitivity analysis | G19: S1 | H19: S2 | I19: BASELINE | J19: S3 | K19: S4
C20: Full load hours per year (h) | D20: =+IF('1- INPUTS'!C$11="ReSOFC",0,OpHours) -> 0 | E20: Investment cost | G20: =+DB!C295 -> 0 | H20: =+DB!D295 -> 0 | I20: =+DB!E295 -> 0 | J20: =+DB!F295 -> 0 | K20: =+DB!G295 -> 0
C21: Calculations (pro kW) | E21: WACC | G21: =+DB!C298 -> 0.12 | H21: =+DB!D298 -> 0.12 | I21: =+DB!E298 -> 0.12 | J21: =+DB!F298 -> 0.12 | K21: =+DB!G298 -> 0.12
C22: kWhelectr per year | D22: =+D20 -> 0 | E22: Lifetime | G22: =+DB!C301 -> 0 | H22: =+DB!D301 -> 0 | I22: =+DB!E301 -> 0 | J22: =+DB!F301 -> 0 | K22: =+DB!G301 -> 0
C23: Capital cost peryear (EUR) | D23: =IFERROR(-PMT(WACC,D13,Inv_Cost),0) -> 0 | E23: Fix operating cost | G23: =+DB!C304 ->  | H23: =+DB!D304 ->  | I23: =+DB!E304 ->  | J23: =+DB!F304 ->  | K23: =+DB!G304 -> 
C24: Operation-& Fuel cost per year (EUR) | D24: =IFERROR((D14+(D22/1000*D15+D22/1000*D16/D18)),0) -> 0 | E24: Fuel cost | G24: =+DB!C307 -> 18 | H24: =+DB!D307 -> 18 | I24: =+DB!E307 -> 18 | J24: =+DB!F307 -> 18 | K24: =+DB!G307 -> 18
C25: CO₂-Cost per year (EUR) | D25: =IFERROR((D22/1000*D17*D19/D18),0) -> 0 | E25: Efficiency | G25: =+DB!C310 -> 0.6 | H25: =+DB!D310 -> 0.6 | I25: =+DB!E310 -> 0.6 | J25: =+DB!F310 -> 0.6 | K25: =+DB!G310 -> 0.6
C26: Capital cost (ct/kWh) | D26: =IFERROR(D23/D22*100,0) -> 0 | E26: Utilization | G26: =+DB!C313 -> 0 | H26: =+DB!D313 -> 0 | I26: =+DB!E313 -> 0 | J26: =+DB!F313 -> 0 | K26: =+DB!G313 -> 0
C27: Operating cost (ct/kWh) | D27: =IFERROR((D24+D25)/D22*100,0) -> 0 | E27: CO₂ certificate cost | G27: =+DB!C316 -> 0 | H27: =+DB!D316 -> 0 | I27: =+DB!E316 -> 0 | J27: =+DB!F316 -> 0 | K27: =+DB!G316 -> 0
C28: Levelized Cost of Electricity (€ct/kWh) | D28: =IFERROR((D23+D24+D25)/D22*100,0) -> 0
B34: LEVELIZED COST OF FUEL (LCOF) - PRODUCTION ONLY
C36: Analyzed system | D36: =+D10 -> SOFC PLANAR | E36: Sensitivity analysis | F36: Variation | G36: S1 | H36: S2 | I36: BASELINE | J36: S3 | K36: S4
C37: H₂ produced (kgH₂/yr) | D37: =+IF('1- INPUTS'!C11="ReSOFC",H2capacity*CapacityFactor*365,"0") -> 0 | E37: Investment Cost | F37: 0 | G37: =+DB!C364 ->  | H37: =+DB!D364 ->  | I37: =+DB!E364 ->  | J37: =+DB!F364 ->  | K37: =+DB!G364 -> 
C38: System Power (kW) | D38: =+IF(D37="0","0",GrossElCapacity) -> 0 | E38: WACC | F38: 0 | G38: =+DB!C367 ->  | H38: =+DB!D367 ->  | I38: =+DB!E367 ->  | J38: =+DB!F367 ->  | K38: =+DB!G367 -> 
C39: Investment cost (€/kW) | D39: =+IF(D37="0","0",TIC) -> 0 | E39: Technical lifetime of plant | F39: 0 | G39: =+DB!C370 ->  | H39: =+DB!D370 ->  | I39: =+DB!E370 ->  | J39: =+DB!F370 ->  | K39: =+DB!G370 -> 
C40: Investment cost (€) | D40: =+IF(D37="0","0",D39*D38) -> 0 | E40: Fixed operation cost | F40: 0 | G40: =+DB!C373 ->  | H40: =+DB!D373 ->  | I40: =+DB!E373 ->  | J40: =+DB!F373 ->  | K40: =+DB!G373 -> 
C41: WACC (%) | D41: =+IF(D37="0","0",0.12) -> 0 | E41: Electricity usage | F41: 0 | G41: =+DB!C379 ->  | H41: =+DB!D379 ->  | I41: =+DB!E379 ->  | J41: =+DB!F379 ->  | K41: =+DB!G379 -> 
C42: Technical lifetime of plant (yrs) | D42: =+IF(D37="0","0",System_Lifetime) -> 0 | E42: Electricity price | F42: 0 | G42: =+DB!C383 ->  | H42: =+DB!D383 ->  | I42: =+DB!E383 ->  | J42: =+DB!F383 ->  | K42: =+DB!G383 -> 
C43: Annualized capital cost (€/yr) | D43: =+IF('1- INPUTS'!C11="ReSOFC",-PMT(D41,D42,D40),"0") -> 0 | E43: Heat usage | F43: 0 | G43: =+DB!C386 ->  | H43: =+DB!D386 ->  | I43: =+DB!E386 ->  | J43: =+DB!F386 ->  | K43: =+DB!G386 -> 
C44: Annualized Fixed O&M (€/yr) | D44: =IF('1- INPUTS'!C11="ReSOFC",'1- INPUTS'!C78*D$40,"0") -> 0 | E44: Heat cost | F44: 0 | G44: =+DB!C390 ->  | H44: =+DB!D390 ->  | I44: =+DB!E390 ->  | J44: =+DB!F390 ->  | K44: =+DB!G390 -> 
C45: Energy Cost (€/yr) | D45: =IF('1- INPUTS'!C11="ReSOFC",'2-LCI'!D106*ElectricityCost,"0") -> 0 | E45: Water consumption | F45: 0 | G45: =+DB!C393 ->  | H45: =+DB!D393 ->  | I45: =+DB!E393 ->  | J45: =+DB!F393 ->  | K45: =+DB!G393 -> 
C46: Heat cost (€/yr) | D46: =+'2-LCI'!D107*HeatCost -> 0 | E46: Water cost | F46: 0 | G46: =+DB!C397 ->  | H46: =+DB!D397 ->  | I46: =+DB!E397 ->  | J46: =+DB!F397 ->  | K46: =+DB!G397 -> 
C47: Water cost (€/yr) | D47: =+IF('1- INPUTS'!C11="ReSOFC",'2-LCI'!D108*H2Ocost,"0") -> 0 | E47: Utilization | F47: 0 | G47: =+DB!C400 ->  | H47: =+DB!D400 ->  | I47: =+DB!E400 ->  | J47: =+DB!F400 ->  | K47: =+DB!G400 -> 
C48: By-product income (€/yr) | D48: =+IF(D37="0","0",H2CPMP*'2-LCI'!D105) -> 0 | E48: Sensitivity analysis | F48: Variation | G48: S1 | H48: S2 | I48: BASELINE | J48: S3 | K48: S4
C49: TOTAL (€/year) | D49: =+IF('1- INPUTS'!C11="ReSOFC",D43+D44+D45+D46+D47,"0") -> 0 | E49: Investment Cost | G49: =+DB!C363 -> 0 | H49: =+DB!D363 -> 0 | I49: =+DB!E363 -> 0 | J49: =+DB!F363 -> 0 | K49: =+DB!G363 -> 0
C50: Levelized Cost of Fuel (€/kgH₂) | D50: =+IF('1- INPUTS'!C11="ReSOFC",(D49-D48)/D37, "0") -> 0 | E50: WACC | G50: =+DB!C366 -> 0 | H50: =+DB!D366 -> 0 | I50: =+DB!E366 -> 0 | J50: =+DB!F366 -> 0 | K50: =+DB!G366 -> 0
E51: Technical lifetime of plant | G51: =+DB!C369 -> 0 | H51: =+DB!D369 -> 0 | I51: =+DB!E369 -> 0 | J51: =+DB!F369 -> 0 | K51: =+DB!G369 -> 0
E52: Fixed operation cost | G52: =+DB!C372 -> 0 | H52: =+DB!D372 -> 0 | I52: =+DB!E372 -> 0 | J52: =+DB!F372 -> 0 | K52: =+DB!G372 -> 0
E53: Electricity usage | G53: =+DB!C380 ->  | H53: =+DB!D380 ->  | I53: =+DB!E380 ->  | J53: =+DB!F380 ->  | K53: =+DB!G380 -> 
E54: Electricity price | G54: =+DB!C382 -> 0 | H54: =+DB!D382 -> 0 | I54: =+DB!E382 -> 0 | J54: =+DB!F382 -> 0 | K54: =+DB!G382 -> 0
E55: Heat usage | G55: =+DB!C387 ->  | H55: =+DB!D387 ->  | I55: =+DB!E387 ->  | J55: =+DB!F387 ->  | K55: =+DB!G387 -> 
E56: Heat cost | G56: =+DB!C389 -> 0 | H56: =+DB!D389 -> 0 | I56: =+DB!E389 -> 0 | J56: =+DB!F389 -> 0 | K56: =+DB!G389 -> 0
E57: Water consumption | G57: =+DB!C394 ->  | H57: =+DB!D394 ->  | I57: =+DB!E394 ->  | J57: =+DB!F394 ->  | K57: =+DB!G394 -> 
E58: Water cost | G58: =+DB!C400 ->  | H58: =+DB!D400 ->  | I58: =+DB!E400 ->  | J58: =+DB!F400 ->  | K58: =+DB!G400 -> 
E59: Utilization | G59: =+DB!C399 -> 0 | H59: =+DB!D399 -> 0 | I59: =+DB!E399 -> 0 | J59: =+DB!F399 -> 0 | K59: =+DB!G399 -> 0

Sheet DB
H5: 2 | I5: =+H5+1 -> 3 | J5: =+I5+1 -> 4 | K5: 5 | L5: 6 | M5: 7 | N5: 8 | O5: 9 | P5: 10 | Q5: 11 | R5: 12 | S5: 13 | T5: 14 | U5: 15 | V5: 16 | W5: 17 | X5: 18 | Y5: 19 | Z5: 20 | AA5: 21
C6: TOOL SUPPORT CALCULATION
C8: ENVIRONMENTAL IMPACT ASSESSMENT
H9: GWP | I9: ODP | J9: IRP | K9: EOFP | L9: PMFP | M9: HOFP | N9: TAP | O9: FEP | P9: TETP | Q9: FETP | R9: METP | S9: HTPc | T9: HTPnc | U9: LOP | V9: SOP | W9: FFP | X9: WCP | Y9: HH | Z9: ED | AA9: RA
C10: Operation
G11: NATURAL GAS | H11: 0.018468886 | I11: 1.7505907e-08 | J11: 0.00018783112 | K11: 2.9262826e-05 | L11: 8.8810118e-06 | M11: 3.19521e-05 | N11: 3.7155032e-05 | O11: 4.1437043e-07 | P11: 1.2296321e-06 | Q11: 3.2348157e-05 | R11: 0.00013489832 | S11: 0.0003017542 | T11: 0.035276625 | U11: 3.2224989e-05 | V11: 2.0034802e-05 | W11: 0.026341566 | X11: 0.0033230098 | Y11: 3.136221e-08 | Z11: 1.0927569e-10 | AA11: 0.0094302029
G12: METHANE FROM BIOGAS | H12: 0.059285922 | I12: 8.0347854e-08 | J12: 0.013670583 | K12: 2.1560465e-05 | L12: 1.3256849e-05 | M12: 2.2264519e-05 | N12: 7.4357261e-05 | O12: 5.2292064e-06 | P12: 1.4058613e-05 | Q12: 0.0006218025 | R12: 0.00087462398 | S12: 0.00082140629 | T12: 0.59062936 | U12: 0.00024445529 | V12: 0.00014271353 | W12: 0.0040146293 | X12: 0.18308312 | Y12: 3.136221e-08 | Z12: 1.0927569e-10 | AA12: 0.0094302029
G13: Calculated fuel | H13: =+IF('1- INPUTS'!$C$39=$G11,(('2-LCI'!$D106*LHVFuel_2*System_Lifetime)/(Product_Generated*System_Lifetime)*H11),(('2-LCI'!$D106*LHVFuel_2*System_Lifetime)/(Product_Generated*System_Lifetime)*H12)) ->  | I13: =+IF('1- INPUTS'!$C$39=$G11,(('2-LCI'!$D106*LHVFuel_2*System_Lifetime)/(Product_Generated*System_Lifetime)*I11),(('2-LCI'!$D106*LHVFuel_2*System_Lifetime)/(Product_Generated*System_Lifetime)*I12)) ->  | J13: =+IF('1- INPUTS'!$C$39=$G11,(('2-LCI'!$D106*LHVFuel_2*System_Lifetime)/(Product_Generated*System_Lifetime)*J11),(('2-LCI'!$D106*LHVFuel_2*System_Lifetime)/(Product_Generated*System_Lifetime)*J12)) ->  | K13: =+IF('1- INPUTS'!$C$39=$G11,(('2-LCI'!$D106*LHVFuel_2*System_Lifetime)/(Product_Generated*System_Lifetime)*K11),(('2-LCI'!$D106*LHVFuel_2*System_Lifetime)/(Product_Generated*System_Lifetime)*K12)) ->  | L13: =+IF('1- INPUTS'!$C$39=$G11,(('2-LCI'!$D106*LHVFuel_2*System_Lifetime)/(Product_Generated*System_Lifetime)*L11),(('2-LCI'!$D106*LHVFuel_2*System_Lifetime)/(Product_Generated*System_Lifetime)*L12)) ->  | M13: =+IF('1- INPUTS'!$C$39=$G11,(('2-LCI'!$D106*LHVFuel_2*System_Lifetime)/(Product_Generated*System_Lifetime)*M11),(('2-LCI'!$D106*LHVFuel_2*System_Lifetime)/(Product_Generated*System_Lifetime)*M12)) ->  | N13: =+IF('1- INPUTS'!$C$39=$G11,(('2-LCI'!$D106*LHVFuel_2*System_Lifetime)/(Product_Generated*System_Lifetime)*N11),(('2-LCI'!$D106*LHVFuel_2*System_Lifetime)/(Product_Generated*System_Lifetime)*N12)) ->  | O13: =+IF('1- INPUTS'!$C$39=$G11,(('2-LCI'!$D106*LHVFuel_2*System_Lifetime)/(Product_Generated*System_Lifetime)*O11),(('2-LCI'!$D106*LHVFuel_2*System_Lifetime)/(Product_Generated*System_Lifetime)*O12)) ->  | P13: =+IF('1- INPUTS'!$C$39=$G11,(('2-LCI'!$D106*LHVFuel_2*System_Lifetime)/(Product_Generated*System_Lifetime)*P11),(('2-LCI'!$D106*LHVFuel_2*System_Lifetime)/(Product_Generated*System_Lifetime)*P12)) ->  | Q13: =+IF('1- INPUTS'!$C$39=$G11,(('2-LCI'!$D106*LHVFuel_2*System_Lifetime)/(Product_Generated*System_Lifetime)*Q11),(('2-LCI'!$D106*LHVFuel_2*System_Lifetime)/(Product_Generated*System_Lifetime)*Q12)) ->  | R13: =+IF('1- INPUTS'!$C$39=$G11,(('2-LCI'!$D106*LHVFuel_2*System_Lifetime)/(Product_Generated*System_Lifetime)*R11),(('2-LCI'!$D106*LHVFuel_2*System_Lifetime)/(Product_Generated*System_Lifetime)*R12)) ->  | S13: =+IF('1- INPUTS'!$C$39=$G11,(('2-LCI'!$D106*LHVFuel_2*System_Lifetime)/(Product_Generated*System_Lifetime)*S11),(('2-LCI'!$D106*LHVFuel_2*System_Lifetime)/(Product_Generated*System_Lifetime)*S12)) ->  | T13: =+IF('1- INPUTS'!$C$39=$G11,(('2-LCI'!$D106*LHVFuel_2*System_Lifetime)/(Product_Generated*System_Lifetime)*T11),(('2-LCI'!$D106*LHVFuel_2*System_Lifetime)/(Product_Generated*System_Lifetime)*T12)) ->  | U13: =+IF('1- INPUTS'!$C$39=$G11,(('2-LCI'!$D106*LHVFuel_2*System_Lifetime)/(Product_Generated*System_Lifetime)*U11),(('2-LCI'!$D106*LHVFuel_2*System_Lifetime)/(Product_Generated*System_Lifetime)*U12)) ->  | V13: =+IF('1- INPUTS'!$C$39=$G11,(('2-LCI'!$D106*LHVFuel_2*System_Lifetime)/(Product_Generated*System_Lifetime)*V11),(('2-LCI'!$D106*LHVFuel_2*System_Lifetime)/(Product_Generated*System_Lifetime)*V12)) ->  | W13: =+IF('1- INPUTS'!$C$39=$G11,(('2-LCI'!$D106*LHVFuel_2*System_Lifetime)/(Product_Generated*System_Lifetime)*W11),(('2-LCI'!$D106*LHVFuel_2*System_Lifetime)/(Product_Generated*System_Lifetime)*W12)) ->  | X13: =+IF('1- INPUTS'!$C$39=$G11,(('2-LCI'!$D106*LHVFuel_2*System_Lifetime)/(Product_Generated*System_Lifetime)*X11),(('2-LCI'!$D106*LHVFuel_2*System_Lifetime)/(Product_Generated*System_Lifetime)*X12)) ->  | Y13: =+IF('1- INPUTS'!$C$39=$G11,(('2-LCI'!$D106*LHVFuel_2*System_Lifetime)/(Product_Generated*System_Lifetime)*Y11),(('2-LCI'!$D106*LHVFuel_2*System_Lifetime)/(Product_Generated*System_Lifetime)*Y12)) ->  | Z13: =+IF('1- INPUTS'!$C$39=$G11,(('2-LCI'!$D106*LHVFuel_2*System_Lifetime)/(Product_Generated*System_Lifetime)*Z11),(('2-LCI'!$D106*LHVFuel_2*System_Lifetime)/(Product_Generated*System_Lifetime)*Z12)) ->  | AA13: =+IF('1- INPUTS'!$C$39=$G11,(('2-LCI'!$D106*LHVFuel_2*System_Lifetime)/(Product_Generated*System_Lifetime)*AA11),(('2-LCI'!$D106*LHVFuel_2*System_Lifetime)/(Product_Generated*System_Lifetime)*AA12)) -> 
G14: Fuel consumption | H14: =+IF('1- INPUTS'!$C$54="No allocation",H13,IF('1- INPUTS'!$C$54="Allocation exergy",H13*ELALLF,IF('1- INPUTS'!$C$54="Allocation energy",H13*ELALLF))) ->  | I14: =+IF('1- INPUTS'!$C$54="No allocation",I13,IF('1- INPUTS'!$C$54="Allocation exergy",I13*ELALLF,IF('1- INPUTS'!$C$54="Allocation energy",I13*ELALLF))) ->  | J14: =+IF('1- INPUTS'!$C$54="No allocation",J13,IF('1- INPUTS'!$C$54="Allocation exergy",J13*ELALLF,IF('1- INPUTS'!$C$54="Allocation energy",J13*ELALLF))) ->  | K14: =+IF('1- INPUTS'!$C$54="No allocation",K13,IF('1- INPUTS'!$C$54="Allocation exergy",K13*ELALLF,IF('1- INPUTS'!$C$54="Allocation energy",K13*ELALLF))) ->  | L14: =+IF('1- INPUTS'!$C$54="No allocation",L13,IF('1- INPUTS'!$C$54="Allocation exergy",L13*ELALLF,IF('1- INPUTS'!$C$54="Allocation energy",L13*ELALLF))) ->  | M14: =+IF('1- INPUTS'!$C$54="No allocation",M13,IF('1- INPUTS'!$C$54="Allocation exergy",M13*ELALLF,IF('1- INPUTS'!$C$54="Allocation energy",M13*ELALLF))) ->  | N14: =+IF('1- INPUTS'!$C$54="No allocation",N13,IF('1- INPUTS'!$C$54="Allocation exergy",N13*ELALLF,IF('1- INPUTS'!$C$54="Allocation energy",N13*ELALLF))) ->  | O14: =+IF('1- INPUTS'!$C$54="No allocation",O13,IF('1- INPUTS'!$C$54="Allocation exergy",O13*ELALLF,IF('1- INPUTS'!$C$54="Allocation energy",O13*ELALLF))) ->  | P14: =+IF('1- INPUTS'!$C$54="No allocation",P13,IF('1- INPUTS'!$C$54="Allocation exergy",P13*ELALLF,IF('1- INPUTS'!$C$54="Allocation energy",P13*ELALLF))) ->  | Q14: =+IF('1- INPUTS'!$C$54="No allocation",Q13,IF('1- INPUTS'!$C$54="Allocation exergy",Q13*ELALLF,IF('1- INPUTS'!$C$54="Allocation energy",Q13*ELALLF))) ->  | R14: =+IF('1- INPUTS'!$C$54="No allocation",R13,IF('1- INPUTS'!$C$54="Allocation exergy",R13*ELALLF,IF('1- INPUTS'!$C$54="Allocation energy",R13*ELALLF))) ->  | S14: =+IF('1- INPUTS'!$C$54="No allocation",S13,IF('1- INPUTS'!$C$54="Allocation exergy",S13*ELALLF,IF('1- INPUTS'!$C$54="Allocation energy",S13*ELALLF))) ->  | T14: =+IF('1- INPUTS'!$C$54="No allocation",T13,IF('1- INPUTS'!$C$54="Allocation exergy",T13*ELALLF,IF('1- INPUTS'!$C$54="Allocation energy",T13*ELALLF))) ->  | U14: =+IF('1- INPUTS'!$C$54="No allocation",U13,IF('1- INPUTS'!$C$54="Allocation exergy",U13*ELALLF,IF('1- INPUTS'!$C$54="Allocation energy",U13*ELALLF))) ->  | V14: =+IF('1- INPUTS'!$C$54="No allocation",V13,IF('1- INPUTS'!$C$54="Allocation exergy",V13*ELALLF,IF('1- INPUTS'!$C$54="Allocation energy",V13*ELALLF))) ->  | W14: =+IF('1- INPUTS'!$C$54="No allocation",W13,IF('1- INPUTS'!$C$54="Allocation exergy",W13*ELALLF,IF('1- INPUTS'!$C$54="Allocation energy",W13*ELALLF))) ->  | X14: =+IF('1- INPUTS'!$C$54="No allocation",X13,IF('1- INPUTS'!$C$54="Allocation exergy",X13*ELALLF,IF('1- INPUTS'!$C$54="Allocation energy",X13*ELALLF))) ->  | Y14: =+IF('1- INPUTS'!$C$54="No allocation",Y13,IF('1- INPUTS'!$C$54="Allocation exergy",Y13*ELALLF,IF('1- INPUTS'!$C$54="Allocation energy",Y13*ELALLF))) ->  | Z14: =+IF('1- INPUTS'!$C$54="No allocation",Z13,IF('1- INPUTS'!$C$54="Allocation exergy",Z13*ELALLF,IF('1- INPUTS'!$C$54="Allocation energy",Z13*ELALLF))) ->  | AA14: =+IF('1- INPUTS'!$C$54="No allocation",AA13,IF('1- INPUTS'!$C$54="Allocation exergy",AA13*ELALLF,IF('1- INPUTS'!$C$54="Allocation energy",AA13*ELALLF))) -> 
G16: Electricity at FC | H16: =+IF('1- INPUTS'!$C54="No allocation",(CVCO2*GWP_CO2+CVCH4*GWP_CH4+CVN2O*GWP_N2O),((CVCO2*GWP_CO2+CVCH4*GWP_CH4+CVN2O*GWP_N2O)*ELALLF)) -> 0.336000864 | I16: =+IF('1- INPUTS'!$C54="No allocation",ODP_N2O*CVN2O,((ODP_N2O*CVN2O)*ELALLF)) -> 0 | J16: 0 | K16: =+IF('1- INPUTS'!C54="No allocation",CVNOx*HOFP_Nox+CVNMVOC*HOFP_NMVOC,(CVNOx*HOFP_Nox+((CVNMVOC*HOFP_NMVOC)*ELALLF))) -> 1.2756e-08 | L16: =+IF('1- INPUTS'!C54="No allocation",CVNOx*PMPF_Nox+CVSO2*PMPF_SO2+CVPM2.5*PMPF_PM2.5,((CVNOx*PMPF_Nox+CVSO2*PMPF_SO2+CVPM2.5*PMPF_PM2.5)*ELALLF)) -> 9.57e-10 | M16: =+IF('1- INPUTS'!C54="No allocation",CVNOx*EOFP_Nox+CVNMVOC*EOFP_NMVOC,((CVNOx*EOFP_Nox+CVNMVOC*EOFP_NMVOC)*ELALLF)) -> 1.3218e-08 | N16: =+IF('1- INPUTS'!C54="No allocation",CVNOx*TAP_NOx+CVSO2*TAP_SO2,((CVNOx*TAP_NOx+CVSO2*TAP_SO2)*ELALLF)) -> 7.62e-09 | O16: 0 | P16: 0 | Q16: 0 | R16: 0 | S16: 0 | T16: 0 | U16: 0 | V16: 0 | W16: 0 | X16: 0 | Y16: =+H16*GWP_HH+I16*ODP_HH+J16*IRP_HH+K16*HOFP_HH+L16*PMPF_HH+S16*HTPC_HH+T16*HTPNC_HH+X16*WCP_HH -> 3.118094154e-07 | Z16: =+H16*GWP_FE+H16*GWP_TE+M16*EOFP_TE+N16*TAP_TE+O16*FEP_FE+P16*TETP_TE+Q16*FETP_FE+R16*METP_ME+U16*LOP_TE+X16*WCP_FE+X16*WCP_TE -> 9.408314438e-10 | AA16: =+V16*SOP+W16 -> 0
G18: Electricity supply | H18: =+IF('1- INPUTS'!$C$80="European average",IF('1- INPUTS'!$C74="No allocation",'1- INPUTS'!$C63*H$236,'1- INPUTS'!$C76*H$236),IF('1- INPUTS'!$C74="No allocation",'1- INPUTS'!$C63*H19,'1- INPUTS'!$C76*H19)) -> 0 | I18: =+IF('1- INPUTS'!$C$80="European average",IF('1- INPUTS'!$C74="No allocation",'1- INPUTS'!$C63*I$236,'1- INPUTS'!$C76*I$236),IF('1- INPUTS'!$C74="No allocation",'1- INPUTS'!$C63*I19,'1- INPUTS'!$C76*I19)) -> 0 | J18: =+IF('1- INPUTS'!$C$80="European average",IF('1- INPUTS'!$C74="No allocation",'1- INPUTS'!$C63*J$236,'1- INPUTS'!$C76*J$236),IF('1- INPUTS'!$C74="No allocation",'1- INPUTS'!$C63*J19,'1- INPUTS'!$C76*J19)) -> 0 | K18: =+IF('1- INPUTS'!$C$80="European average",IF('1- INPUTS'!$C74="No allocation",'1- INPUTS'!$C63*K$236,'1- INPUTS'!$C76*K$236),IF('1- INPUTS'!$C74="No allocation",'1- INPUTS'!$C63*K19,'1- INPUTS'!$C76*K19)) -> 0 | L18: =+IF('1- INPUTS'!$C$80="European average",IF('1- INPUTS'!$C74="No allocation",'1- INPUTS'!$C63*L$236,'1- INPUTS'!$C76*L$236),IF('1- INPUTS'!$C74="No allocation",'1- INPUTS'!$C63*L19,'1- INPUTS'!$C76*L19)) -> 0 | M18: =+IF('1- INPUTS'!$C$80="European average",IF('1- INPUTS'!$C74="No allocation",'1- INPUTS'!$C63*M$236,'1- INPUTS'!$C76*M$236),IF('1- INPUTS'!$C74="No allocation",'1- INPUTS'!$C63*M19,'1- INPUTS'!$C76*M19)) -> 0 | N18: =+IF('1- INPUTS'!$C$80="European average",IF('1- INPUTS'!$C74="No allocation",'1- INPUTS'!$C63*N$236,'1- INPUTS'!$C76*N$236),IF('1- INPUTS'!$C74="No allocation",'1- INPUTS'!$C63*N19,'1- INPUTS'!$C76*N19)) -> 0 | O18: =+IF('1- INPUTS'!$C$80="European average",IF('1- INPUTS'!$C74="No allocation",'1- INPUTS'!$C63*O$236,'1- INPUTS'!$C76*O$236),IF('1- INPUTS'!$C74="No allocation",'1- INPUTS'!$C63*O19,'1- INPUTS'!$C76*O19)) -> 0 | P18: =+IF('1- INPUTS'!$C$80="European average",IF('1- INPUTS'!$C74="No allocation",'1- INPUTS'!$C63*P$236,'1- INPUTS'!$C76*P$236),IF('1- INPUTS'!$C74="No allocation",'1- INPUTS'!$C63*P19,'1- INPUTS'!$C76*P19)) -> 0 | Q18: =+IF('1- INPUTS'!$C$80="European average",IF('1- INPUTS'!$C74="No allocation",'1- INPUTS'!$C63*Q$236,'1- INPUTS'!$C76*Q$236),IF('1- INPUTS'!$C74="No allocation",'1- INPUTS'!$C63*Q19,'1- INPUTS'!$C76*Q19)) -> 0 | R18: =+IF('1- INPUTS'!$C$80="European average",IF('1- INPUTS'!$C74="No allocation",'1- INPUTS'!$C63*R$236,'1- INPUTS'!$C76*R$236),IF('1- INPUTS'!$C74="No allocation",'1- INPUTS'!$C63*R19,'1- INPUTS'!$C76*R19)) -> 0 | S18: =+IF('1- INPUTS'!$C$80="European average",IF('1- INPUTS'!$C74="No allocation",'1- INPUTS'!$C63*S$236,'1- INPUTS'!$C76*S$236),IF('1- INPUTS'!$C74="No allocation",'1- INPUTS'!$C63*S19,'1- INPUTS'!$C76*S19)) -> 0 | T18: =+IF('1- INPUTS'!$C$80="European average",IF('1- INPUTS'!$C74="No allocation",'1- INPUTS'!$C63*T$236,'1- INPUTS'!$C76*T$236),IF('1- INPUTS'!$C74="No allocation",'1- INPUTS'!$C63*T19,'1- INPUTS'!$C76*T19)) -> 0 | U18: =+IF('1- INPUTS'!$C$80="European average",IF('1- INPUTS'!$C74="No allocation",'1- INPUTS'!$C63*U$236,'1- INPUTS'!$C76*U$236),IF('1- INPUTS'!$C74="No allocation",'1- INPUTS'!$C63*U19,'1- INPUTS'!$C76*U19)) -> 0 | V18: =+IF('1- INPUTS'!$C$80="European average",IF('1- INPUTS'!$C74="No allocation",'1- INPUTS'!$C63*V$236,'1- INPUTS'!$C76*V$236),IF('1- INPUTS'!$C74="No allocation",'1- INPUTS'!$C63*V19,'1- INPUTS'!$C76*V19)) -> 0 | W18: =+IF('1- INPUTS'!$C$80="European average",IF('1- INPUTS'!$C74="No allocation",'1- INPUTS'!$C63*W$236,'1- INPUTS'!$C76*W$236),IF('1- INPUTS'!$C74="No allocation",'1- INPUTS'!$C63*W19,'1- INPUTS'!$C76*W19)) -> 0 | X18: =+IF('1- INPUTS'!$C$80="European average",IF('1- INPUTS'!$C74="No allocation",'1- INPUTS'!$C63*X$236,'1- INPUTS'!$C76*X$236),IF('1- INPUTS'!$C74="No allocation",'1- INPUTS'!$C63*X19,'1- INPUTS'!$C76*X19)) -> 0 | Y18: =+IF('1- INPUTS'!$C$80="European average",IF('1- INPUTS'!$C74="No allocation",'1- INPUTS'!$C63*Y$236,'1- INPUTS'!$C76*Y$236),IF('1- INPUTS'!$C74="No allocation",'1- INPUTS'!$C63*Y19,'1- INPUTS'!$C76*Y19)) -> 0 | Z18: =+IF('1- INPUTS'!$C$80="European average",IF('1- INPUTS'!$C74="No allocation",'1- INPUTS'!$C63*Z$236,'1- INPUTS'!$C76*Z$236),IF('1- INPUTS'!$C74="No allocation",'1- INPUTS'!$C63*Z19,'1- INPUTS'!$C76*Z19)) -> 0 | AA18: =+IF('1- INPUTS'!$C$80="European average",IF('1- INPUTS'!$C74="No allocation",'1- INPUTS'!$C63*AA$236,'1- INPUTS'!$C76*AA$236),IF('1- INPUTS'!$C74="No allocation",'1- INPUTS'!$C63*AA19,'1- INPUTS'!$C76*AA19)) -> 0
G19: Electricity mix | H19: =+'1- INPUTS'!$C$81*H20+'1- INPUTS'!$C$82*H21+'1- INPUTS'!$C$83*H22+'1- INPUTS'!$C$84*H23+'1- INPUTS'!$C$85*H24+'1- INPUTS'!$C$86*H25+'1- INPUTS'!$C$87*H26+'1- INPUTS'!$C$88*H27+'1- INPUTS'!$C$89*H28+'1- INPUTS'!$C$90*H29+'1- INPUTS'!$C$91*H30+'1- INPUTS'!$C$92*H31+'1- INPUTS'!$C$93*H32+'1- INPUTS'!$C$94*H33+'1- INPUTS'!$C$95*H34+'1- INPUTS'!$C$96*H35+'1- INPUTS'!$C$97*H36 -> 0 | I19: =+'1- INPUTS'!$C$81*I20+'1- INPUTS'!$C$82*I21+'1- INPUTS'!$C$83*I22+'1- INPUTS'!$C$84*I23+'1- INPUTS'!$C$85*I24+'1- INPUTS'!$C$86*I25+'1- INPUTS'!$C$87*I26+'1- INPUTS'!$C$88*I27+'1- INPUTS'!$C$89*I28+'1- INPUTS'!$C$90*I29+'1- INPUTS'!$C$91*I30+'1- INPUTS'!$C$92*I31+'1- INPUTS'!$C$93*I32+'1- INPUTS'!$C$94*I33+'1- INPUTS'!$C$95*I34+'1- INPUTS'!$C$96+I35+'1- INPUTS'!$C$97*I36 -> 4.079203e-08 | J19: =+'1- INPUTS'!$C$81*J20+'1- INPUTS'!$C$82*J21+'1- INPUTS'!$C$83*J22+'1- INPUTS'!$C$84*J23+'1- INPUTS'!$C$85*J24+'1- INPUTS'!$C$86*J25+'1- INPUTS'!$C$87*J26+'1- INPUTS'!$C$88*J27+'1- INPUTS'!$C$89*J28+'1- INPUTS'!$C$90*J29+'1- INPUTS'!$C$91*J30+'1- INPUTS'!$C$92*J31+'1- INPUTS'!$C$93*J32+'1- INPUTS'!$C$94*J33+'1- INPUTS'!$C$95*J34+'1- INPUTS'!$C$96+J35+'1- INPUTS'!$C$97*J36 -> 0.01874917 | K19: =+'1- INPUTS'!$C$81*K20+'1- INPUTS'!$C$82*K21+'1- INPUTS'!$C$83*K22+'1- INPUTS'!$C$84*K23+'1- INPUTS'!$C$85*K24+'1- INPUTS'!$C$86*K25+'1- INPUTS'!$C$87*K26+'1- INPUTS'!$C$88*K27+'1- INPUTS'!$C$89*K28+'1- INPUTS'!$C$90*K29+'1- INPUTS'!$C$91*K30+'1- INPUTS'!$C$92*K31+'1- INPUTS'!$C$93*K32+'1- INPUTS'!$C$94*K33+'1- INPUTS'!$C$95*K34+'1- INPUTS'!$C$96+K35+'1- INPUTS'!$C$97*K36 -> 0.0001568843 | L19: =+'1- INPUTS'!$C$81*L20+'1- INPUTS'!$C$82*L21+'1- INPUTS'!$C$83*L22+'1- INPUTS'!$C$84*L23+'1- INPUTS'!$C$85*L24+'1- INPUTS'!$C$86*L25+'1- INPUTS'!$C$87*L26+'1- INPUTS'!$C$88*L27+'1- INPUTS'!$C$89*L28+'1- INPUTS'!$C$90*L29+'1- INPUTS'!$C$91*L30+'1- INPUTS'!$C$92*L31+'1- INPUTS'!$C$93*L32+'1- INPUTS'!$C$94*L33+'1- INPUTS'!$C$95*L34+'1- INPUTS'!$C$96+L35+'1- INPUTS'!$C$97*L36 -> 8.1672973e-05 | M19: =+'1- INPUTS'!$C$81*M20+'1- INPUTS'!$C$82*M21+'1- INPUTS'!$C$83*M22+'1- INPUTS'!$C$84*M23+'1- INPUTS'!$C$85*M24+'1- INPUTS'!$C$86*M25+'1- INPUTS'!$C$87*M26+'1- INPUTS'!$C$88*M27+'1- INPUTS'!$C$89*M28+'1- INPUTS'!$C$90*M29+'1- INPUTS'!$C$91*M30+'1- INPUTS'!$C$92*M31+'1- INPUTS'!$C$93*M32+'1- INPUTS'!$C$94*M33+'1- INPUTS'!$C$95*M34+'1- INPUTS'!$C$96+M35+'1- INPUTS'!$C$97*M36 -> 0.00016573062 | N19: =+'1- INPUTS'!$C$81*N20+'1- INPUTS'!$C$82*N21+'1- INPUTS'!$C$83*N22+'1- INPUTS'!$C$84*N23+'1- INPUTS'!$C$85*N24+'1- INPUTS'!$C$86*N25+'1- INPUTS'!$C$87*N26+'1- INPUTS'!$C$88*N27+'1- INPUTS'!$C$89*N28+'1- INPUTS'!$C$90*N29+'1- INPUTS'!$C$91*N30+'1- INPUTS'!$C$92*N31+'1- INPUTS'!$C$93*N32+'1- INPUTS'!$C$94*N33+'1- INPUTS'!$C$95*N34+'1- INPUTS'!$C$96+N35+'1- INPUTS'!$C$97*N36 -> 0.00026728399 | O19: =+'1- INPUTS'!$C$81*O20+'1- INPUTS'!$C$82*O21+'1- INPUTS'!$C$83*O22+'1- INPUTS'!$C$84*O23+'1- INPUTS'!$C$85*O24+'1- INPUTS'!$C$86*O25+'1- INPUTS'!$C$87*O26+'1- INPUTS'!$C$88*O27+'1- INPUTS'!$C$89*O28+'1- INPUTS'!$C$90*O29+'1- INPUTS'!$C$91*O30+'1- INPUTS'!$C$92*O31+'1- INPUTS'!$C$93*O32+'1- INPUTS'!$C$94*O33+'1- INPUTS'!$C$95*O34+'1- INPUTS'!$C$96+O35+'1- INPUTS'!$C$97*O36 -> 5.7506062e-05 | P19: =+'1- INPUTS'!$C$81*P20+'1- INPUTS'!$C$82*P21+'1- INPUTS'!$C$83*P22+'1- INPUTS'!$C$84*P23+'1- INPUTS'!$C$85*P24+'1- INPUTS'!$C$86*P25+'1- INPUTS'!$C$87*P26+'1- INPUTS'!$C$88*P27+'1- INPUTS'!$C$89*P28+'1- INPUTS'!$C$90*P29+'1- INPUTS'!$C$91*P30+'1- INPUTS'!$C$92*P31+'1- INPUTS'!$C$93*P32+'1- INPUTS'!$C$94*P33+'1- INPUTS'!$C$95*P34+'1- INPUTS'!$C$96+P35+'1- INPUTS'!$C$97*P36 -> 0.00051203759 | Q19: =+'1- INPUTS'!$C$81*Q20+'1- INPUTS'!$C$82*Q21+'1- INPUTS'!$C$83*Q22+'1- INPUTS'!$C$84*Q23+'1- INPUTS'!$C$85*Q24+'1- INPUTS'!$C$86*Q25+'1- INPUTS'!$C$87*Q26+'1- INPUTS'!$C$88*Q27+'1- INPUTS'!$C$89*Q28+'1- INPUTS'!$C$90*Q29+'1- INPUTS'!$C$91*Q30+'1- INPUTS'!$C$92*Q31+'1- INPUTS'!$C$93*Q32+'1- INPUTS'!$C$94*Q33+'1- INPUTS'!$C$95*Q34+'1- INPUTS'!$C$96+Q35+'1- INPUTS'!$C$97*Q36 -> 0.0065043005 | R19: =+'1- INPUTS'!$C$81*R20+'1- INPUTS'!$C$82*R21+'1- INPUTS'!$C$83*R22+'1- INPUTS'!$C$84*R23+'1- INPUTS'!$C$85*R24+'1- INPUTS'!$C$86*R25+'1- INPUTS'!$C$87*R26+'1- INPUTS'!$C$88*R27+'1- INPUTS'!$C$89*R28+'1- INPUTS'!$C$90*R29+'1- INPUTS'!$C$91*R30+'1- INPUTS'!$C$92*R31+'1- INPUTS'!$C$93*R32+'1- INPUTS'!$C$94*R33+'1- INPUTS'!$C$95*R34+'1- INPUTS'!$C$96+R35+'1- INPUTS'!$C$97*R36 -> 0.0097927202 | S19: =+'1- INPUTS'!$C$81*S20+'1- INPUTS'!$C$82*S21+'1- INPUTS'!$C$83*S22+'1- INPUTS'!$C$84*S23+'1- INPUTS'!$C$85*S24+'1- INPUTS'!$C$86*S25+'1- INPUTS'!$C$87*S26+'1- INPUTS'!$C$88*S27+'1- INPUTS'!$C$89*S28+'1- INPUTS'!$C$90*S29+'1- INPUTS'!$C$91*S30+'1- INPUTS'!$C$92*S31+'1- INPUTS'!$C$93*S32+'1- INPUTS'!$C$94*S33+'1- INPUTS'!$C$95*S34+'1- INPUTS'!$C$96+S35+'1- INPUTS'!$C$97*S36 -> 0.0066748195 | T19: =+'1- INPUTS'!$C$81*T20+'1- INPUTS'!$C$82*T21+'1- INPUTS'!$C$83*T22+'1- INPUTS'!$C$84*T23+'1- INPUTS'!$C$85*T24+'1- INPUTS'!$C$86*T25+'1- INPUTS'!$C$87*T26+'1- INPUTS'!$C$88*T27+'1- INPUTS'!$C$89*T28+'1- INPUTS'!$C$90*T29+'1- INPUTS'!$C$91*T30+'1- INPUTS'!$C$92*T31+'1- INPUTS'!$C$93*T32+'1- INPUTS'!$C$94*T33+'1- INPUTS'!$C$95*T34+'1- INPUTS'!$C$96+T35+'1- INPUTS'!$C$97*T36 -> 7.9615758 | U19: =+'1- INPUTS'!$C$81*U20+'1- INPUTS'!$C$82*U21+'1- INPUTS'!$C$83*U22+'1- INPUTS'!$C$84*U23+'1- INPUTS'!$C$85*U24+'1- INPUTS'!$C$86*U25+'1- INPUTS'!$C$87*U26+'1- INPUTS'!$C$88*U27+'1- INPUTS'!$C$89*U28+'1- INPUTS'!$C$90*U29+'1- INPUTS'!$C$91*U30+'1- INPUTS'!$C$92*U31+'1- INPUTS'!$C$93*U32+'1- INPUTS'!$C$94*U33+'1- INPUTS'!$C$95*U34+'1- INPUTS'!$C$96+U35+'1- INPUTS'!$C$97*U36 -> 0.0011810051 | V19: =+'1- INPUTS'!$C$81*V20+'1- INPUTS'!$C$82*V21+'1- INPUTS'!$C$83*V22+'1- INPUTS'!$C$84*V23+'1- INPUTS'!$C$85*V24+'1- INPUTS'!$C$86*V25+'1- INPUTS'!$C$87*V26+'1- INPUTS'!$C$88*V27+'1- INPUTS'!$C$89*V28+'1- INPUTS'!$C$90*V29+'1- INPUTS'!$C$91*V30+'1- INPUTS'!$C$92*V31+'1- INPUTS'!$C$93*V32+'1- INPUTS'!$C$94*V33+'1- INPUTS'!$C$95*V34+'1- INPUTS'!$C$96+V35+'1- INPUTS'!$C$97*V36 -> 0.0015147563 | W19: =+'1- INPUTS'!$C$81*W20+'1- INPUTS'!$C$82*W21+'1- INPUTS'!$C$83*W22+'1- INPUTS'!$C$84*W23+'1- INPUTS'!$C$85*W24+'1- INPUTS'!$C$86*W25+'1- INPUTS'!$C$87*W26+'1- INPUTS'!$C$88*W27+'1- INPUTS'!$C$89*W28+'1- INPUTS'!$C$90*W29+'1- INPUTS'!$C$91*W30+'1- INPUTS'!$C$92*W31+'1- INPUTS'!$C$93*W32+'1- INPUTS'!$C$94*W33+'1- INPUTS'!$C$95*W34+'1- INPUTS'!$C$96+W35+'1- INPUTS'!$C$97*W36 -> 0.019052739 | X19: =+'1- INPUTS'!$C$81*X20+'1- INPUTS'!$C$82*X21+'1- INPUTS'!$C$83*X22+'1- INPUTS'!$C$84*X23+'1- INPUTS'!$C$85*X24+'1- INPUTS'!$C$86*X25+'1- INPUTS'!$C$87*X26+'1- INPUTS'!$C$88*X27+'1- INPUTS'!$C$89*X28+'1- INPUTS'!$C$90*X29+'1- INPUTS'!$C$91*X30+'1- INPUTS'!$C$92*X31+'1- INPUTS'!$C$93*X32+'1- INPUTS'!$C$94*X33+'1- INPUTS'!$C$95*X34+'1- INPUTS'!$C$96+X35+'1- INPUTS'!$C$97*X36 -> 1.3963312 | Y19: =+'1- INPUTS'!$C$81*Y20+'1- INPUTS'!$C$82*Y21+'1- INPUTS'!$C$83*Y22+'1- INPUTS'!$C$84*Y23+'1- INPUTS'!$C$85*Y24+'1- INPUTS'!$C$86*Y25+'1- INPUTS'!$C$87*Y26+'1- INPUTS'!$C$88*Y27+'1- INPUTS'!$C$89*Y28+'1- INPUTS'!$C$90*Y29+'1- INPUTS'!$C$91*Y30+'1- INPUTS'!$C$92*Y31+'1- INPUTS'!$C$93*Y32+'1- INPUTS'!$C$94*Y33+'1- INPUTS'!$C$95*Y34+'1- INPUTS'!$C$96+Y35+'1- INPUTS'!$C$97*Y36 -> 3.2919907e-06 | Z19: =+'1- INPUTS'!$C$81*Z20+'1- INPUTS'!$C$82*Z21+'1- INPUTS'!$C$83*Z22+'1- INPUTS'!$C$84*Z23+'1- INPUTS'!$C$85*Z24+'1- INPUTS'!$C$86*Z25+'1- INPUTS'!$C$87*Z26+'1- INPUTS'!$C$88*Z27+'1- INPUTS'!$C$89*Z28+'1- INPUTS'!$C$90*Z29+'1- INPUTS'!$C$91*Z30+'1- INPUTS'!$C$92*Z31+'1- INPUTS'!$C$93*Z32+'1- INPUTS'!$C$94*Z33+'1- INPUTS'!$C$95*Z34+'1- INPUTS'!$C$96+Z35+'1- INPUTS'!$C$97*Z36 -> 1.9205467e-08 | AA19: =+'1- INPUTS'!$C$81*AA20+'1- INPUTS'!$C$82*AA21+'1- INPUTS'!$C$83*AA22+'1- INPUTS'!$C$84*AA23+'1- INPUTS'!$C$85*AA24+'1- INPUTS'!$C$86*AA25+'1- INPUTS'!$C$87*AA26+'1- INPUTS'!$C$88*AA27+'1- INPUTS'!$C$89*AA28+'1- INPUTS'!$C$90*AA29+'1- INPUTS'!$C$91*AA30+'1- INPUTS'!$C$92*AA31+'1- INPUTS'!$C$93*AA32+'1- INPUTS'!$C$94*AA33+'1- INPUTS'!$C$95*AA34+'1- INPUTS'!$C$96+AA35+'1- INPUTS'!$C$97*AA36 -> 0.0059195611
G20: Electricity, hard coal, at power plant | H20: 1.1140359 | I20: 3.259977e-07 | J20: 0.015622002 | K20: 0.0022142957 | L20: 0.0011327549 | M20: 0.0022229522 | N20: 0.0041100301 | O20: 0.00049045919 | P20: 7.8896017e-05 | Q20: 0.015504617 | R20: 0.021613394 | S20: 0.034423381 | T20: 16.007638 | U20: 0.011945663 | V20: 0.00023456284 | W20: 0.26302777 | X20: 0.2259943 | Y20: 2.4696442e-06 | Z20: 7.751095e-09 | AA20: 0.025897773
G21: Electricity, oil, at power plant | H21: 0.89041651 | I21: 5.9753942e-07 | J21: 0.014998538 | K21: 0.0028144561 | L21: 0.0020390956 | M21: 0.002850883 | N21: 0.0075931023 | O21: 2.3716432e-05 | P21: 0.0010126782 | Q21: 0.0014276742 | R21: 0.005416517 | S21: 0.0062371689 | T21: 2.0329677 | U21: 0.0010414324 | V21: 0.00032531589 | W21: 0.26749858 | X21: 0.26797769 | Y21: 2.7383455e-06 | Z21: 8.1684569e-09 | AA21: 0.11950293
G22: Electricity, natural gas, at power plant | H22: 0.65895155 | I22: 2.4961353e-07 | J22: 0.0014058085 | K22: 0.0007285297 | L22: 7.4563773e-05 | M22: 0.00074972734 | N22: 0.00046825504 | O22: 3.3459222e-06 | P22: 9.9196443e-06 | Q22: 0.00022118696 | R22: 0.0010518128 | S22: 0.0022213226 | T22: 0.24006731 | U22: 0.00019092739 | V22: 0.00015756947 | W22: 0.2449091 | X22: 0.027179834 | Y22: 7.2842718e-07 | Z22: 2.4128571e-09 | AA22: 0.087677086
G23: Electricity, industrial gas, at power plant | H23: 1.7713497 | I23: 1.7325234e-07 | J23: 0.0068771692 | K23: 0.0012715943 | L23: 0.00046106094 | M23: 0.0013927862 | N23: 0.0010961202 | O23: 0.00013170533 | P23: 1.2160733e-05 | Q23: 0.0041352865 | R23: 0.0057930738 | S23: 0.0090577591 | T23: 4.2977426 | U23: 0.0040956275 | V23: 8.6169531e-05 | W23: 0.083358567 | X23: 0.07891111 | Y23: 2.1686413e-06 | Z23: 6.5582131e-09 | AA23: 0.0079355097
G24: Electricity, at cogen ORC 1400kWth, wood | H24: 0.18227565 | I24: 4.8288509e-06 | J24: 0.012619331 | K24: 0.0013697307 | L24: 0.00027851428 | M24: 0.0013815745 | N24: 0.0013039134 | O24: 2.4363816e-05 | P24: 0.00039204913 | Q24: 0.0042159692 | R24: 0.0068730204 | S24: 0.0037272954 | T24: 12.786799 | U24: 0.098172995 | V24: 0.00035583146 | W24: 0.016308702 | X24: 0.15461165 | Y24: 7.8917263e-07 | Z24: 3.9624357e-09 | AA24: 0.0058244171 | AE24: GWP | AG24: PMPF
G25: Electricity, at cogen 6400kWth, wood | H25: 0.094644156 | I25: 2.5942318e-06 | J25: 0.0065298296 | K25: 0.00060344757 | L25: 8.286757e-05 | M25: 0.00060964923 | N25: 0.00064523161 | O25: 1.1766514e-05 | P25: 0.00020211863 | Q25: 0.002072607 | R25: 0.0034058462 | S25: 0.0017525853 | T25: 6.6360827 | U25: 0.052603032 | V25: 0.00014866812 | W25: 0.0076348388 | X25: 0.078341654 | Y25: =+H25*GWP_HH+I25*ODP_HH+J25*IRP_HH+K25*HOFP_HH+L25*PMPF_HH+S25*HTPC_HH+T25*HTPNC_HH+X25*WCP_HH -> 3.658026613e-07 | Z25: =+H25*GWP_FE+H25*GWP_TE+M25*EOFP_TE+N25*TAP_TE+O25*FEP_FE+P25*TETP_TE+Q25*FETP_FE+R25*METP_ME+U25*LOP_TE+X25*WCP_FE+X25*WCP_TE -> 2.025086436e-09 | AA25: =+V25*SOP+W25 -> 0.007669193679 | AD25: Carbon dioxide (CO₂) | AE25: =+IF('1- INPUTS'!C54="No allocation",(CVCO2*GWP_CO2),((CVCO2*GWP_CO2)*ELALLF)) -> 0.336 | AF25: Nitrous oxide (NOx) | AG25: =+IF('[1]1- INPUTS'!AC56="No allocation",CVNOx*PMPF_Nox,((CVNOx*PMPF_Nox)*ELALLF)) -> 0
G26: Electricity, hydropower, at run-of-river power plant | H26: 0.0037637186 | I26: 8.187746e-10 | J26: 0.00053340015 | K26: 1.3905389e-05 | L26: 5.7341115e-06 | M26: 1.4163208e-05 | N26: 1.0505741e-05 | O26: 1.033733e-06 | P26: 2.3722203e-06 | Q26: 6.4483113e-05 | R26: 9.4643356e-05 | S26: 0.00071554147 | T26: 0.054201717 | U26: 0.00014987925 | V26: 0.00015211925 | W26: 0.00080856641 | X26: 45.014814 | Y26: 1.8627634e-06 | Z26: 1.1280231e-08 | AA26: 0.0003511362 | AD26: Methane (CH₄) | AE26: =+IF('1- INPUTS'!C54="No allocation",(CVCH4*GWP_CH4),((CVCH4*GWP_CH4)*ELALLF)) -> 8.64e-07 | AF26: Sulfur dioxide (SO₂) | AG26: =++IF('[1]1- INPUTS'!AC56="No allocation",CVSO2*PMPF_SO2,((CVSO2*PMPF_SO2)*ELALLF)) -> 0
G27: Electricity, hydropower, at reservoir power plant, non alpine regions | H27: 0.015156955 | I27: 1.66547e-09 | J27: 0.00090196707 | K27: 1.6349631e-05 | L27: 5.8082029e-06 | M27: 1.6648339e-05 | N27: 1.3378314e-05 | O27: 1.3373532e-06 | P27: 3.2206143e-06 | Q27: 7.7121441e-05 | R27: 0.00011300451 | S27: 0.00062813784 | T27: 0.065542389 | U27: 6.9657736e-05 | V27: 0.00019894899 | W27: 0.0010182662 | X27: 8.1238119 | Y27: 1.8055137e-05 | Z27: 1.0972546e-07 | AA27: 0.0003511362 | AD27: Dinitrogen monoxide (N₂O) | AE27: =+IF('1- INPUTS'!C54="No allocation",(CVN2O*GWP_N2O),((CVN2O*GWP_N2O)*ELALLF)) -> 0 | AF27: Fine particulate matter (PM2.5) | AG27: =++IF('[1]1- INPUTS'!AC56="No allocation",CVPM2.5*PMPF_PM2.5,((CVPM2.5*PMPF_PM2.5)*ELALLF)) -> 0
G28: Electricity, hydropower, at reservoir power plant, alpine region | H28: 0.0059319009 | I28: 2.51247e-09 | J28: 0.00090196708 | K28: 1.6349631e-05 | L28: 5.8082029e-06 | M28: 1.6648339e-05 | N28: 1.3378314e-05 | O28: 1.3373532e-06 | P28: 3.2206143e-06 | Q28: 7.7121442e-05 | R28: 0.00011300451 | S28: 0.00062813784 | T28: 0.06554239 | U28: 6.9657736e-05 | V28: 0.00019894899 | W28: 0.0010182662 | X28: 0.83381197 | Y28: 9.99433e-05 | Z28: 6.0774733e-07 | AA28: 0.00027440437
G29: Electricity, natural gas, at micro gas turbine 100kWe | H29: 0.73649855 | I29: 2.7978565e-07 | J29: 0.002614434 | K29: 0.00060812547 | L29: 9.9785617e-05 | M29: 0.00063526343 | N29: 0.00049827187 | O29: 6.9878374e-06 | P29: 2.3252707e-05 | Q29: 0.00068106229 | R29: 0.001845153 | S29: 0.0041544307 | T29: 0.73754974 | U29: 0.0003587374 | V29: 0.00050893657 | W29: 0.25860706 | X29: 0.061904904 | Y29: =+H29*GWP_HH+I29*ODP_HH+J29*IRP_HH+K29*HOFP_HH+L29*PMPF_HH+S29*HTPC_HH+T29*HTPNC_HH+X29*WCP_HH -> 9.030862931e-07 | Z29: =+H29*GWP_FE+H29*GWP_TE+M29*EOFP_TE+N29*TAP_TE+O29*FEP_FE+P29*TETP_TE+Q29*FETP_FE+R29*METP_ME+U29*LOP_TE+X29*WCP_FE+X29*WCP_TE -> 3.094958531e-09 | AA29: =+V29*SOP+W29 -> 0.2587246673
G30: Electricity, biogas, at micro gas turbine 100kWe | H30: 0.62041448 | I30: 8.7060634e-07 | J30: 0.13117045 | K30: 0.00052061548 | L30: 0.00014056068 | M30: 0.00052828934 | N30: 0.00084419981 | O30: 5.3686729e-05 | P30: 0.00014861176 | Q30: 0.0064234865 | R30: 0.0090528411 | S30: 0.0096274393 | T30: 6.1677378 | U30: 0.0025277266 | V30: 0.0016994176 | W30: 0.039763319 | X30: 1.7781988 | Y30: 4.686788197e-06 | Z30: 2.60597179e-08 | AA30: 0.04015602785
G31: Electricity, at cogen with biogas engine | H31: 0.31188257 | I31: 9.2805087e-07 | J31: 0.037935169 | K31: 0.00026658611 | L31: 0.00010147634 | M31: 0.00027403108 | N31: 0.00067016485 | O31: 1.4595156e-05 | P31: 5.0777513e-05 | Q31: 0.0026582812 | R31: 0.0036331912 | S31: 0.0039910347 | T31: 1.9088464 | U31: 0.00079646468 | V31: 0.00039338446 | W31: 0.028636177 | X31: 0.49120981 | Y31: 1.4709253e-06 | Z31: 7.703324e-09 | AA31: 0.010122596
G32: Electricity, at Mini CHP plant | H32: 0.81287817 | I32: 4.7965409e-07 | J32: 0.0029486162 | K32: 0.00055823488 | L32: 0.00011437246 | M32: 0.00059300276 | N32: 0.00053975318 | O32: 6.7936326e-06 | P32: 1.9800853e-05 | Q32: 0.00056895851 | R32: 0.0017537523 | S32: 0.0039257992 | T32: 0.62548404 | U32: 0.00038285118 | V32: 0.00032172436 | W32: 0.2788453 | X32: 0.064810482 | Y32: =+H32*GWP_HH+I32*ODP_HH+J32*IRP_HH+K32*HOFP_HH+L32*PMPF_HH+S32*HTPC_HH+T32*HTPNC_HH+X32*WCP_HH -> 9.881513647e-07 | Z32: =+H32*GWP_FE+H32*GWP_TE+M32*EOFP_TE+N32*TAP_TE+O32*FEP_FE+P32*TETP_TE+Q32*FETP_FE+R32*METP_ME+U32*LOP_TE+X32*WCP_FE+X32*WCP_TE -> 3.351218929e-09 | AA32: =+V32*SOP+W32 -> 0.2789196455
G33: Electricity, at cogen 160kWe Jakobsberg | H33: 0.77684389 | I33: 4.5802662e-07 | J33: 0.0032033979 | K33: 0.00046205819 | L33: 0.00011466044 | M33: 0.00049215368 | N33: 0.00050907589 | O33: 8.3379859e-06 | P33: 2.7132692e-05 | Q33: 0.00080674684 | R33: 0.0020649455 | S33: 0.0039035978 | T33: 0.91974346 | U33: 0.00036839335 | V33: 0.000425881 | W33: 0.26896368 | X33: 0.051724771 | Y33: 9.27628691e-07 | Z33: 3.055549118e-09 | AA33: 0.2690620944
G34: Electricity, at wind power plant | H34: 0.011577171 | I34: 5.3009564e-09 | J34: 0.0017547875 | K34: 2.523442e-05 | L34: 1.8736196e-05 | M34: 2.5893335e-05 | N34: 4.1965065e-05 | O34: 7.2227695e-06 | P34: 3.058687e-05 | Q34: 0.00088857954 | R34: 0.0012804844 | S34: 0.0039241901 | T34: 0.88914127 | U34: 0.0007051196 | V34: 0.0013077102 | W34: 0.0031660249 | X34: 0.095996961 | Y34: 2.5460687e-07 | Z34: 1.3537309e-09 | AA34: 0.0011271121
G35: Electricity, production mix photovoltaic, at plant | H35: 0.070533136 | I35: 4.079203e-08 | J35: 0.01874917 | K35: 0.0001568843 | L35: 8.1672973e-05 | M35: 0.00016573062 | N35: 0.00026728399 | O35: 5.7506062e-05 | P35: 0.00051203759 | Q35: 0.0065043005 | R35: 0.0097927202 | S35: 0.0066748195 | T35: 7.9615758 | U35: 0.0011810051 | V35: 0.0015147563 | W35: 0.019052739 | X35: 1.3963312 | Y35: 3.2919907e-06 | Z35: 1.9205467e-08 | AA35: 0.0059195611
G36: Electricity, nuclear, at power plant | H36: 0.0079227188 | I36: 1.2123458e-08 | J36: 1.1042635 | K36: 3.1985373e-05 | L36: 2.8657167e-05 | M36: 3.2692846e-05 | N36: 4.4579245e-05 | O36: 4.0679733e-06 | P36: 7.8447376e-05 | Q36: 0.00093737256 | R36: 0.0014028589 | S36: 0.0020415227 | T36: 0.7900843 | U36: 0.00026338516 | V36: 0.00082818488 | W36: 0.0021710952 | X36: 0.048233405 | Y36: 1.5387606e-07 | Z36: 6.9687063e-10 | AA36: 0.00082908716
G37: Heat supply | H37: =+IF('1- INPUTS'!$C11="ReSOFC",ReSOFCHeat*VLOOKUP('1- INPUTS'!$C66,DB!$G260:$AA270,H5,FALSE),0) -> 0 | I37: =+IF('1- INPUTS'!$C11="ReSOFC",ReSOFCHeat*VLOOKUP('1- INPUTS'!$C66,DB!$G260:$AA270,I5,FALSE),0) -> 0 | J37: =+IF('1- INPUTS'!$C11="ReSOFC",ReSOFCHeat*VLOOKUP('1- INPUTS'!$C66,DB!$G260:$AA270,J5,FALSE),0) -> 0 | K37: =+IF('1- INPUTS'!$C11="ReSOFC",ReSOFCHeat*VLOOKUP('1- INPUTS'!$C66,DB!$G260:$AA270,K5,FALSE),0) -> 0 | L37: =+IF('1- INPUTS'!$C11="ReSOFC",ReSOFCHeat*VLOOKUP('1- INPUTS'!$C66,DB!$G260:$AA270,L5,FALSE),0) -> 0 | M37: =+IF('1- INPUTS'!$C11="ReSOFC",ReSOFCHeat*VLOOKUP('1- INPUTS'!$C66,DB!$G260:$AA270,M5,FALSE),0) -> 0 | N37: =+IF('1- INPUTS'!$C11="ReSOFC",ReSOFCHeat*VLOOKUP('1- INPUTS'!$C66,DB!$G260:$AA270,N5,FALSE),0) -> 0 | O37: =+IF('1- INPUTS'!$C11="ReSOFC",ReSOFCHeat*VLOOKUP('1- INPUTS'!$C66,DB!$G260:$AA270,O5,FALSE),0) -> 0 | P37: =+IF('1- INPUTS'!$C11="ReSOFC",ReSOFCHeat*VLOOKUP('1- INPUTS'!$C66,DB!$G260:$AA270,P5,FALSE),0) -> 0 | Q37: =+IF('1- INPUTS'!$C11="ReSOFC",ReSOFCHeat*VLOOKUP('1- INPUTS'!$C66,DB!$G260:$AA270,Q5,FALSE),0) -> 0 | R37: =+IF('1- INPUTS'!$C11="ReSOFC",ReSOFCHeat*VLOOKUP('1- INPUTS'!$C66,DB!$G260:$AA270,R5,FALSE),0) -> 0 | S37: =+IF('1- INPUTS'!$C11="ReSOFC",ReSOFCHeat*VLOOKUP('1- INPUTS'!$C66,DB!$G260:$AA270,S5,FALSE),0) -> 0 | T37: =+IF('1- INPUTS'!$C11="ReSOFC",ReSOFCHeat*VLOOKUP('1- INPUTS'!$C66,DB!$G260:$AA270,T5,FALSE),0) -> 0 | U37: =+IF('1- INPUTS'!$C11="ReSOFC",ReSOFCHeat*VLOOKUP('1- INPUTS'!$C66,DB!$G260:$AA270,U5,FALSE),0) -> 0 | V37: =+IF('1- INPUTS'!$C11="ReSOFC",ReSOFCHeat*VLOOKUP('1- INPUTS'!$C66,DB!$G260:$AA270,V5,FALSE),0) -> 0 | W37: =+IF('1- INPUTS'!$C11="ReSOFC",ReSOFCHeat*VLOOKUP('1- INPUTS'!$C66,DB!$G260:$AA270,W5,FALSE),0) -> 0 | X37: =+IF('1- INPUTS'!$C11="ReSOFC",ReSOFCHeat*VLOOKUP('1- INPUTS'!$C66,DB!$G260:$AA270,X5,FALSE),0) -> 0 | Y37: =+IF('1- INPUTS'!$C11="ReSOFC",ReSOFCHeat*VLOOKUP('1- INPUTS'!$C66,DB!$G260:$AA270,Y5,FALSE),0) -> 0 | Z37: =+IF('1- INPUTS'!$C11="ReSOFC",ReSOFCHeat*VLOOKUP('1- INPUTS'!$C66,DB!$G260:$AA270,Z5,FALSE),0) -> 0 | AA37: =+IF('1- INPUTS'!$C11="ReSOFC",ReSOFCHeat*VLOOKUP('1- INPUTS'!$C66,DB!$G260:$AA270,AA5,FALSE),0) -> 0
G38: Water supply | H38: =+IF('1- INPUTS'!$C11="ReSOFC",(VLOOKUP('1- INPUTS'!$C$69,$G39:$AA42,H5,FALSE)*ReSOFCH2O),(VLOOKUP('1- INPUTS'!$C$59,$G39:$AA42,H5,FALSE)*FCH2O)) -> 0 | I38: =+IF('1- INPUTS'!$C11="ReSOFC",(VLOOKUP('1- INPUTS'!$C$69,$G39:$AA42,I5,FALSE)*ReSOFCH2O),(VLOOKUP('1- INPUTS'!$C$59,$G39:$AA42,I5,FALSE)*FCH2O)) -> 0 | J38: =+IF('1- INPUTS'!$C11="ReSOFC",(VLOOKUP('1- INPUTS'!$C$69,$G39:$AA42,J5,FALSE)*ReSOFCH2O),(VLOOKUP('1- INPUTS'!$C$59,$G39:$AA42,J5,FALSE)*FCH2O)) -> 0 | K38: =+IF('1- INPUTS'!$C11="ReSOFC",(VLOOKUP('1- INPUTS'!$C$69,$G39:$AA42,K5,FALSE)*ReSOFCH2O),(VLOOKUP('1- INPUTS'!$C$59,$G39:$AA42,K5,FALSE)*FCH2O)) -> 0 | L38: =+IF('1- INPUTS'!$C11="ReSOFC",(VLOOKUP('1- INPUTS'!$C$69,$G39:$AA42,L5,FALSE)*ReSOFCH2O),(VLOOKUP('1- INPUTS'!$C$59,$G39:$AA42,L5,FALSE)*FCH2O)) -> 0 | M38: =+IF('1- INPUTS'!$C11="ReSOFC",(VLOOKUP('1- INPUTS'!$C$69,$G39:$AA42,M5,FALSE)*ReSOFCH2O),(VLOOKUP('1- INPUTS'!$C$59,$G39:$AA42,M5,FALSE)*FCH2O)) -> 0 | N38: =+IF('1- INPUTS'!$C11="ReSOFC",(VLOOKUP('1- INPUTS'!$C$69,$G39:$AA42,N5,FALSE)*ReSOFCH2O),(VLOOKUP('1- INPUTS'!$C$59,$G39:$AA42,N5,FALSE)*FCH2O)) -> 0 | O38: =+IF('1- INPUTS'!$C11="ReSOFC",(VLOOKUP('1- INPUTS'!$C$69,$G39:$AA42,O5,FALSE)*ReSOFCH2O),(VLOOKUP('1- INPUTS'!$C$59,$G39:$AA42,O5,FALSE)*FCH2O)) -> 0 | P38: =+IF('1- INPUTS'!$C11="ReSOFC",(VLOOKUP('1- INPUTS'!$C$69,$G39:$AA42,P5,FALSE)*ReSOFCH2O),(VLOOKUP('1- INPUTS'!$C$59,$G39:$AA42,P5,FALSE)*FCH2O)) -> 0 | Q38: =+IF('1- INPUTS'!$C11="ReSOFC",(VLOOKUP('1- INPUTS'!$C$69,$G39:$AA42,Q5,FALSE)*ReSOFCH2O),(VLOOKUP('1- INPUTS'!$C$59,$G39:$AA42,Q5,FALSE)*FCH2O)) -> 0 | R38: =+IF('1- INPUTS'!$C11="ReSOFC",(VLOOKUP('1- INPUTS'!$C$69,$G39:$AA42,R5,FALSE)*ReSOFCH2O),(VLOOKUP('1- INPUTS'!$C$59,$G39:$AA42,R5,FALSE)*FCH2O)) -> 0 | S38: =+IF('1- INPUTS'!$C11="ReSOFC",(VLOOKUP('1- INPUTS'!$C$69,$G39:$AA42,S5,FALSE)*ReSOFCH2O),(VLOOKUP('1- INPUTS'!$C$59,$G39:$AA42,S5,FALSE)*FCH2O)) -> 0 | T38: =+IF('1- INPUTS'!$C11="ReSOFC",(VLOOKUP('1- INPUTS'!$C$69,$G39:$AA42,T5,FALSE)*ReSOFCH2O),(VLOOKUP('1- INPUTS'!$C$59,$G39:$AA42,T5,FALSE)*FCH2O)) -> 0 | U38: =+IF('1- INPUTS'!$C11="ReSOFC",(VLOOKUP('1- INPUTS'!$C$69,$G39:$AA42,U5,FALSE)*ReSOFCH2O),(VLOOKUP('1- INPUTS'!$C$59,$G39:$AA42,U5,FALSE)*FCH2O)) -> 0 | V38: =+IF('1- INPUTS'!$C11="ReSOFC",(VLOOKUP('1- INPUTS'!$C$69,$G39:$AA42,V5,FALSE)*ReSOFCH2O),(VLOOKUP('1- INPUTS'!$C$59,$G39:$AA42,V5,FALSE)*FCH2O)) -> 0 | W38: =+IF('1- INPUTS'!$C11="ReSOFC",(VLOOKUP('1- INPUTS'!$C$69,$G39:$AA42,W5,FALSE)*ReSOFCH2O),(VLOOKUP('1- INPUTS'!$C$59,$G39:$AA42,W5,FALSE)*FCH2O)) -> 0 | X38: =+IF('1- INPUTS'!$C11="ReSOFC",(VLOOKUP('1- INPUTS'!$C$69,$G39:$AA42,X5,FALSE)*ReSOFCH2O),(VLOOKUP('1- INPUTS'!$C$59,$G39:$AA42,X5,FALSE)*FCH2O)) -> 0 | Y38: =+IF('1- INPUTS'!$C11="ReSOFC",(VLOOKUP('1- INPUTS'!$C$69,$G39:$AA42,Y5,FALSE)*ReSOFCH2O),(VLOOKUP('1- INPUTS'!$C$59,$G39:$AA42,Y5,FALSE)*FCH2O)) -> 0 | Z38: =+IF('1- INPUTS'!$C11="ReSOFC",(VLOOKUP('1- INPUTS'!$C$69,$G39:$AA42,Z5,FALSE)*ReSOFCH2O),(VLOOKUP('1- INPUTS'!$C$59,$G39:$AA42,Z5,FALSE)*FCH2O)) -> 0 | AA38: =+IF('1- INPUTS'!$C11="ReSOFC",(VLOOKUP('1- INPUTS'!$C$69,$G39:$AA42,AA5,FALSE)*ReSOFCH2O),(VLOOKUP('1- INPUTS'!$C$59,$G39:$AA42,AA5,FALSE)*FCH2O)) -> 0
G39: Water, ultrapure | H39: 0.00069214905 | I39: 3.8442031e-10 | J39: 0.00036602415 | K39: 1.1000235e-06 | L39: 6.7489389e-07 | M39: 1.1158878e-06 | N39: 2.1779863e-06 | O39: 3.0298422e-05 | P39: 2.3657184e-07 | Q39: 1.7903175e-05 | R39: 2.5281472e-05 | S39: 4.9759768e-05 | T39: 0.01819224 | U39: 1.929401e-05 | V39: 2.6722434e-06 | W39: 0.00015142576 | X39: 0.005093459 | Y39: =+AVERAGE(Y40:Y42) -> 9.270365267e-09 | Z39: =+AVERAGE(Z40:Z42) -> 5.396668867e-11 | AA39: 1.628725316e-05
G40: Water, deionised | H40: 0.00081190049 | I40: 7.182209e-10 | J40: 0.00068354242 | K40: 1.6626685e-06 | L40: 9.2579841e-07 | M40: 1.6887761e-06 | N40: 3.0289229e-06 | O40: 6.6143479e-07 | P40: 5.772848e-07 | Q40: 2.8151221e-05 | R40: 4.0214147e-05 | S40: 6.7720675e-05 | T40: 0.03010325 | U40: 2.5653166e-05 | V40: 5.7823045e-06 | W40: 0.00020910813 | X40: 0.0094412664 | Y40: 2.2726941e-08 | Z40: 1.3128169e-10 | AA40: 4.6646896e-05
G41: Water, decarbonised | H41: 7.8886376e-06 | I41: 1.6407363e-12 | J41: 1.3606112e-06 | K41: 1.6832311e-08 | L41: 5.9971766e-09 | M41: 1.7245468e-08 | N41: 1.615504e-08 | O41: 1.9643045e-09 | P41: 6.4763206e-09 | Q41: 2.8346097e-07 | R41: 4.0286322e-07 | S41: 1.2592676e-06 | T41: 0.00025613137 | U41: 1.6166332e-07 | V41: 2.9127244e-07 | W41: 1.5083445e-06 | X41: 0.0010649623 | Y41: 2.3812156e-09 | Z41: 1.4408593e-11 | AA41: 5.3424297e-07
G42: Water, completely softened | H42: 2.4759957e-05 | I42: 5.9863018e-12 | J42: 4.69158e-06 | K42: 5.2937524e-08 | L42: 1.9463142e-08 | M42: 5.4210636e-08 | N42: 5.3121632e-08 | O42: 6.6327122e-09 | P42: 2.058045e-08 | Q42: 8.9656454e-07 | R42: 1.2749093e-06 | S42: 3.8601544e-06 | T42: 0.00081736186 | U42: 4.9368405e-07 | V42: 8.93955e-07 | W42: 4.8477325e-06 | X42: 0.0011934212 | Y42: 2.7029392e-09 | Z42: 1.6209783e-11 | AA42: 1.6806205e-06
C43: Start-Up
H44: GWP | I44: ODP | J44: IRP | K44: EOFP | L44: PMFP | M44: HOFP | N44: TAP | O44: FEP | P44: TETP | Q44: FETP | R44: METP | S44: HTPc | T44: HTPnc | U44: LOP | V44: SOP | W44: FFP | X44: WCP | Y44: HH | Z44: ED | AA44: RA
G45: Engine installation: transport, lorry >28t, fleet av. | H45: =+('2-LCI'!$D99*H250)/(Product_Generated*System_Lifetime) ->  | I45: =+('2-LCI'!$D99*I250)/(Product_Generated*System_Lifetime) ->  | J45: =+('2-LCI'!$D99*J250)/(Product_Generated*System_Lifetime) ->  | K45: =+('2-LCI'!$D99*K250)/(Product_Generated*System_Lifetime) ->  | L45: =+('2-LCI'!$D99*L250)/(Product_Generated*System_Lifetime) ->  | M45: =+('2-LCI'!$D99*M250)/(Product_Generated*System_Lifetime) ->  | N45: =+('2-LCI'!$D99*N250)/(Product_Generated*System_Lifetime) ->  | O45: =+('2-LCI'!$D99*O250)/(Product_Generated*System_Lifetime) ->  | P45: =+('2-LCI'!$D99*P250)/(Product_Generated*System_Lifetime) ->  | Q45: =+('2-LCI'!$D99*Q250)/(Product_Generated*System_Lifetime) ->  | R45: =+('2-LCI'!$D99*R250)/(Product_Generated*System_Lifetime) ->  | S45: =+('2-LCI'!$D99*S250)/(Product_Generated*System_Lifetime) ->  | T45: =+('2-LCI'!$D99*T250)/(Product_Generated*System_Lifetime) ->  | U45: =+('2-LCI'!$D99*U250)/(Product_Generated*System_Lifetime) ->  | V45: =+('2-LCI'!$D99*V250)/(Product_Generated*System_Lifetime) ->  | W45: =+('2-LCI'!$D99*W250)/(Product_Generated*System_Lifetime) ->  | X45: =+('2-LCI'!$D99*X250)/(Product_Generated*System_Lifetime) ->  | Y45: =+('2-LCI'!$D99*Y250)/(Product_Generated*System_Lifetime) ->  | Z45: =+('2-LCI'!$D99*Z250)/(Product_Generated*System_Lifetime) ->  | AA45: =+('2-LCI'!$D99*AA250)/(Product_Generated*System_Lifetime) -> 
G46: Fuel for start up | H46: =+IF(FuelType="NATURAL GAS",'2-LCI'!$D100*H11,'2-LCI'!$D100*H12) ->  | I46: =+IF(FuelType="NATURAL GAS",'2-LCI'!$D100*I11,'2-LCI'!$D100*I12) ->  | J46: =+IF(FuelType="NATURAL GAS",'2-LCI'!$D100*J11,'2-LCI'!$D100*J12) ->  | K46: =+IF(FuelType="NATURAL GAS",'2-LCI'!$D100*K11,'2-LCI'!$D100*K12) ->  | L46: =+IF(FuelType="NATURAL GAS",'2-LCI'!$D100*L11,'2-LCI'!$D100*L12) ->  | M46: =+IF(FuelType="NATURAL GAS",'2-LCI'!$D100*M11,'2-LCI'!$D100*M12) ->  | N46: =+IF(FuelType="NATURAL GAS",'2-LCI'!$D100*N11,'2-LCI'!$D100*N12) ->  | O46: =+IF(FuelType="NATURAL GAS",'2-LCI'!$D100*O11,'2-LCI'!$D100*O12) ->  | P46: =+IF(FuelType="NATURAL GAS",'2-LCI'!$D100*P11,'2-LCI'!$D100*P12) ->  | Q46: =+IF(FuelType="NATURAL GAS",'2-LCI'!$D100*Q11,'2-LCI'!$D100*Q12) ->  | R46: =+IF(FuelType="NATURAL GAS",'2-LCI'!$D100*R11,'2-LCI'!$D100*R12) ->  | S46: =+IF(FuelType="NATURAL GAS",'2-LCI'!$D100*S11,'2-LCI'!$D100*S12) ->  | T46: =+IF(FuelType="NATURAL GAS",'2-LCI'!$D100*T11,'2-LCI'!$D100*T12) ->  | U46: =+IF(FuelType="NATURAL GAS",'2-LCI'!$D100*U11,'2-LCI'!$D100*U12) ->  | V46: =+IF(FuelType="NATURAL GAS",'2-LCI'!$D100*V11,'2-LCI'!$D100*V12) ->  | W46: =+IF(FuelType="NATURAL GAS",'2-LCI'!$D100*W11,'2-LCI'!$D100*W12) ->  | X46: =+IF(FuelType="NATURAL GAS",'2-LCI'!$D100*X11,'2-LCI'!$D100*X12) ->  | Y46: =+IF(FuelType="NATURAL GAS",'2-LCI'!$D100*Y11,'2-LCI'!$D100*Y12) ->  | Z46: =+IF(FuelType="NATURAL GAS",'2-LCI'!$D100*Z11,'2-LCI'!$D100*Z12) ->  | AA46: =+IF(FuelType="NATURAL GAS",'2-LCI'!$D100*AA11,'2-LCI'!$D100*AA12) -> 
G47: Process water | H47: =+'2-LCI'!$D101*DB!H221 -> 0 | I47: =+'2-LCI'!$D101*DB!I221 -> 0 | J47: =+'2-LCI'!$D101*DB!J221 -> 0 | K47: =+'2-LCI'!$D101*DB!K221 -> 0 | L47: =+'2-LCI'!$D101*DB!L221 -> 0 | M47: =+'2-LCI'!$D101*DB!M221 -> 0 | N47: =+'2-LCI'!$D101*DB!N221 -> 0 | O47: =+'2-LCI'!$D101*DB!O221 -> 0 | P47: =+'2-LCI'!$D101*DB!P221 -> 0 | Q47: =+'2-LCI'!$D101*DB!Q221 -> 0 | R47: =+'2-LCI'!$D101*DB!R221 -> 0 | S47: =+'2-LCI'!$D101*DB!S221 -> 0 | T47: =+'2-LCI'!$D101*DB!T221 -> 0 | U47: =+'2-LCI'!$D101*DB!U221 -> 0 | V47: =+'2-LCI'!$D101*DB!V221 -> 0 | W47: =+'2-LCI'!$D101*DB!W221 -> 0 | X47: =+'2-LCI'!$D101*DB!X221 -> 0 | Y47: =+'2-LCI'!$D101*DB!Y221 -> 0 | Z47: =+'2-LCI'!$D101*DB!Z221 -> 0 | AA47: =+'2-LCI'!$D101*DB!AA221 -> 0
G48: Electricity | H48: =+'2-LCI'!$D102*DB!H236 -> 0 | I48: =+'2-LCI'!$D102*DB!I236 -> 0 | J48: =+'2-LCI'!$D102*DB!J236 -> 0 | K48: =+'2-LCI'!$D102*DB!K236 -> 0 | L48: =+'2-LCI'!$D102*DB!L236 -> 0 | M48: =+'2-LCI'!$D102*DB!M236 -> 0 | N48: =+'2-LCI'!$D102*DB!N236 -> 0 | O48: =+'2-LCI'!$D102*DB!O236 -> 0 | P48: =+'2-LCI'!$D102*DB!P236 -> 0 | Q48: =+'2-LCI'!$D102*DB!Q236 -> 0 | R48: =+'2-LCI'!$D102*DB!R236 -> 0 | S48: =+'2-LCI'!$D102*DB!S236 -> 0 | T48: =+'2-LCI'!$D102*DB!T236 -> 0 | U48: =+'2-LCI'!$D102*DB!U236 -> 0 | V48: =+'2-LCI'!$D102*DB!V236 -> 0 | W48: =+'2-LCI'!$D102*DB!W236 -> 0 | X48: =+'2-LCI'!$D102*DB!X236 -> 0 | Y48: =+'2-LCI'!$D102*DB!Y236 -> 0 | Z48: =+'2-LCI'!$D102*DB!Z236 -> 0 | AA48: =+'2-LCI'!$D102*DB!AA236 -> 0
C49: Maintenance
G50: Reinforcing steel | H50: =+IF('1- INPUTS'!$C$54="No allocation",'2-LCI'!$D117*H231,'2-LCI'!$D117*H231*ELALLF)/Product_Generated ->  | I50: =+IF('1- INPUTS'!$C$54="No allocation",'2-LCI'!$D117*I231,'2-LCI'!$D117*I231*ELALLF)/Product_Generated ->  | J50: =+IF('1- INPUTS'!$C$54="No allocation",'2-LCI'!$D117*J231,'2-LCI'!$D117*J231*ELALLF)/Product_Generated ->  | K50: =+IF('1- INPUTS'!$C$54="No allocation",'2-LCI'!$D117*K231,'2-LCI'!$D117*K231*ELALLF)/Product_Generated ->  | L50: =+IF('1- INPUTS'!$C$54="No allocation",'2-LCI'!$D117*L231,'2-LCI'!$D117*L231*ELALLF)/Product_Generated ->  | M50: =+IF('1- INPUTS'!$C$54="No allocation",'2-LCI'!$D117*M231,'2-LCI'!$D117*M231*ELALLF)/Product_Generated ->  | N50: =+IF('1- INPUTS'!$C$54="No allocation",'2-LCI'!$D117*N231,'2-LCI'!$D117*N231*ELALLF)/Product_Generated ->  | O50: =+IF('1- INPUTS'!$C$54="No allocation",'2-LCI'!$D117*O231,'2-LCI'!$D117*O231*ELALLF)/Product_Generated ->  | P50: =+IF('1- INPUTS'!$C$54="No allocation",'2-LCI'!$D117*P231,'2-LCI'!$D117*P231*ELALLF)/Product_Generated ->  | Q50: =+IF('1- INPUTS'!$C$54="No allocation",'2-LCI'!$D117*Q231,'2-LCI'!$D117*Q231*ELALLF)/Product_Generated ->  | R50: =+IF('1- INPUTS'!$C$54="No allocation",'2-LCI'!$D117*R231,'2-LCI'!$D117*R231*ELALLF)/Product_Generated ->  | S50: =+IF('1- INPUTS'!$C$54="No allocation",'2-LCI'!$D117*S231,'2-LCI'!$D117*S231*ELALLF)/Product_Generated ->  | T50: =+IF('1- INPUTS'!$C$54="No allocation",'2-LCI'!$D117*T231,'2-LCI'!$D117*T231*ELALLF)/Product_Generated ->  | U50: =+IF('1- INPUTS'!$C$54="No allocation",'2-LCI'!$D117*U231,'2-LCI'!$D117*U231*ELALLF)/Product_Generated ->  | V50: =+IF('1- INPUTS'!$C$54="No allocation",'2-LCI'!$D117*V231,'2-LCI'!$D117*V231*ELALLF)/Product_Generated ->  | W50: =+IF('1- INPUTS'!$C$54="No allocation",'2-LCI'!$D117*W231,'2-LCI'!$D117*W231*ELALLF)/Product_Generated ->  | X50: =+IF('1- INPUTS'!$C$54="No allocation",'2-LCI'!$D117*X231,'2-LCI'!$D117*X231*ELALLF)/Product_Generated ->  | Y50: =+IF('1- INPUTS'!$C$54="No allocation",'2-LCI'!$D117*Y231,'2-LCI'!$D117*Y231*ELALLF)/Product_Generated ->  | Z50: =+IF('1- INPUTS'!$C$54="No allocation",'2-LCI'!$D117*Z231,'2-LCI'!$D117*Z231*ELALLF)/Product_Generated ->  | AA50: =+IF('1- INPUTS'!$C$54="No allocation",'2-LCI'!$D117*AA231,'2-LCI'!$D117*AA231*ELALLF)/Product_Generated -> 
G51: Sheet rolling, steel | H51: =+IF('1- INPUTS'!$C$54="No allocation",'2-LCI'!$D118*H232,'2-LCI'!$D118*H232*ELALLF)/Product_Generated ->  | I51: =+IF('1- INPUTS'!$C$54="No allocation",'2-LCI'!$D118*I232,'2-LCI'!$D118*I232*ELALLF)/Product_Generated ->  | J51: =+IF('1- INPUTS'!$C$54="No allocation",'2-LCI'!$D118*J232,'2-LCI'!$D118*J232*ELALLF)/Product_Generated ->  | K51: =+IF('1- INPUTS'!$C$54="No allocation",'2-LCI'!$D118*K232,'2-LCI'!$D118*K232*ELALLF)/Product_Generated ->  | L51: =+IF('1- INPUTS'!$C$54="No allocation",'2-LCI'!$D118*L232,'2-LCI'!$D118*L232*ELALLF)/Product_Generated ->  | M51: =+IF('1- INPUTS'!$C$54="No allocation",'2-LCI'!$D118*M232,'2-LCI'!$D118*M232*ELALLF)/Product_Generated ->  | N51: =+IF('1- INPUTS'!$C$54="No allocation",'2-LCI'!$D118*N232,'2-LCI'!$D118*N232*ELALLF)/Product_Generated ->  | O51: =+IF('1- INPUTS'!$C$54="No allocation",'2-LCI'!$D118*O232,'2-LCI'!$D118*O232*ELALLF)/Product_Generated ->  | P51: =+IF('1- INPUTS'!$C$54="No allocation",'2-LCI'!$D118*P232,'2-LCI'!$D118*P232*ELALLF)/Product_Generated ->  | Q51: =+IF('1- INPUTS'!$C$54="No allocation",'2-LCI'!$D118*Q232,'2-LCI'!$D118*Q232*ELALLF)/Product_Generated ->  | R51: =+IF('1- INPUTS'!$C$54="No allocation",'2-LCI'!$D118*R232,'2-LCI'!$D118*R232*ELALLF)/Product_Generated ->  | S51: =+IF('1- INPUTS'!$C$54="No allocation",'2-LCI'!$D118*S232,'2-LCI'!$D118*S232*ELALLF)/Product_Generated ->  | T51: =+IF('1- INPUTS'!$C$54="No allocation",'2-LCI'!$D118*T232,'2-LCI'!$D118*T232*ELALLF)/Product_Generated ->  | U51: =+IF('1- INPUTS'!$C$54="No allocation",'2-LCI'!$D118*U232,'2-LCI'!$D118*U232*ELALLF)/Product_Generated ->  | V51: =+IF('1- INPUTS'!$C$54="No allocation",'2-LCI'!$D118*V232,'2-LCI'!$D118*V232*ELALLF)/Product_Generated ->  | W51: =+IF('1- INPUTS'!$C$54="No allocation",'2-LCI'!$D118*W232,'2-LCI'!$D118*W232*ELALLF)/Product_Generated ->  | X51: =+IF('1- INPUTS'!$C$54="No allocation",'2-LCI'!$D118*X232,'2-LCI'!$D118*X232*ELALLF)/Product_Generated ->  | Y51: =+IF('1- INPUTS'!$C$54="No allocation",'2-LCI'!$D118*Y232,'2-LCI'!$D118*Y232*ELALLF)/Product_Generated ->  | Z51: =+IF('1- INPUTS'!$C$54="No allocation",'2-LCI'!$D118*Z232,'2-LCI'!$D118*Z232*ELALLF)/Product_Generated ->  | AA51: =+IF('1- INPUTS'!$C$54="No allocation",'2-LCI'!$D118*AA232,'2-LCI'!$D118*AA232*ELALLF)/Product_Generated -> 
G52: Chromium steel 18/8 | H52: =+IF('1- INPUTS'!$C$54="No allocation",'2-LCI'!$D119*H233,'2-LCI'!$D119*H233*ELALLF)/Product_Generated ->  | I52: =+IF('1- INPUTS'!$C$54="No allocation",'2-LCI'!$D119*I233,'2-LCI'!$D119*I233*ELALLF)/Product_Generated ->  | J52: =+IF('1- INPUTS'!$C$54="No allocation",'2-LCI'!$D119*J233,'2-LCI'!$D119*J233*ELALLF)/Product_Generated ->  | K52: =+IF('1- INPUTS'!$C$54="No allocation",'2-LCI'!$D119*K233,'2-LCI'!$D119*K233*ELALLF)/Product_Generated ->  | L52: =+IF('1- INPUTS'!$C$54="No allocation",'2-LCI'!$D119*L233,'2-LCI'!$D119*L233*ELALLF)/Product_Generated ->  | M52: =+IF('1- INPUTS'!$C$54="No allocation",'2-LCI'!$D119*M233,'2-LCI'!$D119*M233*ELALLF)/Product_Generated ->  | N52: =+IF('1- INPUTS'!$C$54="No allocation",'2-LCI'!$D119*N233,'2-LCI'!$D119*N233*ELALLF)/Product_Generated ->  | O52: =+IF('1- INPUTS'!$C$54="No allocation",'2-LCI'!$D119*O233,'2-LCI'!$D119*O233*ELALLF)/Product_Generated ->  | P52: =+IF('1- INPUTS'!$C$54="No allocation",'2-LCI'!$D119*P233,'2-LCI'!$D119*P233*ELALLF)/Product_Generated ->  | Q52: =+IF('1- INPUTS'!$C$54="No allocation",'2-LCI'!$D119*Q233,'2-LCI'!$D119*Q233*ELALLF)/Product_Generated ->  | R52: =+IF('1- INPUTS'!$C$54="No allocation",'2-LCI'!$D119*R233,'2-LCI'!$D119*R233*ELALLF)/Product_Generated ->  | S52: =+IF('1- INPUTS'!$C$54="No allocation",'2-LCI'!$D119*S233,'2-LCI'!$D119*S233*ELALLF)/Product_Generated ->  | T52: =+IF('1- INPUTS'!$C$54="No allocation",'2-LCI'!$D119*T233,'2-LCI'!$D119*T233*ELALLF)/Product_Generated ->  | U52: =+IF('1- INPUTS'!$C$54="No allocation",'2-LCI'!$D119*U233,'2-LCI'!$D119*U233*ELALLF)/Product_Generated ->  | V52: =+IF('1- INPUTS'!$C$54="No allocation",'2-LCI'!$D119*V233,'2-LCI'!$D119*V233*ELALLF)/Product_Generated ->  | W52: =+IF('1- INPUTS'!$C$54="No allocation",'2-LCI'!$D119*W233,'2-LCI'!$D119*W233*ELALLF)/Product_Generated ->  | X52: =+IF('1- INPUTS'!$C$54="No allocation",'2-LCI'!$D119*X233,'2-LCI'!$D119*X233*ELALLF)/Product_Generated ->  | Y52: =+IF('1- INPUTS'!$C$54="No allocation",'2-LCI'!$D119*Y233,'2-LCI'!$D119*Y233*ELALLF)/Product_Generated ->  | Z52: =+IF('1- INPUTS'!$C$54="No allocation",'2-LCI'!$D119*Z233,'2-LCI'!$D119*Z233*ELALLF)/Product_Generated ->  | AA52: =+IF('1- INPUTS'!$C$54="No allocation",'2-LCI'!$D119*AA233,'2-LCI'!$D119*AA233*ELALLF)/Product_Generated -> 
G53: Sheet rolling, chromium steel | H53: =+IF('1- INPUTS'!$C$54="No allocation",'2-LCI'!$D120*H234,'2-LCI'!$D120*H234*ELALLF)/Product_Generated ->  | I53: =+IF('1- INPUTS'!$C$54="No allocation",'2-LCI'!$D120*I234,'2-LCI'!$D120*I234*ELALLF)/Product_Generated ->  | J53: =+IF('1- INPUTS'!$C$54="No allocation",'2-LCI'!$D120*J234,'2-LCI'!$D120*J234*ELALLF)/Product_Generated ->  | K53: =+IF('1- INPUTS'!$C$54="No allocation",'2-LCI'!$D120*K234,'2-LCI'!$D120*K234*ELALLF)/Product_Generated ->  | L53: =+IF('1- INPUTS'!$C$54="No allocation",'2-LCI'!$D120*L234,'2-LCI'!$D120*L234*ELALLF)/Product_Generated ->  | M53: =+IF('1- INPUTS'!$C$54="No allocation",'2-LCI'!$D120*M234,'2-LCI'!$D120*M234*ELALLF)/Product_Generated ->  | N53: =+IF('1- INPUTS'!$C$54="No allocation",'2-LCI'!$D120*N234,'2-LCI'!$D120*N234*ELALLF)/Product_Generated ->  | O53: =+IF('1- INPUTS'!$C$54="No allocation",'2-LCI'!$D120*O234,'2-LCI'!$D120*O234*ELALLF)/Product_Generated ->  | P53: =+IF('1- INPUTS'!$C$54="No allocation",'2-LCI'!$D120*P234,'2-LCI'!$D120*P234*ELALLF)/Product_Generated ->  | Q53: =+IF('1- INPUTS'!$C$54="No allocation",'2-LCI'!$D120*Q234,'2-LCI'!$D120*Q234*ELALLF)/Product_Generated ->  | R53: =+IF('1- INPUTS'!$C$54="No allocation",'2-LCI'!$D120*R234,'2-LCI'!$D120*R234*ELALLF)/Product_Generated ->  | S53: =+IF('1- INPUTS'!$C$54="No allocation",'2-LCI'!$D120*S234,'2-LCI'!$D120*S234*ELALLF)/Product_Generated ->  | T53: =+IF('1- INPUTS'!$C$54="No allocation",'2-LCI'!$D120*T234,'2-LCI'!$D120*T234*ELALLF)/Product_Generated ->  | U53: =+IF('1- INPUTS'!$C$54="No allocation",'2-LCI'!$D120*U234,'2-LCI'!$D120*U234*ELALLF)/Product_Generated ->  | V53: =+IF('1- INPUTS'!$C$54="No allocation",'2-LCI'!$D120*V234,'2-LCI'!$D120*V234*ELALLF)/Product_Generated ->  | W53: =+IF('1- INPUTS'!$C$54="No allocation",'2-LCI'!$D120*W234,'2-LCI'!$D120*W234*ELALLF)/Product_Generated ->  | X53: =+IF('1- INPUTS'!$C$54="No allocation",'2-LCI'!$D120*X234,'2-LCI'!$D120*X234*ELALLF)/Product_Generated ->  | Y53: =+IF('1- INPUTS'!$C$54="No allocation",'2-LCI'!$D120*Y234,'2-LCI'!$D120*Y234*ELALLF)/Product_Generated ->  | Z53: =+IF('1- INPUTS'!$C$54="No allocation",'2-LCI'!$D120*Z234,'2-LCI'!$D120*Z234*ELALLF)/Product_Generated ->  | AA53: =+IF('1- INPUTS'!$C$54="No allocation",'2-LCI'!$D120*AA234,'2-LCI'!$D120*AA234*ELALLF)/Product_Generated -> 
G54: Water consumption | H54: =+IF('1- INPUTS'!$C$54="No allocation",'2-LCI'!$D121*H221,'2-LCI'!$D121*H221*ELALLF)/Product_Generated ->  | I54: =+IF('1- INPUTS'!$C$54="No allocation",'2-LCI'!$D121*I221,'2-LCI'!$D121*I221*ELALLF)/Product_Generated ->  | J54: =+IF('1- INPUTS'!$C$54="No allocation",'2-LCI'!$D121*J221,'2-LCI'!$D121*J221*ELALLF)/Product_Generated ->  | K54: =+IF('1- INPUTS'!$C$54="No allocation",'2-LCI'!$D121*K221,'2-LCI'!$D121*K221*ELALLF)/Product_Generated ->  | L54: =+IF('1- INPUTS'!$C$54="No allocation",'2-LCI'!$D121*L221,'2-LCI'!$D121*L221*ELALLF)/Product_Generated ->  | M54: =+IF('1- INPUTS'!$C$54="No allocation",'2-LCI'!$D121*M221,'2-LCI'!$D121*M221*ELALLF)/Product_Generated ->  | N54: =+IF('1- INPUTS'!$C$54="No allocation",'2-LCI'!$D121*N221,'2-LCI'!$D121*N221*ELALLF)/Product_Generated ->  | O54: =+IF('1- INPUTS'!$C$54="No allocation",'2-LCI'!$D121*O221,'2-LCI'!$D121*O221*ELALLF)/Product_Generated ->  | P54: =+IF('1- INPUTS'!$C$54="No allocation",'2-LCI'!$D121*P221,'2-LCI'!$D121*P221*ELALLF)/Product_Generated ->  | Q54: =+IF('1- INPUTS'!$C$54="No allocation",'2-LCI'!$D121*Q221,'2-LCI'!$D121*Q221*ELALLF)/Product_Generated ->  | R54: =+IF('1- INPUTS'!$C$54="No allocation",'2-LCI'!$D121*R221,'2-LCI'!$D121*R221*ELALLF)/Product_Generated ->  | S54: =+IF('1- INPUTS'!$C$54="No allocation",'2-LCI'!$D121*S221,'2-LCI'!$D121*S221*ELALLF)/Product_Generated ->  | T54: =+IF('1- INPUTS'!$C$54="No allocation",'2-LCI'!$D121*T221,'2-LCI'!$D121*T221*ELALLF)/Product_Generated ->  | U54: =+IF('1- INPUTS'!$C$54="No allocation",'2-LCI'!$D121*U221,'2-LCI'!$D121*U221*ELALLF)/Product_Generated ->  | V54: =+IF('1- INPUTS'!$C$54="No allocation",'2-LCI'!$D121*V221,'2-LCI'!$D121*V221*ELALLF)/Product_Generated ->  | W54: =+IF('1- INPUTS'!$C$54="No allocation",'2-LCI'!$D121*W221,'2-LCI'!$D121*W221*ELALLF)/Product_Generated ->  | X54: =+IF('1- INPUTS'!$C$54="No allocation",'2-LCI'!$D121*X221,'2-LCI'!$D121*X221*ELALLF)/Product_Generated ->  | Y54: =+IF('1- INPUTS'!$C$54="No allocation",'2-LCI'!$D121*Y221,'2-LCI'!$D121*Y221*ELALLF)/Product_Generated ->  | Z54: =+IF('1- INPUTS'!$C$54="No allocation",'2-LCI'!$D121*Z221,'2-LCI'!$D121*Z221*ELALLF)/Product_Generated ->  | AA54: =+IF('1- INPUTS'!$C$54="No allocation",'2-LCI'!$D121*AA221,'2-LCI'!$D121*AA221*ELALLF)/Product_Generated -> 
G55: Stack Fuel cell | H55: =+IF('1- INPUTS'!$C$54="No allocation",H113*Stack_Maintenance,H113*Stack_Maintenance*ELALLF)/(Product_Generated*Stack_Lifetime) ->  | I55: =+IF('1- INPUTS'!$C$54="No allocation",I113*Stack_Maintenance,I113*Stack_Maintenance*ELALLF)/(Product_Generated*Stack_Lifetime) ->  | J55: =+IF('1- INPUTS'!$C$54="No allocation",J113*Stack_Maintenance,J113*Stack_Maintenance*ELALLF)/(Product_Generated*Stack_Lifetime) ->  | K55: =+IF('1- INPUTS'!$C$54="No allocation",K113*Stack_Maintenance,K113*Stack_Maintenance*ELALLF)/(Product_Generated*Stack_Lifetime) ->  | L55: =+IF('1- INPUTS'!$C$54="No allocation",L113*Stack_Maintenance,L113*Stack_Maintenance*ELALLF)/(Product_Generated*Stack_Lifetime) ->  | M55: =+IF('1- INPUTS'!$C$54="No allocation",M113*Stack_Maintenance,M113*Stack_Maintenance*ELALLF)/(Product_Generated*Stack_Lifetime) ->  | N55: =+IF('1- INPUTS'!$C$54="No allocation",N113*Stack_Maintenance,N113*Stack_Maintenance*ELALLF)/(Product_Generated*Stack_Lifetime) ->  | O55: =+IF('1- INPUTS'!$C$54="No allocation",O113*Stack_Maintenance,O113*Stack_Maintenance*ELALLF)/(Product_Generated*Stack_Lifetime) ->  | P55: =+IF('1- INPUTS'!$C$54="No allocation",P113*Stack_Maintenance,P113*Stack_Maintenance*ELALLF)/(Product_Generated*Stack_Lifetime) ->  | Q55: =+IF('1- INPUTS'!$C$54="No allocation",Q113*Stack_Maintenance,Q113*Stack_Maintenance*ELALLF)/(Product_Generated*Stack_Lifetime) ->  | R55: =+IF('1- INPUTS'!$C$54="No allocation",R113*Stack_Maintenance,R113*Stack_Maintenance*ELALLF)/(Product_Generated*Stack_Lifetime) ->  | S55: =+IF('1- INPUTS'!$C$54="No allocation",S113*Stack_Maintenance,S113*Stack_Maintenance*ELALLF)/(Product_Generated*Stack_Lifetime) ->  | T55: =+IF('1- INPUTS'!$C$54="No allocation",T113*Stack_Maintenance,T113*Stack_Maintenance*ELALLF)/(Product_Generated*Stack_Lifetime) ->  | U55: =+IF('1- INPUTS'!$C$54="No allocation",U113*Stack_Maintenance,U113*Stack_Maintenance*ELALLF)/(Product_Generated*Stack_Lifetime) ->  | V55: =+IF('1- INPUTS'!$C$54="No allocation",V113*Stack_Maintenance,V113*Stack_Maintenance*ELALLF)/(Product_Generated*Stack_Lifetime) ->  | W55: =+IF('1- INPUTS'!$C$54="No allocation",W113*Stack_Maintenance,W113*Stack_Maintenance*ELALLF)/(Product_Generated*Stack_Lifetime) ->  | X55: =+IF('1- INPUTS'!$C$54="No allocation",X113*Stack_Maintenance,X113*Stack_Maintenance*ELALLF)/(Product_Generated*Stack_Lifetime) ->  | Y55: =+IF('1- INPUTS'!$C$54="No allocation",Y113*Stack_Maintenance,Y113*Stack_Maintenance*ELALLF)/(Product_Generated*Stack_Lifetime) ->  | Z55: =+IF('1- INPUTS'!$C$54="No allocation",Z113*Stack_Maintenance,Z113*Stack_Maintenance*ELALLF)/(Product_Generated*Stack_Lifetime) ->  | AA55: =+IF('1- INPUTS'!$C$54="No allocation",AA113*Stack_Maintenance,AA113*Stack_Maintenance*ELALLF)/(Product_Generated*Stack_Lifetime) -> 
C59: Stack module
D60: SOFC 125-TUBULAR | E60: SOFC 125-PLANAR | F60: MCFC | G60: CALCULATED LCI FLOWS | H60: GWP | I60: ODP | J60: IRP | K60: EOFP | L60: PMFP | M60: HOFP | N60: TAP | O60: FEP | P60: TETP | Q60: FETP | R60: METP | S60: HTPc | T60: HTPnc | U60: LOP | V60: SOP | W60: FFP | X60: WCP | Y60: HH | Z60: EQ | AA60: RA
B61: =+E61*60 -> 7.2 | C61: LaMnO₃ powder | D61: 532 | E61: 0.12 | F61: 0 | G61: =+IF('1- INPUTS'!C$11="SOFC TUBULAR",('1- INPUTS'!C$12*D61)/125,IF('1- INPUTS'!C$11="SOFC PLANAR",('1- INPUTS'!C$12*E61),IF('1- INPUTS'!C$11="MCFC",('1- INPUTS'!C$12*F61)/500)))+IF('1- INPUTS'!C$11="ReSOFC",('1- INPUTS'!C$12*E61)) -> 0 | H61: =+($G61*(368/532)*H203)+((127/532)*$G61*H204) -> 0 | I61: =+($G61*(368/532)*I203)+((127/532)*$G61*I204) -> 0 | J61: 0 | K61: 0 | L61: 0 | M61: 0 | N61: 0 | O61: 0 | P61: 0 | Q61: 0 | R61: 0 | S61: 0 | T61: 0 | U61: 0 | V61: 0 | W61: 0 | X61: 0 | Y61: =+($G61*(368/532)*Y203)+((127/532)*$G61*Y204) -> 0 | Z61: 0 | AA61: 0
B62: =+E62*60 -> 0 | C62: LaCrO₃ powder | D62: 7.75 | E62: 0 | F62: 0 | G62: =+IF('1- INPUTS'!C$11="SOFC TUBULAR",('1- INPUTS'!C$12*D62)/125,IF('1- INPUTS'!C$11="SOFC PLANAR",('1- INPUTS'!C$12*E62),IF('1- INPUTS'!C$11="MCFC",('1- INPUTS'!C$12*F62)/500)))+IF('1- INPUTS'!C$11="ReSOFC",('1- INPUTS'!C$12*E62)) -> 0 | H62: =+($G62*(5.25/7.75)*H203)+((1.32/7.75)*$G62*H205) -> 0 | I62: 0 | J62: 0 | K62: 0 | L62: 0 | M62: 0 | N62: 0 | O62: 0 | P62: 0 | Q62: 0 | R62: 0 | S62: 0 | T62: 0 | U62: 0 | V62: 0 | W62: 0 | X62: 0 | Y62: =+($G62*(5.25/7.75)*Y203)+((1.32/7.75)*$G62*Y205) -> 0 | Z62: 0 | AA62: 0
B63: 0 | C63: Zirconium chloride powder | D63: 104 | E63: 0 | F63: 0 | G63: =+IF('1- INPUTS'!C$11="SOFC TUBULAR",('1- INPUTS'!C$12*D63)/125,IF('1- INPUTS'!C$11="SOFC PLANAR",('1- INPUTS'!C$12*E63),IF('1- INPUTS'!C$11="MCFC",('1- INPUTS'!C$12*F63)/500)))+IF('1- INPUTS'!C$11="ReSOFC",('1- INPUTS'!C$12*E63)) -> 0 | H63: =+$G63*(75/(104+15.3))*H206 -> 0 | I63: 0 | J63: 0 | K63: 0 | L63: 0 | M63: 0 | N63: 0 | O63: 0 | P63: 0 | Q63: 0 | R63: 0 | S63: 0 | T63: 0 | U63: 0 | V63: 0 | W63: 0 | X63: 0 | Y63: =+$G63*(75/(104+15.3))*Y206 -> 0 | Z63: 0 | AA63: 0
B64: 0 | C64: Yttrium chloride powder | D64: 15.3 | E64: 0 | F64: 0 | G64: =+IF('1- INPUTS'!C$11="SOFC TUBULAR",('1- INPUTS'!C$12*D64)/125,IF('1- INPUTS'!C$11="SOFC PLANAR",('1- INPUTS'!C$12*E64),IF('1- INPUTS'!C$11="MCFC",('1- INPUTS'!C$12*F64)/500)))+IF('1- INPUTS'!C$11="ReSOFC",('1- INPUTS'!C$12*E64)) -> 0 | H64: =+$G64*(75/(104+15.3))*H206 -> 0 | I64: 0 | J64: 0 | K64: 0 | L64: 0 | M64: 0 | N64: 0 | O64: 0 | P64: 0 | Q64: 0 | R64: 0 | S64: 0 | T64: 0 | U64: 0 | V64: 0 | W64: 0 | X64: 0 | Y64: =+$G64*(75/(104+15.3))*Y206 -> 0 | Z64: 0 | AA64: 0
B65: 241.8 | C65: Zirconium oxide powder | D65: 9.75 | E65: 4.03 | F65: 0 | G65: =+IF('1- INPUTS'!C$11="SOFC TUBULAR",('1- INPUTS'!C$12*D65)/125,IF('1- INPUTS'!C$11="SOFC PLANAR",('1- INPUTS'!C$12*E65),IF('1- INPUTS'!C$11="MCFC",('1- INPUTS'!C$12*F65)/500)))+IF('1- INPUTS'!C$11="ReSOFC",('1- INPUTS'!C$12*E65)) -> 0 | H65: =+$G65*H206 -> 0 | I65: 0 | J65: 0 | K65: 0 | L65: 0 | M65: 0 | N65: 0 | O65: 0 | P65: 0 | Q65: 0 | R65: 0 | S65: 0 | T65: 0 | U65: 0 | V65: 0 | W65: 0 | X65: 0 | Y65: =+$G65*Y206 -> 0 | Z65: 0 | AA65: 0
B66: 30.6 | C66: YSZ 3% | D66: 0 | E66: 0.51 | F66: 0 | G66: =+IF('1- INPUTS'!C$11="SOFC TUBULAR",('1- INPUTS'!C$12*D66)/125,IF('1- INPUTS'!C$11="SOFC PLANAR",('1- INPUTS'!C$12*E66),IF('1- INPUTS'!C$11="MCFC",('1- INPUTS'!C$12*F66)/500)))+IF('1- INPUTS'!C$11="ReSOFC",('1- INPUTS'!C$12*E66)) -> 0 | H66: =+$G66*H207 -> 0 | I66: 0 | J66: 0 | K66: 0 | L66: 0 | M66: 0 | N66: 0 | O66: 0 | P66: 0 | Q66: 0 | R66: 0 | S66: 0 | T66: 0 | U66: 0 | V66: 0 | W66: 0 | X66: 0 | Y66: =+$G66*Y207 -> 0 | Z66: 0 | AA66: 0
B67: 18.3 | C67: Lanthanum Strontium Manganite (LSM) | D67: 0 | E67: =+(0.17+0.44)/2 -> 0.305 | F67: 0 | G67: =+IF('1- INPUTS'!C$11="SOFC TUBULAR",('1- INPUTS'!C$12*D67)/125,IF('1- INPUTS'!C$11="SOFC PLANAR",('1- INPUTS'!C$12*E67),IF('1- INPUTS'!C$11="MCFC",('1- INPUTS'!C$12*F67)/500)))+IF('1- INPUTS'!C$11="ReSOFC",('1- INPUTS'!C$12*E67)) -> 0 | H67: =+$G67*H208 -> 0 | I67: =+$G67*(75/(104+15.3))*I208 -> 0 | J67: 0 | K67: 0 | L67: 0 | M67: 0 | N67: 0 | O67: 0 | P67: 0 | Q67: 0 | R67: 0 | S67: 0 | T67: 0 | U67: 0 | V67: 0 | W67: 0 | X67: 0 | Y67: =+$G67*(75/(104+15.3))*Y208 -> 0 | Z67: 0 | AA67: 0
B68: 15.39 | C68: Nickel Oxide | D68: 9.75 | E68: =+(0.089+0.424)/2 -> 0.2565 | F68: 0 | G68: =+IF('1- INPUTS'!C$11="SOFC TUBULAR",('1- INPUTS'!C$12*D68)/125,IF('1- INPUTS'!C$11="SOFC PLANAR",('1- INPUTS'!C$12*E68),IF('1- INPUTS'!C$11="MCFC",('1- INPUTS'!C$12*F68)/500)))+IF('1- INPUTS'!C$11="ReSOFC",('1- INPUTS'!C$12*E68)) -> 0 | H68: =+(7.67/9.75)*$G68*H209 -> 0 | I68: 0 | J68: 0 | K68: 0 | L68: 0 | M68: 0 | N68: 0 | O68: 0 | P68: 0 | Q68: 0 | R68: 0 | S68: 0 | T68: 0 | U68: 0 | V68: 0 | W68: 0 | X68: 0 | Y68: =+(7.67/9.75)*$G68*Y209 -> 0 | Z68: 0 | AA68: 0
B69: 4.38 | C69: Nickel | D69: 0.0125 | E69: 0.073 | F69: 2848 | G69: =+IF('1- INPUTS'!C$11="SOFC TUBULAR",('1- INPUTS'!C$12*D69)/125,IF('1- INPUTS'!C$11="SOFC PLANAR",('1- INPUTS'!C$12*E69),IF('1- INPUTS'!C$11="MCFC",('1- INPUTS'!C$12*F69)/500)))+IF('1- INPUTS'!C$11="ReSOFC",('1- INPUTS'!C$12*E69)) -> 0 | H69: =+$G69*H209 -> 0 | I69: 0 | J69: 0 | K69: 0 | L69: 0 | M69: 0 | N69: 0 | O69: 0 | P69: 0 | Q69: 0 | R69: 0 | S69: 0 | T69: 0 | U69: 0 | V69: 0 | W69: 0 | X69: 0 | Y69: =+$G69*Y209 -> 0 | Z69: 0 | AA69: 0
B70: 45 | C70: Ethanol | D70: 23.4 | E70: 0.75 | F70: 110 | G70: =+IF('1- INPUTS'!C$11="SOFC TUBULAR",('1- INPUTS'!C$12*D70)/125,IF('1- INPUTS'!C$11="SOFC PLANAR",('1- INPUTS'!C$12*E70),IF('1- INPUTS'!C$11="MCFC",('1- INPUTS'!C$12*F70)/500)))+IF('1- INPUTS'!C$11="ReSOFC",('1- INPUTS'!C$12*E70)) -> 0 | H70: =+$G70*H210 -> 0 | I70: 0 | J70: 0 | K70: 0 | L70: 0 | M70: 0 | N70: 0 | O70: 0 | P70: 0 | Q70: 0 | R70: 0 | S70: 0 | T70: 0 | U70: 0 | V70: 0 | W70: 0 | X70: 0 | Y70: =+$G70*Y210 -> 0 | Z70: 0 | AA70: 0
B71: 0 | C71: Polyvinylbutyral (PVB) | D71: 3.88 | E71: 0 | F71: 0 | G71: =+IF('1- INPUTS'!C$11="SOFC TUBULAR",('1- INPUTS'!C$12*D71)/125,IF('1- INPUTS'!C$11="SOFC PLANAR",('1- INPUTS'!C$12*E71),IF('1- INPUTS'!C$11="MCFC",('1- INPUTS'!C$12*F71)/500)))+IF('1- INPUTS'!C$11="ReSOFC",('1- INPUTS'!C$12*E71)) -> 0 | H71: =+(5.23/1.88)*$G71*H211 -> 0 | I71: 0 | J71: 0 | K71: 0 | L71: 0 | M71: 0 | N71: 0 | O71: 0 | P71: 0 | Q71: 0 | R71: 0 | S71: 0 | T71: 0 | U71: 0 | V71: 0 | W71: 0 | X71: 0 | Y71: 0 | Z71: 0 | AA71: 0
B72: 9 | C72: Polyethyleneglycol | D72: 1.5 | E72: 0.15 | F72: 0 | G72: =+IF('1- INPUTS'!C$11="SOFC TUBULAR",('1- INPUTS'!C$12*D72)/125,IF('1- INPUTS'!C$11="SOFC PLANAR",('1- INPUTS'!C$12*E72),IF('1- INPUTS'!C$11="MCFC",('1- INPUTS'!C$12*F72)/500)))+IF('1- INPUTS'!C$11="ReSOFC",('1- INPUTS'!C$12*E72)) -> 0 | H72: =+(1.67/1.5)*$G72*H212 -> 0 | I72: 0 | J72: 0 | K72: 0 | L72: 0 | M72: 0 | N72: 0 | O72: 0 | P72: 0 | Q72: 0 | R72: 0 | S72: 0 | T72: 0 | U72: 0 | V72: 0 | W72: 0 | X72: 0 | Y72: =+(1.67/1.5)*$G72*Y212 -> 0 | Z72: 0 | AA72: 0
B73: 10.2 | C73: Dibutylphthalat | D73: 1.5 | E73: 0.17 | F73: 0 | G73: =+IF('1- INPUTS'!C$11="SOFC TUBULAR",('1- INPUTS'!C$12*D73)/125,IF('1- INPUTS'!C$11="SOFC PLANAR",('1- INPUTS'!C$12*E73),IF('1- INPUTS'!C$11="MCFC",('1- INPUTS'!C$12*F73)/500)))+IF('1- INPUTS'!C$11="ReSOFC",('1- INPUTS'!C$12*E73)) -> 0 | H73: =+$G73*0.5*H213+$G73*0.5*H214 -> 0 | I73: 0 | J73: 0 | K73: 0 | L73: 0 | M73: 0 | N73: 0 | O73: 0 | P73: 0 | Q73: 0 | R73: 0 | S73: 0 | T73: 0 | U73: 0 | V73: 0 | W73: 0 | X73: 0 | Y73: =+$G73*0.5*Y213+$G73*0.5*Y214 -> 0 | Z73: 0 | AA73: 0
B74: 0 | C74: Tetrachloroethylene | D74: 0 | E74: 0 | F74: 180 | G74: =+IF('1- INPUTS'!C$11="SOFC TUBULAR",('1- INPUTS'!C$12*D74)/125,IF('1- INPUTS'!C$11="SOFC PLANAR",('1- INPUTS'!C$12*E74),IF('1- INPUTS'!C$11="MCFC",('1- INPUTS'!C$12*F74)/500)))+IF('1- INPUTS'!C$11="ReSOFC",('1- INPUTS'!C$12*E74)) -> 0 | H74: =+$G74*H215 -> 0 | I74: 0 | J74: 0 | K74: 0 | L74: 0 | M74: 0 | N74: 0 | O74: 0 | P74: 0 | Q74: 0 | R74: 0 | S74: 0 | T74: 0 | U74: 0 | V74: 0 | W74: 0 | X74: 0 | Y74: =+$G74*Y215 -> 0 | Z74: 0 | AA74: 0
B75: 94.2 | C75: Trichloroethylene | D75: 0 | E75: 1.57 | F75: 0 | G75: =+IF('1- INPUTS'!C$11="SOFC TUBULAR",('1- INPUTS'!C$12*D75)/125,IF('1- INPUTS'!C$11="SOFC PLANAR",('1- INPUTS'!C$12*E75),IF('1- INPUTS'!C$11="MCFC",('1- INPUTS'!C$12*F75)/500)))+IF('1- INPUTS'!C$11="ReSOFC",('1- INPUTS'!C$12*E75)) -> 0 | H75: =+$G75*H216 -> 0 | I75: 0 | J75: 0 | K75: 0 | L75: 0 | M75: 0 | N75: 0 | O75: 0 | P75: 0 | Q75: 0 | R75: 0 | S75: 0 | T75: 0 | U75: 0 | V75: 0 | W75: 0 | X75: 0 | Y75: =+$G75*Y216 -> 0 | Z75: 0 | AA75: 0
B76: 0 | C76: Isobutanol | D76: 0 | E76: 0 | F76: 115 | G76: =+IF('1- INPUTS'!C$11="SOFC TUBULAR",('1- INPUTS'!C$12*D76)/125,IF('1- INPUTS'!C$11="SOFC PLANAR",('1- INPUTS'!C$12*E76),IF('1- INPUTS'!C$11="MCFC",('1- INPUTS'!C$12*F76)/500)))+IF('1- INPUTS'!C$11="ReSOFC",('1- INPUTS'!C$12*E76)) -> 0 | H76: =+$G76*H217 -> 0 | I76: 0 | J76: 0 | K76: 0 | L76: 0 | M76: 0 | N76: 0 | O76: 0 | P76: 0 | Q76: 0 | R76: 0 | S76: 0 | T76: 0 | U76: 0 | V76: 0 | W76: 0 | X76: 0 | Y76: =+$G76*Y217 -> 0 | Z76: 0 | AA76: 0
B77: 0 | C77: Methyl ethyl ketone (solvent) | D77: 0 | E77: 0 | F77: 0 | G77: =+IF('1- INPUTS'!C$11="SOFC TUBULAR",('1- INPUTS'!C$12*D77)/125,IF('1- INPUTS'!C$11="SOFC PLANAR",('1- INPUTS'!C$12*E77),IF('1- INPUTS'!C$11="MCFC",('1- INPUTS'!C$12*F77)/500)))+IF('1- INPUTS'!C$11="ReSOFC",('1- INPUTS'!C$12*E77)) -> 0 | H77: =+$G77*H218 -> 0 | I77: 0 | J77: 0 | K77: 0 | L77: 0 | M77: 0 | N77: 0 | O77: 0 | P77: 0 | Q77: 0 | R77: 0 | S77: 0 | T77: 0 | U77: 0 | V77: 0 | W77: 0 | X77: 0 | Y77: =+$G77*Y218 -> 0 | Z77: 0 | AA77: 0
B78: 0 | C78: Benzyl alcohol (solvent) | D78: 0 | E78: 0 | F78: 0 | G78: =+IF('1- INPUTS'!C$11="SOFC TUBULAR",('1- INPUTS'!C$12*D78)/125,IF('1- INPUTS'!C$11="SOFC PLANAR",('1- INPUTS'!C$12*E78),IF('1- INPUTS'!C$11="MCFC",('1- INPUTS'!C$12*F78)/500)))+IF('1- INPUTS'!C$11="ReSOFC",('1- INPUTS'!C$12*E78)) -> 0 | H78: 0 | I78: 0 | J78: 0 | K78: 0 | L78: 0 | M78: 0 | N78: 0 | O78: 0 | P78: 0 | Q78: 0 | R78: 0 | S78: 0 | T78: 0 | U78: 0 | V78: 0 | W78: 0 | X78: 0 | Y78: 0 | Z78: 0 | AA78: 0
B79: 0 | C79: Modified starch (binder) | D79: 0 | E79: 0 | F79: 0 | G79: =+IF('1- INPUTS'!C$11="SOFC TUBULAR",('1- INPUTS'!C$12*D79)/125,IF('1- INPUTS'!C$11="SOFC PLANAR",('1- INPUTS'!C$12*E79),IF('1- INPUTS'!C$11="MCFC",('1- INPUTS'!C$12*F79)/500)))+IF('1- INPUTS'!C$11="ReSOFC",('1- INPUTS'!C$12*E79)) -> 0 | H79: =+$G79*H219 -> 0 | I79: 0 | J79: 0 | K79: 0 | L79: 0 | M79: 0 | N79: 0 | O79: 0 | P79: 0 | Q79: 0 | R79: 0 | S79: 0 | T79: 0 | U79: 0 | V79: 0 | W79: 0 | X79: 0 | Y79: =+$G79*Y220 -> 0 | Z79: =+$G79*Z220 -> 0 | AA79: =+$G79*AA220 -> 0
B80: 0 | C80: Ethylene glycol (binder) | D80: 0 | E80: 0 | F80: 0 | G80: =+IF('1- INPUTS'!C$11="SOFC TUBULAR",('1- INPUTS'!C$12*D80)/125,IF('1- INPUTS'!C$11="SOFC PLANAR",('1- INPUTS'!C$12*E80),IF('1- INPUTS'!C$11="MCFC",('1- INPUTS'!C$12*F80)/500)))+IF('1- INPUTS'!C$11="ReSOFC",('1- INPUTS'!C$12*E80)) -> 0 | H80: =+$G80*H220 -> 0 | I80: 0 | J80: 0 | K80: 0 | L80: 0 | M80: 0 | N80: 0 | O80: 0 | P80: 0 | Q80: 0 | R80: 0 | S80: 0 | T80: 0 | U80: 0 | V80: 0 | W80: 0 | X80: 0 | Y80: 0 | Z80: 0 | AA80: 0
B81: 0 | C81: Water, deionised | D81: 123 | E81: 0 | F81: 0 | G81: =+IF('1- INPUTS'!C$11="SOFC TUBULAR",('1- INPUTS'!C$12*D81)/125,IF('1- INPUTS'!C$11="SOFC PLANAR",('1- INPUTS'!C$12*E81),IF('1- INPUTS'!C$11="MCFC",('1- INPUTS'!C$12*F81)/500)))+IF('1- INPUTS'!C$11="ReSOFC",('1- INPUTS'!C$12*E81)) -> 0 | H81: =+$G81*H221 -> 0 | I81: 0 | J81: 0 | K81: 0 | L81: 0 | M81: 0 | N81: 0 | O81: 0 | P81: 0 | Q81: 0 | R81: 0 | S81: 0 | T81: 0 | U81: 0 | V81: 0 | W81: 0 | X81: 0 | Y81: =+$G81*Y221 -> 0 | Z81: 0 | AA81: 0
B82: 0 | C82: Nitric acid, for powder preparation | D82: 712 | E82: 0 | F82: 0 | G82: =+IF('1- INPUTS'!C$11="SOFC TUBULAR",('1- INPUTS'!C$12*D82)/125,IF('1- INPUTS'!C$11="SOFC PLANAR",('1- INPUTS'!C$12*E82),IF('1- INPUTS'!C$11="MCFC",('1- INPUTS'!C$12*F82)/500)))+IF('1- INPUTS'!C$11="ReSOFC",('1- INPUTS'!C$12*E82)) -> 0 | H82: =+$G82*H222 -> 0 | I82: 0 | J82: 0 | K82: 0 | L82: 0 | M82: 0 | N82: 0 | O82: 0 | P82: 0 | Q82: 0 | R82: 0 | S82: 0 | T82: 0 | U82: 0 | V82: 0 | W82: 0 | X82: 0 | Y82: =+$G82*Y222 -> 0 | Z82: 0 | AA82: 0
B83: 0 | C83: Chlorine, for carbochlorination of oxide powder | D83: 85 | E83: 0 | F83: 0 | G83: =+IF('1- INPUTS'!C$11="SOFC TUBULAR",('1- INPUTS'!C$12*D83)/125,IF('1- INPUTS'!C$11="SOFC PLANAR",('1- INPUTS'!C$12*E83),IF('1- INPUTS'!C$11="MCFC",('1- INPUTS'!C$12*F83)/500)))+IF('1- INPUTS'!C$11="ReSOFC",('1- INPUTS'!C$12*E83)) -> 0 | H83: =+$G83*H223 -> 0 | I83: 0 | J83: 0 | K83: 0 | L83: 0 | M83: 0 | N83: 0 | O83: 0 | P83: 0 | Q83: 0 | R83: 0 | S83: 0 | T83: 0 | U83: 0 | V83: 0 | W83: 0 | X83: 0 | Y83: =+$G83*Y223 -> 0 | Z83: 0 | AA83: 0
B84: 0 | C84: Petroleum coke, for carbochlorination of oxide powder | D84: 14 | E84: 0 | F84: 0 | G84: =+IF('1- INPUTS'!C$11="SOFC TUBULAR",('1- INPUTS'!C$12*D84)/125,IF('1- INPUTS'!C$11="SOFC PLANAR",('1- INPUTS'!C$12*E84),IF('1- INPUTS'!C$11="MCFC",('1- INPUTS'!C$12*F84)/500)))+IF('1- INPUTS'!C$11="ReSOFC",('1- INPUTS'!C$12*E84)) -> 0 | H84: =+$G84*H224 -> 0 | I84: 0 | J84: 0 | K84: 0 | L84: 0 | M84: 0 | N84: 0 | O84: 0 | P84: 0 | Q84: 0 | R84: 0 | S84: 0 | T84: 0 | U84: 0 | V84: 0 | W84: 0 | X84: 0 | Y84: =+$G84*Y224 -> 0 | Z84: 0 | AA84: 0
B85: 0 | C85: Urea, as N, for SCR emission treatment | D85: 350 | E85: 0 | F85: 0 | G85: =+IF('1- INPUTS'!C$11="SOFC TUBULAR",('1- INPUTS'!C$12*D85)/125,IF('1- INPUTS'!C$11="SOFC PLANAR",('1- INPUTS'!C$12*E85),IF('1- INPUTS'!C$11="MCFC",('1- INPUTS'!C$12*F85)/500)))+IF('1- INPUTS'!C$11="ReSOFC",('1- INPUTS'!C$12*E85)) -> 0 | H85: =+$G85*H225 -> 0 | I85: 0 | J85: 0 | K85: 0 | L85: 0 | M85: 0 | N85: 0 | O85: 0 | P85: 0 | Q85: 0 | R85: 0 | S85: 0 | T85: 0 | U85: 0 | V85: 0 | W85: 0 | X85: 0 | Y85: =+$G85*Y225 -> 0 | Z85: 0 | AA85: 0
B86: 561.6 | C86: Chromium | D86: 0 | E86: 9.36 | F86: 124.8 | G86: =+IF('1- INPUTS'!C$11="SOFC TUBULAR",('1- INPUTS'!C$12*D86)/125,IF('1- INPUTS'!C$11="SOFC PLANAR",('1- INPUTS'!C$12*E86),IF('1- INPUTS'!C$11="MCFC",('1- INPUTS'!C$12*F86)/500)))+IF('1- INPUTS'!C$11="ReSOFC",('1- INPUTS'!C$12*E86)) -> 0 | H86: =+$G86*H226*0.95+0.01*$G86*H207 -> 0 | I86: 0 | J86: 0 | K86: 0 | L86: 0 | M86: 0 | N86: 0 | O86: 0 | P86: 0 | Q86: 0 | R86: 0 | S86: 0 | T86: 0 | U86: 0 | V86: 0 | W86: 0 | X86: 0 | Y86: =+$G86*Y226*0.95+0.01*$G86*Y207 -> 0 | Z86: 0 | AA86: 0
B87: 0 | C87: Lithium aluminate (LiAlO₂) | D87: 0 | E87: 0 | F87: 848 | G87: =+IF('1- INPUTS'!C$11="SOFC TUBULAR",('1- INPUTS'!C$12*D87)/125,IF('1- INPUTS'!C$11="SOFC PLANAR",('1- INPUTS'!C$12*E87),IF('1- INPUTS'!C$11="MCFC",('1- INPUTS'!C$12*F87)/500)))+IF('1- INPUTS'!C$11="ReSOFC",('1- INPUTS'!C$12*E87)) -> 0 | H87: =+$G87*0.65*H227+$G87*0.35*H230 -> 0 | I87: 0 | J87: 0 | K87: 0 | L87: 0 | M87: 0 | N87: 0 | O87: 0 | P87: 0 | Q87: 0 | R87: 0 | S87: 0 | T87: 0 | U87: 0 | V87: 0 | W87: 0 | X87: 0 | Y87: =+$G87*0.65*Y227+$G87*0.35*Y230 -> 0 | Z87: 0 | AA87: 0
B88: 0 | C88: Lithium carbonate (Li₂CO₃) | D88: 0 | E88: 0 | F88: =+'1- INPUTS'!C$12*0.62*0.75 -> 0 | G88: =+IF('1- INPUTS'!C$11="SOFC TUBULAR",('1- INPUTS'!C$12*D88)/125,IF('1- INPUTS'!C$11="SOFC PLANAR",('1- INPUTS'!C$12*E88),IF('1- INPUTS'!C$11="MCFC",('1- INPUTS'!C$12*F88)/500)))+IF('1- INPUTS'!C$11="ReSOFC",('1- INPUTS'!C$12*E88)) -> 0 | H88: =+$G88*H228 -> 0 | I88: 0 | J88: 0 | K88: 0 | L88: 0 | M88: 0 | N88: 0 | O88: 0 | P88: 0 | Q88: 0 | R88: 0 | S88: 0 | T88: 0 | U88: 0 | V88: 0 | W88: 0 | X88: 0 | Y88: =+$G88*Y228 -> 0 | Z88: 0 | AA88: 0
B89: 0 | C89: Sodium Carbonate(Na₂CO₃) | D89: 0 | E89: 0 | F89: =+'1- INPUTS'!C$12*0.38*0.75 -> 0 | G89: =+IF('1- INPUTS'!C$11="SOFC TUBULAR",('1- INPUTS'!C$12*D89)/125,IF('1- INPUTS'!C$11="SOFC PLANAR",('1- INPUTS'!C$12*E89),IF('1- INPUTS'!C$11="MCFC",('1- INPUTS'!C$12*F89)/500)))+IF('1- INPUTS'!C$11="ReSOFC",('1- INPUTS'!C$12*E89)) -> 0 | H89: =+$G89*H229 -> 0 | I89: 0 | J89: 0 | K89: 0 | L89: 0 | M89: 0 | N89: 0 | O89: 0 | P89: 0 | Q89: 0 | R89: 0 | S89: 0 | T89: 0 | U89: 0 | V89: 0 | W89: 0 | X89: 0 | Y89: =+$G89*Y229 -> 0 | Z89: 0 | AA89: 0
B90: 0 | C90: Reinforcing steel, at plant | D90: 0 | E90: 0 | F90: 0 | G90: =+IF('1- INPUTS'!C$11="SOFC TUBULAR",('1- INPUTS'!C$12*D90)/125,IF('1- INPUTS'!C$11="SOFC PLANAR",('1- INPUTS'!C$12*E90),IF('1- INPUTS'!C$11="MCFC",('1- INPUTS'!C$12*F90)/500)))+IF('1- INPUTS'!C$11="ReSOFC",('1- INPUTS'!C$12*E90)) -> 0 | H90: =+$G90*H231 -> 0 | I90: 0 | J90: 0 | K90: 0 | L90: 0 | M90: 0 | N90: 0 | O90: 0 | P90: 0 | Q90: 0 | R90: 0 | S90: 0 | T90: 0 | U90: 0 | V90: 0 | W90: 0 | X90: 0 | Y90: =+$G90*Y231 -> 0 | Z90: 0 | AA90: 0
B91: 0 | C91: Sheet rooling steel | D91: 0 | E91: 0 | F91: =+F90 -> 0 | G91: =+IF('1- INPUTS'!C$11="SOFC TUBULAR",('1- INPUTS'!C$12*D91)/125,IF('1- INPUTS'!C$11="SOFC PLANAR",('1- INPUTS'!C$12*E91),IF('1- INPUTS'!C$11="MCFC",('1- INPUTS'!C$12*F91)/500)))+IF('1- INPUTS'!C$11="ReSOFC",('1- INPUTS'!C$12*E91)) -> 0 | H91: =+$G91*H232 -> 0 | I91: 0 | J91: 0 | K91: 0 | L91: 0 | M91: 0 | N91: 0 | O91: 0 | P91: 0 | Q91: 0 | R91: 0 | S91: 0 | T91: 0 | U91: 0 | V91: 0 | W91: 0 | X91: 0 | Y91: =+$G91*Y232 -> 0 | Z91: 0 | AA91: 0
B92: 324.9 | C92: Chromium steel 18/8, at plant | D92: 0 | E92: =+(2.17+8.66)/2 -> 5.415 | F92: 4248 | G92: =+IF('1- INPUTS'!C$11="SOFC TUBULAR",('1- INPUTS'!C$12*D92)/125,IF('1- INPUTS'!C$11="SOFC PLANAR",('1- INPUTS'!C$12*E92),IF('1- INPUTS'!C$11="MCFC",('1- INPUTS'!C$12*F92)/500)))+IF('1- INPUTS'!C$11="ReSOFC",('1- INPUTS'!C$12*E92)) -> 0 | H92: =+$G92*H233 -> 0 | I92: 0 | J92: 0 | K92: 0 | L92: 0 | M92: 0 | N92: 0 | O92: 0 | P92: 0 | Q92: 0 | R92: 0 | S92: 0 | T92: 0 | U92: 0 | V92: 0 | W92: 0 | X92: 0 | Y92: =+$G92*Y233 -> 0 | Z92: 0 | AA92: 0
B93: 324.9 | C93: Sheet rolling, chromium steel | D93: 0 | E93: =+(2.17+8.66)/2 -> 5.415 | F93: =+F92 -> 4248 | G93: =+IF('1- INPUTS'!C$11="SOFC TUBULAR",('1- INPUTS'!C$12*D93)/125,IF('1- INPUTS'!C$11="SOFC PLANAR",('1- INPUTS'!C$12*E93),IF('1- INPUTS'!C$11="MCFC",('1- INPUTS'!C$12*F93)/500)))+IF('1- INPUTS'!C$11="ReSOFC",('1- INPUTS'!C$12*E93)) -> 0 | H93: =+$G93*H234 -> 0 | I93: 0 | J93: 0 | K93: 0 | L93: 0 | M93: 0 | N93: 0 | O93: 0 | P93: 0 | Q93: 0 | R93: 0 | S93: 0 | T93: 0 | U93: 0 | V93: 0 | W93: 0 | X93: 0 | Y93: =+$G93*Y234 -> 0 | Z93: 0 | AA93: 0
B94: 0 | C94: Heating production site: natural gas, at industrial furnace >100kW | D94: 26700 | E94: 0 | G94: =+IF('1- INPUTS'!C$11="SOFC TUBULAR",('1- INPUTS'!C$12*D94)/125,IF('1- INPUTS'!C$11="SOFC PLANAR",('1- INPUTS'!C$12*E94),IF('1- INPUTS'!C$11="MCFC",('1- INPUTS'!C$12*F94)/500)))+IF('1- INPUTS'!C$11="ReSOFC",('1- INPUTS'!C$12*E94)) -> 0 | H94: =+$G94*H235 -> 0 | I94: 0 | J94: 0 | K94: 0 | L94: 0 | M94: 0 | N94: 0 | O94: 0 | P94: 0 | Q94: 0 | R94: 0 | S94: 0 | T94: 0 | U94: 0 | V94: 0 | W94: 0 | X94: 0 | Y94: =+$G94*Y235 -> 0 | Z94: 0 | AA94: 0
B95: 22320 | C95: Electricity, medium voltage, production UCTE, at grid | D95: 9540 | E95: =+(191+553)/2 -> 372 | F95: 173373 | G95: =+IF('1- INPUTS'!C$11="SOFC TUBULAR",('1- INPUTS'!C$12*D95)/125,IF('1- INPUTS'!C$11="SOFC PLANAR",('1- INPUTS'!C$12*E95),IF('1- INPUTS'!C$11="MCFC",('1- INPUTS'!C$12*F95)/500)))+IF('1- INPUTS'!C$11="ReSOFC",('1- INPUTS'!C$12*E95)) -> 0 | H95: =+$G95*H236 -> 0 | I95: 0 | J95: 0 | K95: 0 | L95: 0 | M95: 0 | N95: 0 | O95: 0 | P95: 0 | Q95: 0 | R95: 0 | S95: 0 | T95: 0 | U95: 0 | V95: 0 | W95: 0 | X95: 0 | Y95: =+$G95*Y236 -> 0 | Z95: 0 | AA95: 0
B96: 0 | C96: Aluminium oxide, at plant | D96: 0 | E96: 0 | F96: 0 | G96: =+IF('1- INPUTS'!C$11="SOFC TUBULAR",('1- INPUTS'!C$12*D96)/125,IF('1- INPUTS'!C$11="SOFC PLANAR",('1- INPUTS'!C$12*E96),IF('1- INPUTS'!C$11="MCFC",('1- INPUTS'!C$12*F96)/500)))+IF('1- INPUTS'!C$11="ReSOFC",('1- INPUTS'!C$12*E96)) -> 0 | H96: =+$G96*H230 -> 0 | I96: 0 | J96: 0 | K96: 0 | L96: 0 | M96: 0 | N96: 0 | O96: 0 | P96: 0 | Q96: 0 | R96: 0 | S96: 0 | T96: 0 | U96: 0 | V96: 0 | W96: 0 | X96: 0 | Y96: =+$G96*Y230 -> 0 | Z96: 0 | AA96: 0
B97: 90 | C97: Alumina-silica insulation material | D97: 0 | E97: =+(0.6+2.4)/2 -> 1.5 | F97: 0 | G97: =+IF('1- INPUTS'!C$11="SOFC TUBULAR",('1- INPUTS'!C$12*D97)/125,IF('1- INPUTS'!C$11="SOFC PLANAR",('1- INPUTS'!C$12*E97),IF('1- INPUTS'!C$11="MCFC",('1- INPUTS'!C$12*F97)/500)))+IF('1- INPUTS'!C$11="ReSOFC",('1- INPUTS'!C$12*E97)) -> 0 | H97: =+$G97*H230 -> 0 | I97: 0 | J97: 0 | K97: 0 | L97: 0 | M97: 0 | N97: 0 | O97: 0 | P97: 0 | Q97: 0 | R97: 0 | S97: 0 | T97: 0 | U97: 0 | V97: 0 | W97: 0 | X97: 0 | Y97: =+$G97*Y230 -> 0 | Z97: 0 | AA97: 0
B98: 0 | C98: Iron-nickel-chromium alloy | D98: 0 | E98: 0 | F98: 0 | G98: =+IF('1- INPUTS'!C$11="SOFC TUBULAR",('1- INPUTS'!C$12*D98)/125,IF('1- INPUTS'!C$11="SOFC PLANAR",('1- INPUTS'!C$12*E98),IF('1- INPUTS'!C$11="MCFC",('1- INPUTS'!C$12*F98)/500)))+IF('1- INPUTS'!C$11="ReSOFC",('1- INPUTS'!C$12*E98)) -> 0 | H98: =+$G98*H237 -> 0 | I98: 0 | J98: 0 | K98: 0 | L98: 0 | M98: 0 | N98: 0 | O98: 0 | P98: 0 | Q98: 0 | R98: 0 | S98: 0 | T98: 0 | U98: 0 | V98: 0 | W98: 0 | X98: 0 | Y98: =+$G98*Y237 -> 0 | Z98: 0 | AA98: 0
B99: 0 | C99: Copper | D99: 0 | E99: 0 | F99: 0 | G99: =+IF('1- INPUTS'!C$11="SOFC TUBULAR",('1- INPUTS'!C$12*D99)/125,IF('1- INPUTS'!C$11="SOFC PLANAR",('1- INPUTS'!C$12*E99),IF('1- INPUTS'!C$11="MCFC",('1- INPUTS'!C$12*F99)/500)))+IF('1- INPUTS'!C$11="ReSOFC",('1- INPUTS'!C$12*E99)) -> 0 | H99: =+$G99*H238 -> 0 | I99: 0 | J99: 0 | K99: 0 | L99: 0 | M99: 0 | N99: 0 | O99: 0 | P99: 0 | Q99: 0 | R99: 0 | S99: 0 | T99: 0 | U99: 0 | V99: 0 | W99: 0 | X99: 0 | Y99: =+$G99*Y238 -> 0 | Z99: 0 | AA99: 0
B100: 0 | C100: Polyethylene, HDPE, granulate | D100: 0 | E100: 0 | F100: 0 | G100: =+IF('1- INPUTS'!C$11="SOFC TUBULAR",('1- INPUTS'!C$12*D100)/125,IF('1- INPUTS'!C$11="SOFC PLANAR",('1- INPUTS'!C$12*E100),IF('1- INPUTS'!C$11="MCFC",('1- INPUTS'!C$12*F100)/500)))+IF('1- INPUTS'!C$11="ReSOFC",('1- INPUTS'!C$12*E100)) -> 0 | H100: =+$G100*H239 -> 0 | I100: 0 | J100: 0 | K100: 0 | L100: 0 | M100: 0 | N100: 0 | O100: 0 | P100: 0 | Q100: 0 | R100: 0 | S100: 0 | T100: 0 | U100: 0 | V100: 0 | W100: 0 | X100: 0 | Y100: =+$G100*Y239 -> 0 | Z100: 0 | AA100: 0
B101: 0 | C101: Polyethylene, LDPE, granulate | D101: 0 | E101: 0 | F101: 0 | G101: =+IF('1- INPUTS'!C$11="SOFC TUBULAR",('1- INPUTS'!C$12*D101)/125,IF('1- INPUTS'!C$11="SOFC PLANAR",('1- INPUTS'!C$12*E101),IF('1- INPUTS'!C$11="MCFC",('1- INPUTS'!C$12*F101)/500)))+IF('1- INPUTS'!C$11="ReSOFC",('1- INPUTS'!C$12*E101)) -> 0 | H101: =+$G101*H240 -> 0 | I101: 0 | J101: 0 | K101: 0 | L101: 0 | M101: 0 | N101: 0 | O101: 0 | P101: 0 | Q101: 0 | R101: 0 | S101: 0 | T101: 0 | U101: 0 | V101: 0 | W101: 0 | X101: 0 | Y101: =+$G101*Y240 -> 0 | Z101: 0 | AA101: 0
B102: 0 | C102: Polypropylene, PP, granulate | D102: 0 | E102: 0 | F102: 0 | G102: =+IF('1- INPUTS'!C$11="SOFC TUBULAR",('1- INPUTS'!C$12*D102)/125,IF('1- INPUTS'!C$11="SOFC PLANAR",('1- INPUTS'!C$12*E102),IF('1- INPUTS'!C$11="MCFC",('1- INPUTS'!C$12*F102)/500)))+IF('1- INPUTS'!C$11="ReSOFC",('1- INPUTS'!C$12*E102)) -> 0 | H102: =+$G102*H241 -> 0 | I102: 0 | J102: 0 | K102: 0 | L102: 0 | M102: 0 | N102: 0 | O102: 0 | P102: 0 | Q102: 0 | R102: 0 | S102: 0 | T102: 0 | U102: 0 | V102: 0 | W102: 0 | X102: 0 | Y102: =+$G102*Y241 -> 0 | Z102: 0 | AA102: 0
B103: 0 | C103: Polyvinylidenchloride, granulate | D103: 0 | E103: 0 | F103: 0 | G103: =+IF('1- INPUTS'!C$11="SOFC TUBULAR",('1- INPUTS'!C$12*D103)/125,IF('1- INPUTS'!C$11="SOFC PLANAR",('1- INPUTS'!C$12*E103),IF('1- INPUTS'!C$11="MCFC",('1- INPUTS'!C$12*F103)/500)))+IF('1- INPUTS'!C$11="ReSOFC",('1- INPUTS'!C$12*E103)) -> 0 | H103: =+$G103*H242 -> 0 | I103: 0 | J103: 0 | K103: 0 | L103: 0 | M103: 0 | N103: 0 | O103: 0 | P103: 0 | Q103: 0 | R103: 0 | S103: 0 | T103: 0 | U103: 0 | V103: 0 | W103: 0 | X103: 0 | Y103: =+$G103*Y242 -> 0 | Z103: 0 | AA103: 0
B104: 0 | C104: Synthetic rubber | D104: 0 | E104: 0 | F104: 0 | G104: =+IF('1- INPUTS'!C$11="SOFC TUBULAR",('1- INPUTS'!C$12*D104)/125,IF('1- INPUTS'!C$11="SOFC PLANAR",('1- INPUTS'!C$12*E104),IF('1- INPUTS'!C$11="MCFC",('1- INPUTS'!C$12*F104)/500)))+IF('1- INPUTS'!C$11="ReSOFC",('1- INPUTS'!C$12*E104)) -> 0 | H104: =+$G104*H243 -> 0 | I104: =+$G104*I243 -> 0 | J104: 0 | K104: 0 | L104: 0 | M104: 0 | N104: 0 | O104: 0 | P104: 0 | Q104: 0 | R104: 0 | S104: 0 | T104: 0 | U104: 0 | V104: 0 | W104: 0 | X104: 0 | Y104: =+$G104*Y243 -> 0 | Z104: 0 | AA104: 0
B105: 0 | C105: Brass | D105: 0 | E105: 0 | F105: 0 | G105: =+IF('1- INPUTS'!C$11="SOFC TUBULAR",('1- INPUTS'!C$12*D105)/125,IF('1- INPUTS'!C$11="SOFC PLANAR",('1- INPUTS'!C$12*E105),IF('1- INPUTS'!C$11="MCFC",('1- INPUTS'!C$12*F105)/500)))+IF('1- INPUTS'!C$11="ReSOFC",('1- INPUTS'!C$12*E105)) -> 0 | H105: =+$G105*H244 -> 0 | I105: 0 | J105: 0 | K105: 0 | L105: 0 | M105: 0 | N105: 0 | O105: 0 | P105: 0 | Q105: 0 | R105: 0 | S105: 0 | T105: 0 | U105: 0 | V105: 0 | W105: 0 | X105: 0 | Y105: =+$G105*Y244 -> 0 | Z105: 0 | AA105: 0
B106: 0 | C106: Zinc catalyst for desulphuriser | D106: 0 | E106: 0 | F106: 0 | G106: =+IF('1- INPUTS'!C$11="SOFC TUBULAR",('1- INPUTS'!C$12*D106)/125,IF('1- INPUTS'!C$11="SOFC PLANAR",('1- INPUTS'!C$12*E106),IF('1- INPUTS'!C$11="MCFC",('1- INPUTS'!C$12*F106)/500)))+IF('1- INPUTS'!C$11="ReSOFC",('1- INPUTS'!C$12*E106)) -> 0 | H106: =+$G106*H245 -> 0 | I106: 0 | J106: 0 | K106: 0 | L106: 0 | M106: 0 | N106: 0 | O106: 0 | P106: 0 | Q106: 0 | R106: 0 | S106: 0 | T106: 0 | U106: 0 | V106: 0 | W106: 0 | X106: 0 | Y106: =+$G106*Y245 -> 0 | Z106: 0 | AA106: 0
B107: 290.514 | C107: Transport, van <3.5t | D107: =+((SUM(D$61:D$90)+D$92+D$96+D$97+D$98+D$99+SUM(D$100:D$105))*'1- INPUTS'!$C26)/1000 -> 398.5685 | E107: =+((SUM(E$61:E$90)+E$92+E$96+E$97+E$98+E$99+SUM(E$100:E$105))*'1- INPUTS'!$C26)/1000 -> 4.8419 | F107: =+((SUM(F$61:F$90)+F$92+F$96+F$97+F$98+F$99+SUM(F$100:F$105))*'1- INPUTS'!$C26)/1000 -> 1694.76 | G107: =+IF('1- INPUTS'!C$11="SOFC TUBULAR",('1- INPUTS'!C$12*D107)/125,IF('1- INPUTS'!C$11="SOFC PLANAR",('1- INPUTS'!C$12*E107),IF('1- INPUTS'!C$11="MCFC",('1- INPUTS'!C$12*F107)/500)))+IF('1- INPUTS'!C$11="ReSOFC",('1- INPUTS'!C$12*E107)) -> 0 | H107: =+$G107*H246 -> 0 | I107: 0 | J107: 0 | K107: 0 | L107: 0 | M107: 0 | N107: 0 | O107: 0 | P107: 0 | Q107: 0 | R107: 0 | S107: 0 | T107: 0 | U107: 0 | V107: 0 | W107: 0 | X107: 0 | Y107: =+$G107*Y246 -> 0 | Z107: 0 | AA107: 0
B108: 290.514 | C108: Transport, lorry >16t, fleet average | D108: =+((SUM(D$61:D$90)+D$92+D$96+D$97+D$98+D$99+SUM(D$100:D$105))*'1- INPUTS'!$C27)/1000 -> 398.5685 | E108: =+((SUM(E$61:E$90)+E$92+E$96+E$97+E$98+E$99+SUM(E$100:E$105))*'1- INPUTS'!$C27)/1000 -> 4.8419 | F108: =+((SUM(F$61:F$90)+F$92+F$96+F$97+F$98+F$99+SUM(F$100:F$105))*'1- INPUTS'!$C27)/1000 -> 1694.76 | G108: =+IF('1- INPUTS'!C$11="SOFC TUBULAR",('1- INPUTS'!C$12*D108)/125,IF('1- INPUTS'!C$11="SOFC PLANAR",('1- INPUTS'!C$12*E108),IF('1- INPUTS'!C$11="MCFC",('1- INPUTS'!C$12*F108)/500)))+IF('1- INPUTS'!C$11="ReSOFC",('1- INPUTS'!C$12*E108)) -> 0 | H108: =+$G108*H247 -> 0 | I108: 0 | J108: 0 | K108: 0 | L108: 0 | M108: 0 | N108: 0 | O108: 0 | P108: 0 | Q108: 0 | R108: 0 | S108: 0 | T108: 0 | U108: 0 | V108: 0 | W108: 0 | X108: 0 | Y108: =+$G108*Y247 -> 0 | Z108: 0 | AA108: 0
B109: 290.514 | C109: Transport, freight, rail | D109: =+((SUM(D$61:D$90)+D$92+D$96+D$97+D$98+D$99+SUM(D$100:D$105))*'1- INPUTS'!$C28)/1000 -> 398.5685 | E109: =+((SUM(E$61:E$90)+E$92+E$96+E$97+E$98+E$99+SUM(E$100:E$105))*'1- INPUTS'!$C28)/1000 -> 4.8419 | F109: =+((SUM(F$61:F$90)+F$92+F$96+F$97+F$98+F$99+SUM(F$100:F$105))*'1- INPUTS'!$C28)/1000 -> 1694.76 | G109: =+IF('1- INPUTS'!C$11="SOFC TUBULAR",('1- INPUTS'!C$12*D109)/125,IF('1- INPUTS'!C$11="SOFC PLANAR",('1- INPUTS'!C$12*E109),IF('1- INPUTS'!C$11="MCFC",('1- INPUTS'!C$12*F109)/500)))+IF('1- INPUTS'!C$11="ReSOFC",('1- INPUTS'!C$12*E109)) -> 0 | H109: =+$G109*H248 -> 0 | I109: 0 | J109: 0 | K109: 0 | L109: 0 | M109: 0 | N109: 0 | O109: 0 | P109: 0 | Q109: 0 | R109: 0 | S109: 0 | T109: 0 | U109: 0 | V109: 0 | W109: 0 | X109: 0 | Y109: =+$G109*Y248 -> 0 | Z109: 0 | AA109: 0
B110: 290.514 | C110: Transport, transoceanic freight ship | D110: =+((SUM(D$61:D$90)+D$92+D$96+D$97+D$98+D$99+SUM(D$100:D$105))*'1- INPUTS'!$C29)/1000 -> 398.5685 | E110: =+((SUM(E$61:E$90)+E$92+E$96+E$97+E$98+E$99+SUM(E$100:E$105))*'1- INPUTS'!$C29)/1000 -> 4.8419 | F110: =+((SUM(F$61:F$90)+F$92+F$96+F$97+F$98+F$99+SUM(F$100:F$105))*'1- INPUTS'!$C29)/1000 -> 1694.76 | G110: =+IF('1- INPUTS'!C$11="SOFC TUBULAR",('1- INPUTS'!C$12*D110)/125,IF('1- INPUTS'!C$11="SOFC PLANAR",('1- INPUTS'!C$12*E110),IF('1- INPUTS'!C$11="MCFC",('1- INPUTS'!C$12*F110)/500)))+IF('1- INPUTS'!C$11="ReSOFC",('1- INPUTS'!C$12*E110)) -> 0 | H110: =+$G110*H249 -> 0 | I110: 0 | J110: 0 | K110: 0 | L110: 0 | M110: 0 | N110: 0 | O110: 0 | P110: 0 | Q110: 0 | R110: 0 | S110: 0 | T110: 0 | U110: 0 | V110: 0 | W110: 0 | X110: 0 | Y110: =+$G110*Y249 -> 0 | Z110: 0 | AA110: 0
B111: 290.514 | C111: Transport, lorry >28t, fleet average | D111: =+((SUM(D$61:D$90)+D$92+D$96+D$97+D$98+D$99+SUM(D$100:D$105))*'1- INPUTS'!$C30)/1000 -> 398.5685 | E111: =+((SUM(E$61:E$90)+E$92+E$96+E$97+E$98+E$99+SUM(E$100:E$105))*'1- INPUTS'!$C30)/1000 -> 4.8419 | F111: =+((SUM(F$61:F$90)+F$92+F$96+F$97+F$98+F$99+SUM(F$100:F$105))*'1- INPUTS'!$C30)/1000 -> 1694.76 | G111: =+IF('1- INPUTS'!C$11="SOFC TUBULAR",('1- INPUTS'!C$12*D111)/125,IF('1- INPUTS'!C$11="SOFC PLANAR",('1- INPUTS'!C$12*E111),IF('1- INPUTS'!C$11="MCFC",('1- INPUTS'!C$12*F111)/500)))+IF('1- INPUTS'!C$11="ReSOFC",('1- INPUTS'!C$12*E111)) -> 0 | H111: =+$G111*H250 -> 0 | I111: 0 | J111: 0 | K111: 0 | L111: 0 | M111: 0 | N111: 0 | O111: 0 | P111: 0 | Q111: 0 | R111: 0 | S111: 0 | T111: 0 | U111: 0 | V111: 0 | W111: 0 | X111: 0 | Y111: =+$G111*Y250 -> 0 | Z111: 0 | AA111: 0
B112: 290.514 | C112: Transport, barge | D112: =+((SUM(D$61:D$90)+D$92+D$96+D$97+D$98+D$99+SUM(D$100:D$105))*'1- INPUTS'!$C31)/1000 -> 398.5685 | E112: =+((SUM(E$61:E$90)+E$92+E$96+E$97+E$98+E$99+SUM(E$100:E$105))*'1- INPUTS'!$C31)/1000 -> 4.8419 | F112: =+((SUM(F$61:F$90)+F$92+F$96+F$97+F$98+F$99+SUM(F$100:F$105))*'1- INPUTS'!$C31)/1000 -> 1694.76 | G112: =+IF('1- INPUTS'!C$11="SOFC TUBULAR",('1- INPUTS'!C$12*D112)/125,IF('1- INPUTS'!C$11="SOFC PLANAR",('1- INPUTS'!C$12*E112),IF('1- INPUTS'!C$11="MCFC",('1- INPUTS'!C$12*F112)/500)))+IF('1- INPUTS'!C$11="ReSOFC",('1- INPUTS'!C$12*E112)) -> 0 | H112: =+$G112*H251 -> 0 | I112: 0 | J112: 0 | K112: 0 | L112: 0 | M112: 0 | N112: 0 | O112: 0 | P112: 0 | Q112: 0 | R112: 0 | S112: 0 | T112: 0 | U112: 0 | V112: 0 | W112: 0 | X112: 0 | Y112: =+$G112*Y251 -> 0 | Z112: 0 | AA112: 0
H113: =SUM(H61:H112) -> 0 | I113: =SUM(I61:I112) -> 0 | J113: 0 | K113: 0 | L113: 0 | M113: 0 | N113: 0 | O113: 0 | P113: 0 | Q113: 0 | R113: 0 | S113: 0 | T113: 0 | U113: 0 | V113: 0 | W113: 0 | X113: 0 | Y113: 0 | Z113: 0 | AA113: 0
H114: =+IF('1- INPUTS'!$C$54="No allocation",H113*Infra_Stack,H113*Infra_Stack*ELALLF) ->  | I114: =+IF('1- INPUTS'!$C$54="No allocation",I113*Infra_Stack,I113*Infra_Stack*ELALLF) ->  | J114: =+IF('1- INPUTS'!$C$54="No allocation",J113*Infra_Stack,J113*Infra_Stack*ELALLF) ->  | K114: =+IF('1- INPUTS'!$C$54="No allocation",K113*Infra_Stack,K113*Infra_Stack*ELALLF) ->  | L114: =+IF('1- INPUTS'!$C$54="No allocation",L113*Infra_Stack,L113*Infra_Stack*ELALLF) ->  | M114: =+IF('1- INPUTS'!$C$54="No allocation",M113*Infra_Stack,M113*Infra_Stack*ELALLF) ->  | N114: =+IF('1- INPUTS'!$C$54="No allocation",N113*Infra_Stack,N113*Infra_Stack*ELALLF) ->  | O114: =+IF('1- INPUTS'!$C$54="No allocation",O113*Infra_Stack,O113*Infra_Stack*ELALLF) ->  | P114: =+IF('1- INPUTS'!$C$54="No allocation",P113*Infra_Stack,P113*Infra_Stack*ELALLF) ->  | Q114: =+IF('1- INPUTS'!$C$54="No allocation",Q113*Infra_Stack,Q113*Infra_Stack*ELALLF) ->  | R114: =+IF('1- INPUTS'!$C$54="No allocation",R113*Infra_Stack,R113*Infra_Stack*ELALLF) ->  | S114: =+IF('1- INPUTS'!$C$54="No allocation",S113*Infra_Stack,S113*Infra_Stack*ELALLF) ->  | T114: =+IF('1- INPUTS'!$C$54="No allocation",T113*Infra_Stack,T113*Infra_Stack*ELALLF) ->  | U114: =+IF('1- INPUTS'!$C$54="No allocation",U113*Infra_Stack,U113*Infra_Stack*ELALLF) ->  | V114: =+IF('1- INPUTS'!$C$54="No allocation",V113*Infra_Stack,V113*Infra_Stack*ELALLF) ->  | W114: =+IF('1- INPUTS'!$C$54="No allocation",W113*Infra_Stack,W113*Infra_Stack*ELALLF) ->  | X114: =+IF('1- INPUTS'!$C$54="No allocation",X113*Infra_Stack,X113*Infra_Stack*ELALLF) ->  | Y114: =+IF('1- INPUTS'!$C$54="No allocation",Y113*Infra_Stack,Y113*Infra_Stack*ELALLF) ->  | Z114: =+IF('1- INPUTS'!$C$54="No allocation",Z113*Infra_Stack,Z113*Infra_Stack*ELALLF) ->  | AA114: =+IF('1- INPUTS'!$C$54="No allocation",AA113*Infra_Stack,AA113*Infra_Stack*ELALLF) -> 
C116: BoP module
G118: Amount | H118: GWP | I118: ODP | J118: IRP | K118: EOFP | L118: PMFP | M118: HOFP | N118: TAP | O118: FEP | P118: TETP | Q118: FETP | R118: METP | S118: HTPc | T118: HTPnc | U118: LOP | V118: SOP | W118: FFP | X118: WCP | Y118: HH | Z118: EQ | AA118: RA
D119: Reformer
D120: Steel | E120: kg | F120: 2.74 | G120: =+'2-LCI'!D64 -> 0 | H120: =+$G120*H233 -> 0 | I120: =+$G120*I233 -> 0 | J120: 0 | K120: 0 | L120: 0 | M120: 0 | N120: 0 | O120: 0 | P120: 0 | Q120: 0 | R120: 0 | S120: 0 | T120: 0 | U120: 0 | V120: 0 | W120: 0 | X120: 0 | Y120: =+$G120*Y233 -> 0 | Z120: 0 | AA120: 0
D121: Sheet rolling, steel | E121: kg | F121: =+F120 -> 2.74 | G121: =+'2-LCI'!D65 -> 0 | H121: =+$G121*H234 -> 0 | I121: =+$G121*I234 -> 0 | J121: 0 | K121: 0 | L121: 0 | M121: 0 | N121: 0 | O121: 0 | P121: 0 | Q121: 0 | R121: 0 | S121: 0 | T121: 0 | U121: 0 | V121: 0 | W121: 0 | X121: 0 | Y121: =+$G121*Y234 -> 0 | Z121: 0 | AA121: 0
D122: Chromium alloy | E122: kg | F122: 9.2 | G122: =+'2-LCI'!D66 -> 0 | H122: =+$G122*H253 -> 0 | I122: 0 | J122: 0 | K122: 0 | L122: 0 | M122: 0 | N122: 0 | O122: 0 | P122: 0 | Q122: 0 | R122: 0 | S122: 0 | T122: 0 | U122: 0 | V122: 0 | W122: 0 | X122: 0 | Y122: =+$G122*Y253 -> 0 | Z122: 0 | AA122: 0
D123: Insulation | E123: kg | F123: 0.84 | G123: =+'2-LCI'!D67 -> 0 | H123: =+$G123*H253 -> 0 | I123: 0 | J123: 0 | K123: 0 | L123: 0 | M123: 0 | N123: 0 | O123: 0 | P123: 0 | Q123: 0 | R123: 0 | S123: 0 | T123: 0 | U123: 0 | V123: 0 | W123: 0 | X123: 0 | Y123: =+$G123*Y253 -> 0 | Z123: 0 | AA123: 0
D124: Nickel Oxide | E124: kg | F124: 0.19 | G124: =+'2-LCI'!D68 -> 0 | H124: =+$G124*H209 -> 0 | I124: 0 | J124: 0 | K124: 0 | L124: 0 | M124: 0 | N124: 0 | O124: 0 | P124: 0 | Q124: 0 | R124: 0 | S124: 0 | T124: 0 | U124: 0 | V124: 0 | W124: 0 | X124: 0 | Y124: =+$G124*Y209 -> 0 | Z124: 0 | AA124: 0
D125: Lanthanum Oxide | E125: kg | F125: 0.01 | G125: =+'2-LCI'!D69 -> 0 | H125: =+$G125*H203 -> 0 | I125: 0 | J125: 0 | K125: 0 | L125: 0 | M125: 0 | N125: 0 | O125: 0 | P125: 0 | Q125: 0 | R125: 0 | S125: 0 | T125: 0 | U125: 0 | V125: 0 | W125: 0 | X125: 0 | Y125: =+$G125*Y203 -> 0 | Z125: 0 | AA125: 0
D126: Aluminium Oxide | E126: kg | F126: 0.93 | G126: =+'2-LCI'!D70 -> 0 | H126: =+$G126*H230 -> 0 | I126: 0 | J126: 0 | K126: 0 | L126: 0 | M126: 0 | N126: 0 | O126: 0 | P126: 0 | Q126: 0 | R126: 0 | S126: 0 | T126: 0 | U126: 0 | V126: 0 | W126: 0 | X126: 0 | Y126: =+$G126*Y230 -> 0 | Z126: 0 | AA126: 0
D127: Zinc Oxide | E127: kg | F127: 2.44 | G127: =+'2-LCI'!D71 -> 0 | H127: =+$G127*H254*0.81+$G127*2.5*H236 -> 0 | I127: 0 | J127: 0 | K127: 0 | L127: 0 | M127: 0 | N127: 0 | O127: 0 | P127: 0 | Q127: 0 | R127: 0 | S127: 0 | T127: 0 | U127: 0 | V127: 0 | W127: 0 | X127: 0 | Y127: =+$G127*Y254*0.81+$G127*2.5*Y236 -> 0 | Z127: 0 | AA127: 0
D128: Electricity, medium voltage, production UCTE, at grid | E128: kWh | F128: 19.6 | G128: =+'2-LCI'!D72 -> 0 | H128: =+$G128*H255*0.81+$G128*2.5*H236 -> 0 | I128: 0 | J128: 0 | K128: 0 | L128: 0 | M128: 0 | N128: 0 | O128: 0 | P128: 0 | Q128: 0 | R128: 0 | S128: 0 | T128: 0 | U128: 0 | V128: 0 | W128: 0 | X128: 0 | Y128: =+$G128*Y255*0.81+$G128*2.5*Y236 -> 0 | Z128: 0 | AA128: 0
G129: reformer | H129: =SUM(H120:H128) -> 0 | I129: =SUM(I120:I128) -> 0 | J129: 0 | K129: 0 | L129: 0 | M129: 0 | N129: 0 | O129: 0 | P129: 0 | Q129: 0 | R129: 0 | S129: 0 | T129: 0 | U129: 0 | V129: 0 | W129: 0 | X129: 0 | Y129: 0 | Z129: 0 | AA129: 0
D130: Power conditioning
D131: Inverter, 2500W, at plant (2.5 kWel) | E131: unit | F131: - | G131: =+'2-LCI'!D73 -> 0 | H131: =+$G131*H252 -> 0 | I131: 0 | J131: 0 | K131: 0 | L131: 0 | M131: 0 | N131: 0 | O131: 0 | P131: 0 | Q131: 0 | R131: 0 | S131: 0 | T131: 0 | U131: 0 | V131: 0 | W131: 0 | X131: 0 | Y131: 0 | Z131: 0 | AA131: 0
D132: Air Blower
D133: Steel (60 wt%) | E133: kg | F133: =0.6*261 -> 156.6 | G133: =+'2-LCI'!D74 -> 0 | H133: =+$G133*H231 -> 0 | I133: 0 | J133: 0 | K133: 0 | L133: 0 | M133: 0 | N133: 0 | O133: 0 | P133: 0 | Q133: 0 | R133: 0 | S133: 0 | T133: 0 | U133: 0 | V133: 0 | W133: 0 | X133: 0 | Y133: =+$G133*Y231 -> 0 | Z133: 0 | AA133: 0
D134: Sheet rolling, steel | E134: kg | F134: =+F133 -> 156.6 | G134: =+'2-LCI'!D75 -> 0 | H134: =+$G134*H232 -> 0 | I134: 0 | J134: 0 | K134: 0 | L134: 0 | M134: 0 | N134: 0 | O134: 0 | P134: 0 | Q134: 0 | R134: 0 | S134: 0 | T134: 0 | U134: 0 | V134: 0 | W134: 0 | X134: 0 | Y134: =+$G134*Y232 -> 0 | Z134: 0 | AA134: 0
D135: Al-alloy (20 wt%) | E135: kg | F135: =0.2*261 -> 52.2 | G135: =+'2-LCI'!D76 -> 0 | H135: =+$G135*H255 -> 0 | I135: 0 | J135: 0 | K135: 0 | L135: 0 | M135: 0 | N135: 0 | O135: 0 | P135: 0 | Q135: 0 | R135: 0 | S135: 0 | T135: 0 | U135: 0 | V135: 0 | W135: 0 | X135: 0 | Y135: =+$G135*Y255 -> 0 | Z135: 0 | AA135: 0
D136: Copper (20 wt%) | E136: kg | F136: =0.2*261 -> 52.2 | G136: =+'2-LCI'!D77 -> 0 | H136: =+$G136*H238 -> 0 | I136: 0 | J136: 0 | K136: 0 | L136: 0 | M136: 0 | N136: 0 | O136: 0 | P136: 0 | Q136: 0 | R136: 0 | S136: 0 | T136: 0 | U136: 0 | V136: 0 | W136: 0 | X136: 0 | Y136: =+$G136*Y238 -> 0 | Z136: 0 | AA136: 0
F137: =SUM(F133:F136) -> 417.6 | G137: =SUM(G133:G136) -> 0 | H137: =SUM(H133:H136) -> 0 | I137: 0 | J137: 0 | K137: 0 | L137: 0 | M137: 0 | N137: 0 | O137: 0 | P137: 0 | Q137: 0 | R137: 0 | S137: 0 | T137: 0 | U137: 0 | V137: 0 | W137: 0 | X137: 0 | Y137: 0 | Z137: 0 | AA137: 0
D138: Fuel Blower
D139: Steel (60 wt%) | E139: kg | F139: =0.6*87.1 -> 52.26 | G139: =+'2-LCI'!D78 -> 0 | H139: =+$G139*H231 -> 0 | I139: 0 | J139: 0 | K139: 0 | L139: 0 | M139: 0 | N139: 0 | O139: 0 | P139: 0 | Q139: 0 | R139: 0 | S139: 0 | T139: 0 | U139: 0 | V139: 0 | W139: 0 | X139: 0 | Y139: =+$G139*Y231 -> 0 | Z139: 0 | AA139: 0
D140: Sheet rolling, steel | E140: kg | F140: =+F139 -> 52.26 | G140: =+'2-LCI'!D79 -> 0 | H140: =+$G140*H232 -> 0 | I140: 0 | J140: 0 | K140: 0 | L140: 0 | M140: 0 | N140: 0 | O140: 0 | P140: 0 | Q140: 0 | R140: 0 | S140: 0 | T140: 0 | U140: 0 | V140: 0 | W140: 0 | X140: 0 | Y140: =+$G140*Y232 -> 0 | Z140: 0 | AA140: 0
D141: Al-alloy (20 wt%) | E141: kg | F141: =0.2*87.1 -> 17.42 | G141: =+'2-LCI'!D80 -> 0 | H141: =+$G141*H255 -> 0 | I141: 0 | J141: 0 | K141: 0 | L141: 0 | M141: 0 | N141: 0 | O141: 0 | P141: 0 | Q141: 0 | R141: 0 | S141: 0 | T141: 0 | U141: 0 | V141: 0 | W141: 0 | X141: 0 | Y141: =+$G141*Y255 -> 0 | Z141: 0 | AA141: 0
D142: Copper (20 wt%) | E142: kg | F142: =0.2*87.1 -> 17.42 | G142: =+'2-LCI'!D81 -> 0 | H142: =+$G142*H238 -> 0 | I142: 0 | J142: 0 | K142: 0 | L142: 0 | M142: 0 | N142: 0 | O142: 0 | P142: 0 | Q142: 0 | R142: 0 | S142: 0 | T142: 0 | U142: 0 | V142: 0 | W142: 0 | X142: 0 | Y142: =+$G142*Y238 -> 0 | Z142: 0 | AA142: 0
F143: =SUM(F139:F142) -> 139.36 | G143: =SUM(G139:G142) -> 0 | H143: =SUM(H139:H142) -> 0 | I143: =SUM(I139:I142) -> 0 | J143: =SUM(J139:J142) -> 0 | K143: =SUM(K139:K142) -> 0 | L143: =SUM(L139:L142) -> 0 | M143: =SUM(M139:M142) -> 0 | N143: =SUM(N139:N142) -> 0 | O143: =SUM(O139:O142) -> 0 | P143: =SUM(P139:P142) -> 0 | Q143: =SUM(Q139:Q142) -> 0 | R143: =SUM(R139:R142) -> 0 | S143: =SUM(S139:S142) -> 0 | T143: =SUM(T139:T142) -> 0 | U143: =SUM(U139:U142) -> 0 | V143: =SUM(V139:V142) -> 0 | W143: =SUM(W139:W142) -> 0 | X143: =SUM(X139:X142) -> 0 | Y143: 0 | Z143: 0 | AA143: 0
D144: Catalytic combustor
D145: Al2O3 (99 wt%) [31] | E145: kg | F145: =0.99*8.8 -> 8.712 | G145: =+'2-LCI'!D82 -> 0 | H145: =+$G145*H230 -> 0 | I145: 0 | J145: 0 | K145: 0 | L145: 0 | M145: 0 | N145: 0 | O145: 0 | P145: 0 | Q145: 0 | R145: 0 | S145: 0 | T145: 0 | U145: 0 | V145: 0 | W145: 0 | X145: 0 | Y145: =+$G145*Y230 -> 0 | Z145: 0 | AA145: 0
D146: Pt (0.5 wt%) [31] | E146: kg | F146: =0.005*8.8 -> 0.044 | G146: =+'2-LCI'!D83 -> 0 | H146: =+$G146*H256 -> 0 | I146: 0 | J146: 0 | K146: 0 | L146: 0 | M146: 0 | N146: 0 | O146: 0 | P146: 0 | Q146: 0 | R146: 0 | S146: 0 | T146: 0 | U146: 0 | V146: 0 | W146: 0 | X146: 0 | Y146: =+$G146*Y256 -> 0 | Z146: 0 | AA146: 0
D147: Pd (0.5 wt%) [31] | E147: kg | F147: =0.005*8.8 -> 0.044 | G147: =+'2-LCI'!D84 -> 0 | H147: =+$G147*H257 -> 0 | I147: 0 | J147: 0 | K147: 0 | L147: 0 | M147: 0 | N147: 0 | O147: 0 | P147: 0 | Q147: 0 | R147: 0 | S147: 0 | T147: 0 | U147: 0 | V147: 0 | W147: 0 | X147: 0 | Y147: =+$G147*Y257 -> 0 | Z147: 0 | AA147: 0
D148: Reactor tubesb (Stainless steel 304 (100 wt%)) | E148: kg | F148: 47.2 | G148: =+'2-LCI'!D85 -> 0 | H148: =+$G148*H231 -> 0 | I148: 0 | J148: 0 | K148: 0 | L148: 0 | M148: 0 | N148: 0 | O148: 0 | P148: 0 | Q148: 0 | R148: 0 | S148: 0 | T148: 0 | U148: 0 | V148: 0 | W148: 0 | X148: 0 | Y148: =+$G148*Y231 -> 0 | Z148: 0 | AA148: 0
D149: Sheet rolling, steel | E149: kg | F149: =+F148 -> 47.2 | G149: =+'2-LCI'!D86 -> 0 | H149: =+$G149*H232 -> 0 | I149: 0 | J149: 0 | K149: 0 | L149: 0 | M149: 0 | N149: 0 | O149: 0 | P149: 0 | Q149: 0 | R149: 0 | S149: 0 | T149: 0 | U149: 0 | V149: 0 | W149: 0 | X149: 0 | Y149: =+$G149*Y232 -> 0 | Z149: 0 | AA149: 0
G150: =SUM(G145:G149) -> 0 | H150: =SUM(H145:H149) -> 0 | I150: 0 | J150: 0 | K150: 0 | L150: 0 | M150: 0 | N150: 0 | O150: 0 | P150: 0 | Q150: 0 | R150: 0 | S150: 0 | T150: 0 | U150: 0 | V150: 0 | W150: 0 | X150: 0 | Y150: 0 | Z150: 0 | AA150: 0
D151: Heat exchanger
D152: Stainless steel 304 (100 wt%) | E152: kg | F152: =1*9.1 -> 9.1 | G152: =+'2-LCI'!D87 -> 0 | H152: =+$G152*H233 -> 0 | I152: =+$G152*I233 -> 0 | J152: 0 | K152: 0 | L152: 0 | M152: 0 | N152: 0 | O152: 0 | P152: 0 | Q152: 0 | R152: 0 | S152: 0 | T152: 0 | U152: 0 | V152: 0 | W152: 0 | X152: 0 | Y152: =+$G152*Y233 -> 0 | Z152: 0 | AA152: 0
D153: Sheet rolling, steel | E153: kg | F153: =+F152 -> 9.1 | G153: =+'2-LCI'!D88 -> 0 | H153: =+$G153*H234 -> 0 | I153: =+$G153*I234 -> 0 | J153: 0 | K153: 0 | L153: 0 | M153: 0 | N153: 0 | O153: 0 | P153: 0 | Q153: 0 | R153: 0 | S153: 0 | T153: 0 | U153: 0 | V153: 0 | W153: 0 | X153: 0 | Y153: =+$G153*Y234 -> 0 | Z153: 0 | AA153: 0
D154: Cr alloy (100%) | E154: kg | F154: =1*61.4 -> 61.4 | G154: =+'2-LCI'!D89 -> 0 | H154: =+$G154*H237 -> 0 | I154: 0 | J154: 0 | K154: 0 | L154: 0 | M154: 0 | N154: 0 | O154: 0 | P154: 0 | Q154: 0 | R154: 0 | S154: 0 | T154: 0 | U154: 0 | V154: 0 | W154: 0 | X154: 0 | Y154: =+$G154*Y237 -> 0 | Z154: 0 | AA154: 0
G155: =SUM(G150:G154) -> 0 | H155: =SUM(H152:H154) -> 0 | I155: =SUM(I152:I154) -> 0 | J155: 0 | K155: 0 | L155: 0 | M155: 0 | N155: 0 | O155: 0 | P155: 0 | Q155: 0 | R155: 0 | S155: 0 | T155: 0 | U155: 0 | V155: 0 | W155: 0 | X155: 0 | Y155: 0 | Z155: 0 | AA155: 0
D156: HRSG
D157: Stainless steel 304 (100 wt%) | E157: kg | F157: 53 | G157: =+'2-LCI'!D90 -> 0 | H157: =+$G157*H233 -> 0 | I157: =+$G157*I233 -> 0 | J157: 0 | K157: 0 | L157: 0 | M157: 0 | N157: 0 | O157: 0 | P157: 0 | Q157: 0 | R157: 0 | S157: 0 | T157: 0 | U157: 0 | V157: 0 | W157: 0 | X157: 0 | Y157: =+$G157*Y233 -> 0 | Z157: 0 | AA157: 0
D158: Sheet rolling, steel | E158: kg | F158: =+F157 -> 53 | G158: =+'2-LCI'!D91 -> 0 | H158: =+$G158*H234 -> 0 | I158: =+$G158*I234 -> 0 | J158: 0 | K158: 0 | L158: 0 | M158: 0 | N158: 0 | O158: 0 | P158: 0 | Q158: 0 | R158: 0 | S158: 0 | T158: 0 | U158: 0 | V158: 0 | W158: 0 | X158: 0 | Y158: =+$G158*Y234 -> 0 | Z158: 0 | AA158: 0
H159: =SUM(H157:H158) -> 0 | I159: =SUM(I157:I158) -> 0 | J159: 0 | K159: 0 | L159: 0 | M159: 0 | N159: 0 | O159: 0 | P159: 0 | Q159: 0 | R159: 0 | S159: 0 | T159: 0 | U159: 0 | V159: 0 | W159: 0 | X159: 0 | Y159: 0 | Z159: 0 | AA159: 0
D160: Water pump
D161: Stainless steel 304 (80 wt%) | E161: kg | F161: =0.8*87.1 -> 69.68 | G161: =+'2-LCI'!D92 -> 0 | H161: =+$G161*H231 -> 0 | I161: =+$G161*I231 -> 0 | J161: 0 | K161: 0 | L161: 0 | M161: 0 | N161: 0 | O161: 0 | P161: 0 | Q161: 0 | R161: 0 | S161: 0 | T161: 0 | U161: 0 | V161: 0 | W161: 0 | X161: 0 | Y161: =+$G161*Y231 -> 0 | Z161: 0 | AA161: 0
D162: Sheet rolling, steel | E162: kg | F162: =+F161 -> 69.68 | G162: =+'2-LCI'!D93 -> 0 | H162: =+$G162*H232 -> 0 | I162: =+$G162*I232 -> 0 | J162: 0 | K162: 0 | L162: 0 | M162: 0 | N162: 0 | O162: 0 | P162: 0 | Q162: 0 | R162: 0 | S162: 0 | T162: 0 | U162: 0 | V162: 0 | W162: 0 | X162: 0 | Y162: =+$G162*Y232 -> 0 | Z162: 0 | AA162: 0
D163: Copper (20 wt%) | E163: kg | F163: =0.2*87.1 -> 17.42 | G163: =+'2-LCI'!D94 -> 0 | H163: =+$G163*H238 -> 0 | I163: =+$G163*I238 -> 0 | J163: 0 | K163: 0 | L163: 0 | M163: 0 | N163: 0 | O163: 0 | P163: 0 | Q163: 0 | R163: 0 | S163: 0 | T163: 0 | U163: 0 | V163: 0 | W163: 0 | X163: 0 | Y163: =+$G163*Y238 -> 0 | Z163: 0 | AA163: 0
H164: =SUM(H161:H163) -> 0 | I164: =SUM(I161:I163) -> 0 | J164: 0 | K164: 0 | L164: 0 | M164: 0 | N164: 0 | O164: 0 | P164: 0 | Q164: 0 | R164: 0 | S164: 0 | T164: 0 | U164: 0 | V164: 0 | W164: 0 | X164: 0 | Y164: 0 | Z164: 0 | AA164: 0
D165: Additional infrastructure
D167: Heating, sanitary equipment cogen unit 160kWe | G167: =+'2-LCI'!#REF! ->  | H167: 0 | I167: 0 | J167: 0 | K167: 0 | L167: 0 | M167: 0 | N167: 0 | O167: 0 | P167: 0 | Q167: 0 | R167: 0 | S167: 0 | T167: 0 | U167: 0 | V167: 0 | W167: 0 | X167: 0 | Y167: 0 | Z167: 0 | AA167: 0
D168: Construction work, cogen unit 160kWe (10 m² foundation) | G168: =+'2-LCI'!#REF! ->  | H168: 0 | I168: 0 | J168: 0 | K168: 0 | L168: 0 | M168: 0 | N168: 0 | O168: 0 | P168: 0 | Q168: 0 | R168: 0 | S168: 0 | T168: 0 | U168: 0 | V168: 0 | W168: 0 | X168: 0 | Y168: 0 | Z168: 0 | AA168: 0
D169: Water for manufacturing (unspecified natural origin) | G169: =+'2-LCI'!D95 -> 156.16 | H169: =+$G169*H274 -> 0.050778352 | I169: =+$G169*I274 -> 1.631740669e-08 | J169: 0.02759615639 | K169: 9.939335549e-05 | L169: 5.453156234e-05 | M169: 0.000101100342 | N169: 0.0001761830382 | O169: 3.918533187e-05 | P169: 2.110002844e-05 | Q169: 0.001643727199 | R169: 0.002326946563 | S169: 0.005198495503 | T169: 1.698380388 | U169: 0.002727316285 | V169: 0.0002249381422 | W169: 0.01209279429 | X169: 0.4783010586 | Y169: 1.172070748e-06 | Z169: 6.700528584e-09 | AA169: 0.002451202138
D170: Heating production site: natural gas, at industrial furnace >100kW | G170: =+'2-LCI'!#REF! ->  | H170: 0 | I170: 0 | J170: 0 | K170: 0 | L170: 0 | M170: 0 | N170: 0 | O170: 0 | P170: 0 | Q170: 0 | R170: 0 | S170: 0 | T170: 0 | U170: 0 | V170: 0 | W170: 0 | X170: 0 | Y170: 0 | Z170: 0 | AA170: 0
D171: Electricity production site: medium voltage, production UCTE, at grid | G171: =+'2-LCI'!#REF! ->  | H171: 0 | I171: 0 | J171: 0 | K171: 0 | L171: 0 | M171: 0 | N171: 0 | O171: 0 | P171: 0 | Q171: 0 | R171: 0 | S171: 0 | T171: 0 | U171: 0 | V171: 0 | W171: 0 | X171: 0 | Y171: 0 | Z171: 0 | AA171: 0
D172: Heating engineering services: light fuel oil, burned in boiler 100kW, non-modulating | G172: =+'2-LCI'!#REF! ->  | H172: 0 | I172: 0 | J172: 0 | K172: 0 | L172: 0 | M172: 0 | N172: 0 | O172: 0 | P172: 0 | Q172: 0 | R172: 0 | S172: 0 | T172: 0 | U172: 0 | V172: 0 | W172: 0 | X172: 0 | Y172: 0 | Z172: 0 | AA172: 0
D173: Electricity engineering services: low voltage, at grid, at grid, CH | G173: =+'2-LCI'!D96 -> 1200 | H173: =+$G173*H259 -> 726.625692 | I173: =+$G173*I259 -> 0.000273951288 | J173: 501.361884 | K173: 1.20809232 | L173: 0.862116756 | M173: 1.22014644 | N173: 2.79924168 | O173: 0.736356228 | P173: 0.746267136 | Q173: 25.497984 | R173: 36.0624336 | S173: 50.8192224 | T173: 27077.154 | U173: 4.81362696 | V173: 1.52245308 | W173: 189.62244 | X173: 5245.59516 | Y173: 0.0132149664 | Z173: 7.41572076e-05 | AA173: 33.5161884
D174: Transport engineering: transport, passenger car, CH | G174: =+'2-LCI'!D97 -> 3000 | H174: =+$G174*H258 -> 549.96558 | I174: =+$G174*I258 -> 0.00033952182 | J174: 97.548984 | K174: 1.65556737 | L174: 0.34873086 | M174: 1.74802332 | N174: 1.45981578 | O174: 0.07530474 | P174: 0.44901396 | Q174: 12.9551319 | R174: 19.3942974 | S174: 24.694602 | T174: 16153.4304 | U174: 14.2165725 | V174: 2.26052073 | W174: 173.300664 | X174: 1412.63814 | Y174: 0.0040572546 | Z174: 2.13537441e-05 | AA174: 72.642975
H175: =SUM(H167:H174) -> 1276.64205 | I175: =SUM(I167:I174) -> 0.0006134894254 | J175: 598.9384642 | K175: 2.863759083 | L175: 1.210902148 | M175: 2.96827086 | N175: 4.259233643 | O175: 0.8117001533 | P175: 1.195302196 | Q175: 38.45475963 | R175: 55.45905795 | S175: 75.5190229 | T175: 43232.28278 | U175: 19.03292678 | V175: 3.783198748 | W175: 362.9351968 | X175: 6658.711601 | Y175: 0.01727339307 | Z175: 9.551765223e-05 | AA175: 106.1616146
H177: =+H129+H137+H143+H150+H155+H159+H164+H175+H131 -> 1276.64205 | I177: =+I129+I137+I143+I150+I155+I159+I164+I175+I131 -> 0.0006134894254 | J177: 598.9384642 | K177: 2.863759083 | L177: 1.210902148 | M177: 2.96827086 | N177: 4.259233643 | O177: 0.8117001533 | P177: 1.195302196 | Q177: 38.45475963 | R177: 55.45905795 | S177: 75.5190229 | T177: 43232.28278 | U177: 19.03292678 | V177: 3.783198748 | W177: 362.9351968 | X177: 6658.711601 | Y177: 0.01727339307 | Z177: 9.551765223e-05 | AA177: 106.1616146
H178: =++IF('1- INPUTS'!$C$54="No allocation",H177*Infra_BoP,H177*Infra_BoP*ELALLF) ->  | I178: =++IF('1- INPUTS'!$C$54="No allocation",I177*Infra_BoP,I177*Infra_BoP*ELALLF) ->  | J178: =++IF('1- INPUTS'!$C$54="No allocation",J177*Infra_BoP,J177*Infra_BoP*ELALLF) ->  | K178: =++IF('1- INPUTS'!$C$54="No allocation",K177*Infra_BoP,K177*Infra_BoP*ELALLF) ->  | L178: =++IF('1- INPUTS'!$C$54="No allocation",L177*Infra_BoP,L177*Infra_BoP*ELALLF) ->  | M178: =++IF('1- INPUTS'!$C$54="No allocation",M177*Infra_BoP,M177*Infra_BoP*ELALLF) ->  | N178: =++IF('1- INPUTS'!$C$54="No allocation",N177*Infra_BoP,N177*Infra_BoP*ELALLF) ->  | O178: =++IF('1- INPUTS'!$C$54="No allocation",O177*Infra_BoP,O177*Infra_BoP*ELALLF) ->  | P178: =++IF('1- INPUTS'!$C$54="No allocation",P177*Infra_BoP,P177*Infra_BoP*ELALLF) ->  | Q178: =++IF('1- INPUTS'!$C$54="No allocation",Q177*Infra_BoP,Q177*Infra_BoP*ELALLF) ->  | R178: =++IF('1- INPUTS'!$C$54="No allocation",R177*Infra_BoP,R177*Infra_BoP*ELALLF) ->  | S178: =++IF('1- INPUTS'!$C$54="No allocation",S177*Infra_BoP,S177*Infra_BoP*ELALLF) ->  | T178: =++IF('1- INPUTS'!$C$54="No allocation",T177*Infra_BoP,T177*Infra_BoP*ELALLF) ->  | U178: =++IF('1- INPUTS'!$C$54="No allocation",U177*Infra_BoP,U177*Infra_BoP*ELALLF) ->  | V178: =++IF('1- INPUTS'!$C$54="No allocation",V177*Infra_BoP,V177*Infra_BoP*ELALLF) ->  | W178: =++IF('1- INPUTS'!$C$54="No allocation",W177*Infra_BoP,W177*Infra_BoP*ELALLF) ->  | X178: =++IF('1- INPUTS'!$C$54="No allocation",X177*Infra_BoP,X177*Infra_BoP*ELALLF) ->  | Y178: =++IF('1- INPUTS'!$C$54="No allocation",Y177*Infra_BoP,Y177*Infra_BoP*ELALLF) ->  | Z178: =++IF('1- INPUTS'!$C$54="No allocation",Z177*Infra_BoP,Z177*Infra_BoP*ELALLF) ->  | AA178: =++IF('1- INPUTS'!$C$54="No allocation",AA177*Infra_BoP,AA177*Infra_BoP*ELALLF) -> 
G182: Input material/Unit | H182: GWP | I182: ODP | J182: IRP | K182: HOFP | L182: PMPF | M182: EOFP | N182: TAP | O182: FEP | P182: TETP | Q182: FETP | R182: METP | S182: HTPc | T182: HTPnc | U182: LOP | V182: SOP | W182: FFP | X182: WCP | Y182: HH | Z182: EQ | AA182: RA
H183: kg CO₂ eq | I183: kg CFC11 eq | J183: kBq Co-60 eq | K183: kg NOx eq | L183: kg PM2.5 eq | M183: kg NOx eq | N183: kg SO₂ eq | O183: kg P eq | P183: kg 1,4-DCB eq | Q183: kg 1,4-DCB eq | R183: kg 1,4-DCB eq | S183: kg 1,4-DCB eq | T183: kg 1,4-DCB eq | U183: m2a crop eq | V183: kg Cu eq | W183: kg oil eq | X183: m³ | Y183: DALY | Z183: species*yr | AA183: USD2013
G184: Powders and salts | H184: =+DB!H61+DB!H62+DB!H63+DB!H64+DB!H65+DB!H66+DB!H67+DB!H87+DB!H88+DB!H89+DB!H96 -> 0 | I184: =+DB!I61+DB!I62+DB!I63+DB!I64+DB!I65+DB!I66+DB!I67+DB!I87+DB!I88+DB!I89+DB!I96 -> 0 | J184: =+DB!J61+DB!J62+DB!J63+DB!J64+DB!J65+DB!J66+DB!J67+DB!J87+DB!J88+DB!J89+DB!J96 -> 0 | K184: =+DB!K61+DB!K62+DB!K63+DB!K64+DB!K65+DB!K66+DB!K67+DB!K87+DB!K88+DB!K89+DB!K96 -> 0 | L184: =+DB!L61+DB!L62+DB!L63+DB!L64+DB!L65+DB!L66+DB!L67+DB!L87+DB!L88+DB!L89+DB!L96 -> 0 | M184: =+DB!M61+DB!M62+DB!M63+DB!M64+DB!M65+DB!M66+DB!M67+DB!M87+DB!M88+DB!M89+DB!M96 -> 0 | N184: =+DB!N61+DB!N62+DB!N63+DB!N64+DB!N65+DB!N66+DB!N67+DB!N87+DB!N88+DB!N89+DB!N96 -> 0 | O184: =+DB!O61+DB!O62+DB!O63+DB!O64+DB!O65+DB!O66+DB!O67+DB!O87+DB!O88+DB!O89+DB!O96 -> 0 | P184: =+DB!P61+DB!P62+DB!P63+DB!P64+DB!P65+DB!P66+DB!P67+DB!P87+DB!P88+DB!P89+DB!P96 -> 0 | Q184: =+DB!Q61+DB!Q62+DB!Q63+DB!Q64+DB!Q65+DB!Q66+DB!Q67+DB!Q87+DB!Q88+DB!Q89+DB!Q96 -> 0 | R184: =+DB!R61+DB!R62+DB!R63+DB!R64+DB!R65+DB!R66+DB!R67+DB!R87+DB!R88+DB!R89+DB!R96 -> 0 | S184: =+DB!S61+DB!S62+DB!S63+DB!S64+DB!S65+DB!S66+DB!S67+DB!S87+DB!S88+DB!S89+DB!S96 -> 0 | T184: =+DB!T61+DB!T62+DB!T63+DB!T64+DB!T65+DB!T66+DB!T67+DB!T87+DB!T88+DB!T89+DB!T96 -> 0 | U184: =+DB!U61+DB!U62+DB!U63+DB!U64+DB!U65+DB!U66+DB!U67+DB!U87+DB!U88+DB!U89+DB!U96 -> 0 | V184: =+DB!V61+DB!V62+DB!V63+DB!V64+DB!V65+DB!V66+DB!V67+DB!V87+DB!V88+DB!V89+DB!V96 -> 0 | W184: =+DB!W61+DB!W62+DB!W63+DB!W64+DB!W65+DB!W66+DB!W67+DB!W87+DB!W88+DB!W89+DB!W96 -> 0 | X184: =+DB!X61+DB!X62+DB!X63+DB!X64+DB!X65+DB!X66+DB!X67+DB!X87+DB!X88+DB!X89+DB!X96 -> 0 | Y184: =+DB!Y61+DB!Y62+DB!Y63+DB!Y64+DB!Y65+DB!Y66+DB!Y67+DB!Y87+DB!Y88+DB!Y89+DB!Y96 -> 0 | Z184: =+DB!Z61+DB!Z62+DB!Z63+DB!Z64+DB!Z65+DB!Z66+DB!Z67+DB!Z87+DB!Z88+DB!Z89+DB!Z96 -> 0 | AA184: =+DB!AA61+DB!AA62+DB!AA63+DB!AA64+DB!AA65+DB!AA66+DB!AA67+DB!AA87+DB!AA88+DB!AA89+DB!AA96 -> 0
G185: Solvents | H185: =++DB!H70+DB!H71+DB!H72+DB!H73+DB!H74+DB!H75+DB!H76+DB!H77 -> 0 | I185: =++DB!I70+DB!I71+DB!I72+DB!I73+DB!I74+DB!I75+DB!I76+DB!I77 -> 0 | J185: =++DB!J70+DB!J71+DB!J72+DB!J73+DB!J74+DB!J75+DB!J76+DB!J77 -> 0 | K185: =++DB!K70+DB!K71+DB!K72+DB!K73+DB!K74+DB!K75+DB!K76+DB!K77 -> 0 | L185: =++DB!L70+DB!L71+DB!L72+DB!L73+DB!L74+DB!L75+DB!L76+DB!L77 -> 0 | M185: =++DB!M70+DB!M71+DB!M72+DB!M73+DB!M74+DB!M75+DB!M76+DB!M77 -> 0 | N185: =++DB!N70+DB!N71+DB!N72+DB!N73+DB!N74+DB!N75+DB!N76+DB!N77 -> 0 | O185: =++DB!O70+DB!O71+DB!O72+DB!O73+DB!O74+DB!O75+DB!O76+DB!O77 -> 0 | P185: =++DB!P70+DB!P71+DB!P72+DB!P73+DB!P74+DB!P75+DB!P76+DB!P77 -> 0 | Q185: =++DB!Q70+DB!Q71+DB!Q72+DB!Q73+DB!Q74+DB!Q75+DB!Q76+DB!Q77 -> 0 | R185: =++DB!R70+DB!R71+DB!R72+DB!R73+DB!R74+DB!R75+DB!R76+DB!R77 -> 0 | S185: =++DB!S70+DB!S71+DB!S72+DB!S73+DB!S74+DB!S75+DB!S76+DB!S77 -> 0 | T185: =++DB!T70+DB!T71+DB!T72+DB!T73+DB!T74+DB!T75+DB!T76+DB!T77 -> 0 | U185: =++DB!U70+DB!U71+DB!U72+DB!U73+DB!U74+DB!U75+DB!U76+DB!U77 -> 0 | V185: =++DB!V70+DB!V71+DB!V72+DB!V73+DB!V74+DB!V75+DB!V76+DB!V77 -> 0 | W185: =++DB!W70+DB!W71+DB!W72+DB!W73+DB!W74+DB!W75+DB!W76+DB!W77 -> 0 | X185: =++DB!X70+DB!X71+DB!X72+DB!X73+DB!X74+DB!X75+DB!X76+DB!X77 -> 0 | Y185: =++DB!Y70+DB!Y71+DB!Y72+DB!Y73+DB!Y74+DB!Y75+DB!Y76+DB!Y77 -> 0 | Z185: =++DB!Z70+DB!Z71+DB!Z72+DB!Z73+DB!Z74+DB!Z75+DB!Z76+DB!Z77 -> 0 | AA185: =++DB!AA70+DB!AA71+DB!AA72+DB!AA73+DB!AA74+DB!AA75+DB!AA76+DB!AA77 -> 0
G186: Binders | H186: =+DB!H79+DB!H80 -> 0 | I186: =+DB!I79+DB!I80 -> 0 | J186: =+DB!J79+DB!J80 -> 0 | K186: =+DB!K79+DB!K80 -> 0 | L186: =+DB!L79+DB!L80 -> 0 | M186: =+DB!M79+DB!M80 -> 0 | N186: =+DB!N79+DB!N80 -> 0 | O186: =+DB!O79+DB!O80 -> 0 | P186: =+DB!P79+DB!P80 -> 0 | Q186: =+DB!Q79+DB!Q80 -> 0 | R186: =+DB!R79+DB!R80 -> 0 | S186: =+DB!S79+DB!S80 -> 0 | T186: =+DB!T79+DB!T80 -> 0 | U186: =+DB!U79+DB!U80 -> 0 | V186: =+DB!V79+DB!V80 -> 0 | W186: =+DB!W79+DB!W80 -> 0 | X186: =+DB!X79+DB!X80 -> 0 | Y186: =+DB!Y79+DB!Y80 -> 0 | Z186: =+DB!Z79+DB!Z80 -> 0 | AA186: =+DB!AA79+DB!AA80 -> 0
G187: Metal components & processes | H187: =+DB!H68+DB!H69+DB!H86+DB!H90+DB!H91+DB!H92+DB!H93+DB!H99+DB!H98+DB!H105 -> 0 | I187: =+DB!I68+DB!I69+DB!I86+DB!I90+DB!I91+DB!I92+DB!I93+DB!I99+DB!I98+DB!I105 -> 0 | J187: =+DB!J68+DB!J69+DB!J86+DB!J90+DB!J91+DB!J92+DB!J93+DB!J99+DB!J98+DB!J105 -> 0 | K187: =+DB!K68+DB!K69+DB!K86+DB!K90+DB!K91+DB!K92+DB!K93+DB!K99+DB!K98+DB!K105 -> 0 | L187: =+DB!L68+DB!L69+DB!L86+DB!L90+DB!L91+DB!L92+DB!L93+DB!L99+DB!L98+DB!L105 -> 0 | M187: =+DB!M68+DB!M69+DB!M86+DB!M90+DB!M91+DB!M92+DB!M93+DB!M99+DB!M98+DB!M105 -> 0 | N187: =+DB!N68+DB!N69+DB!N86+DB!N90+DB!N91+DB!N92+DB!N93+DB!N99+DB!N98+DB!N105 -> 0 | O187: =+DB!O68+DB!O69+DB!O86+DB!O90+DB!O91+DB!O92+DB!O93+DB!O99+DB!O98+DB!O105 -> 0 | P187: =+DB!P68+DB!P69+DB!P86+DB!P90+DB!P91+DB!P92+DB!P93+DB!P99+DB!P98+DB!P105 -> 0 | Q187: =+DB!Q68+DB!Q69+DB!Q86+DB!Q90+DB!Q91+DB!Q92+DB!Q93+DB!Q99+DB!Q98+DB!Q105 -> 0 | R187: =+DB!R68+DB!R69+DB!R86+DB!R90+DB!R91+DB!R92+DB!R93+DB!R99+DB!R98+DB!R105 -> 0 | S187: =+DB!S68+DB!S69+DB!S86+DB!S90+DB!S91+DB!S92+DB!S93+DB!S99+DB!S98+DB!S105 -> 0 | T187: =+DB!T68+DB!T69+DB!T86+DB!T90+DB!T91+DB!T92+DB!T93+DB!T99+DB!T98+DB!T105 -> 0 | U187: =+DB!U68+DB!U69+DB!U86+DB!U90+DB!U91+DB!U92+DB!U93+DB!U99+DB!U98+DB!U105 -> 0 | V187: =+DB!V68+DB!V69+DB!V86+DB!V90+DB!V91+DB!V92+DB!V93+DB!V99+DB!V98+DB!V105 -> 0 | W187: =+DB!W68+DB!W69+DB!W86+DB!W90+DB!W91+DB!W92+DB!W93+DB!W99+DB!W98+DB!W105 -> 0 | X187: =+DB!X68+DB!X69+DB!X86+DB!X90+DB!X91+DB!X92+DB!X93+DB!X99+DB!X98+DB!X105 -> 0 | Y187: =+DB!Y68+DB!Y69+DB!Y86+DB!Y90+DB!Y91+DB!Y92+DB!Y93+DB!Y99+DB!Y98+DB!Y105 -> 0 | Z187: =+DB!Z68+DB!Z69+DB!Z86+DB!Z90+DB!Z91+DB!Z92+DB!Z93+DB!Z99+DB!Z98+DB!Z105 -> 0 | AA187: =+DB!AA68+DB!AA69+DB!AA86+DB!AA90+DB!AA91+DB!AA92+DB!AA93+DB!AA99+DB!AA98+DB!AA105 -> 0
G188: Transport | H188: =+DB!H107+DB!H108+DB!H109+DB!H110+DB!H111+DB!H112 -> 0 | I188: =+DB!I107+DB!I108+DB!I109+DB!I110+DB!I111+DB!I112 -> 0 | J188: =+DB!J107+DB!J108+DB!J109+DB!J110+DB!J111+DB!J112 -> 0 | K188: =+DB!K107+DB!K108+DB!K109+DB!K110+DB!K111+DB!K112 -> 0 | L188: =+DB!L107+DB!L108+DB!L109+DB!L110+DB!L111+DB!L112 -> 0 | M188: =+DB!M107+DB!M108+DB!M109+DB!M110+DB!M111+DB!M112 -> 0 | N188: =+DB!N107+DB!N108+DB!N109+DB!N110+DB!N111+DB!N112 -> 0 | O188: =+DB!O107+DB!O108+DB!O109+DB!O110+DB!O111+DB!O112 -> 0 | P188: =+DB!P107+DB!P108+DB!P109+DB!P110+DB!P111+DB!P112 -> 0 | Q188: =+DB!Q107+DB!Q108+DB!Q109+DB!Q110+DB!Q111+DB!Q112 -> 0 | R188: =+DB!R107+DB!R108+DB!R109+DB!R110+DB!R111+DB!R112 -> 0 | S188: =+DB!S107+DB!S108+DB!S109+DB!S110+DB!S111+DB!S112 -> 0 | T188: =+DB!T107+DB!T108+DB!T109+DB!T110+DB!T111+DB!T112 -> 0 | U188: =+DB!U107+DB!U108+DB!U109+DB!U110+DB!U111+DB!U112 -> 0 | V188: =+DB!V107+DB!V108+DB!V109+DB!V110+DB!V111+DB!V112 -> 0 | W188: =+DB!W107+DB!W108+DB!W109+DB!W110+DB!W111+DB!W112 -> 0 | X188: =+DB!X107+DB!X108+DB!X109+DB!X110+DB!X111+DB!X112 -> 0 | Y188: =+DB!Y107+DB!Y108+DB!Y109+DB!Y110+DB!Y111+DB!Y112 -> 0 | Z188: =+DB!Z107+DB!Z108+DB!Z109+DB!Z110+DB!Z111+DB!Z112 -> 0 | AA188: =+DB!AA107+DB!AA108+DB!AA109+DB!AA110+DB!AA111+DB!AA112 -> 0
G189: Plastics | H189: =+DB!H100+DB!H101+DB!H102+DB!H103+DB!H104 -> 0 | I189: =+DB!I100+DB!I101+DB!I102+DB!I103+DB!I104 -> 0 | J189: =+DB!J100+DB!J101+DB!J102+DB!J103+DB!J104 -> 0 | K189: =+DB!K100+DB!K101+DB!K102+DB!K103+DB!K104 -> 0 | L189: =+DB!L100+DB!L101+DB!L102+DB!L103+DB!L104 -> 0 | M189: =+DB!M100+DB!M101+DB!M102+DB!M103+DB!M104 -> 0 | N189: =+DB!N100+DB!N101+DB!N102+DB!N103+DB!N104 -> 0 | O189: =+DB!O100+DB!O101+DB!O102+DB!O103+DB!O104 -> 0 | P189: =+DB!P100+DB!P101+DB!P102+DB!P103+DB!P104 -> 0 | Q189: =+DB!Q100+DB!Q101+DB!Q102+DB!Q103+DB!Q104 -> 0 | R189: =+DB!R100+DB!R101+DB!R102+DB!R103+DB!R104 -> 0 | S189: =+DB!S100+DB!S101+DB!S102+DB!S103+DB!S104 -> 0 | T189: =+DB!T100+DB!T101+DB!T102+DB!T103+DB!T104 -> 0 | U189: =+DB!U100+DB!U101+DB!U102+DB!U103+DB!U104 -> 0 | V189: =+DB!V100+DB!V101+DB!V102+DB!V103+DB!V104 -> 0 | W189: =+DB!W100+DB!W101+DB!W102+DB!W103+DB!W104 -> 0 | X189: =+DB!X100+DB!X101+DB!X102+DB!X103+DB!X104 -> 0 | Y189: =+DB!Y100+DB!Y101+DB!Y102+DB!Y103+DB!Y104 -> 0 | Z189: =+DB!Z100+DB!Z101+DB!Z102+DB!Z103+DB!Z104 -> 0 | AA189: =+DB!AA100+DB!AA101+DB!AA102+DB!AA103+DB!AA104 -> 0
G190: Energy | H190: =+DB!H95+DB!H94 -> 0 | I190: =+DB!I95+DB!I94 -> 0 | J190: =+DB!J95+DB!J94 -> 0 | K190: =+DB!K95+DB!K94 -> 0 | L190: =+DB!L95+DB!L94 -> 0 | M190: =+DB!M95+DB!M94 -> 0 | N190: =+DB!N95+DB!N94 -> 0 | O190: =+DB!O95+DB!O94 -> 0 | P190: =+DB!P95+DB!P94 -> 0 | Q190: =+DB!Q95+DB!Q94 -> 0 | R190: =+DB!R95+DB!R94 -> 0 | S190: =+DB!S95+DB!S94 -> 0 | T190: =+DB!T95+DB!T94 -> 0 | U190: =+DB!U95+DB!U94 -> 0 | V190: =+DB!V95+DB!V94 -> 0 | W190: =+DB!W95+DB!W94 -> 0 | X190: =+DB!X95+DB!X94 -> 0 | Y190: =+DB!Y95+DB!Y94 -> 0 | Z190: =+DB!Z95+DB!Z94 -> 0 | AA190: =+DB!AA95+DB!AA94 -> 0
G191: Insulation | H191: =+DB!H97 -> 0 | I191: =+DB!I97 -> 0 | J191: =+DB!J97 -> 0 | K191: =+DB!K97 -> 0 | L191: =+DB!L97 -> 0 | M191: =+DB!M97 -> 0 | N191: =+DB!N97 -> 0 | O191: =+DB!O97 -> 0 | P191: =+DB!P97 -> 0 | Q191: =+DB!Q97 -> 0 | R191: =+DB!R97 -> 0 | S191: =+DB!S97 -> 0 | T191: =+DB!T97 -> 0 | U191: =+DB!U97 -> 0 | V191: =+DB!V97 -> 0 | W191: =+DB!W97 -> 0 | X191: =+DB!X97 -> 0 | Y191: =+DB!Y97 -> 0 | Z191: =+DB!Z97 -> 0 | AA191: =+DB!AA97 -> 0
C197: DATABASE
H201: =+$G61*H203 -> 0 | I201: =+$G61*I203 -> 0 | J201: 0 | K201: 0 | L201: 0 | M201: 0 | N201: 0 | O201: 0 | P201: 0 | Q201: 0 | R201: 0 | S201: 0 | T201: 0 | U201: 0 | V201: 0 | W201: 0 | X201: 0 | Y201: 0 | Z201: 0 | AA201: 0
H202: GWP | I202: ODP | J202: IRP | K202: EOFP | L202: PMFP | M202: HOFP | N202: TAP | O202: FEP | P202: TETP | Q202: FETP | R202: METP | S202: HTPc | T202: HTPnc | U202: LOP | V202: SOP | W202: FFP | X202: WCP | Y202: HH | Z202: EQ | AA202: RES
G203: Lanthanum oxide, at plant/CN U | H203: 9.5470865 | I203: 4.7264256e-06 | J203: 1.3891136 | K203: 0.015952321 | L203: 0.012359081 | M203: 0.016524083 | N203: 0.037261199 | O203: 0.003648349 | P203: 0.0062745834 | Q203: 0.2900482 | R203: 0.42314212 | S203: 0.32081838 | T203: 338.29671 | U203: 0.16797734 | V203: 0.055602211 | W203: 3.4485704 | X203: 19.884074 | Y203: 6.4105214e-05 | Z203: 3.0951061e-07 | AA203: 1.3152107
G204: Manganese, at regional storage/RER U | H204: 2.6363449 | I204: 9.9989871e-07 | J204: 1.5365317 | K204: 0.013711378 | L204: 0.013954587 | M204: 0.014014658 | N204: 0.014810062 | O204: 0.0021822796 | P204: 0.0010083371 | Q204: 0.065135298 | R204: 0.090985052 | S204: 0.14450352 | T204: 64.889615 | U204: 0.090679287 | V204: 0.19998032 | W204: 0.67938152 | X204: 101.34299 | Y204: 0.00023713832 | Z204: 1.3827647e-06 | AA204: 0.18744674
G205: Chromium, at regional storage/RER U | H205: 27.202205 | I205: 8.5752576e-06 | J205: 9.6461022 | K205: 0.042631742 | L205: 0.031315388 | M205: 0.043361772 | N205: 0.083038707 | O205: 0.014467171 | P205: 0.012355842 | Q205: 0.96224332 | R205: 1.4153367 | S205: 39.544219 | T205: 478.35113 | U205: 0.18639512 | V205: 0.27072971 | W205: 7.5823251 | X205: 1291.6427 | Y205: 0.0030469492 | Z205: 1.7549284e-05 | AA205: 2.0939189
G206: Zirconium oxide, at plant/AU U | H206: 4.0465408 | I206: 1.4006938e-06 | J206: 1.6637935 | K206: 0.011365236 | L206: 0.0049496773 | M206: 0.011526179 | N206: 0.016494181 | O206: 0.0027207209 | P206: 0.0030326565 | Q206: 0.11200617 | R206: 0.16222168 | S206: 0.20194568 | T206: 121.33477 | U206: 0.12969782 | V206: 0.019236863 | W206: 1.0890139 | X206: 18.983652 | Y206: 5.0509041e-05 | Z206: 2.7567229e-07 | AA206: 0.26989986
G207: YSZ | H207: 8.338107912 | I207: 3.115741064e-06 | J207: 2.3556166 | K207: 0.01733895289 | L207: 0.009158119804 | M207: 0.01769218689 | N207: 0.03239721739 | O207: 0.004038995729 | P207: 0.006320654409 | Q207: 0.2009517539 | R207: 0.2971444476 | S207: 0.3209217497 | T207: 224.415356 | U207: 0.1714801933 | V207: 0.03936056434 | W207: 2.702454383 | X207: 28.24409007 | Y207: =+H207*GWP_HH+I207*ODP_HH+J207*IRP_HH+K207*HOFP_HH+L207*PMPF_HH+S207*HTPC_HH+T207*HTPNC_HH+X207*WCP_HH -> 7.879537942e-05 | Z207: =+H207*GWP_FE+H207*GWP_TE+M207*EOFP_TE+N207*TAP_TE+O207*FEP_FE+P207*TETP_TE+Q207*FETP_FE+R207*METP_ME+U207*LOP_TE+X207*WCP_FE+X207*WCP_TE -> 4.183092676e-07 | AA207: =+V207*SOP+W207 -> 2.711549994
G208: LSM | H208: 17.84397238 | I208: 8.077270019e-06 | J208: 6.540585827 | K208: 0.03050773425 | L208: 0.02658146897 | M208: 0.1647864435 | N208: 0.07129536957 | O208: 0.01306292064 | P208: 0.02308985074 | Q208: 0.5528181831 | R208: 0.6672399621 | S208: 0.7617924018 | T208: 483.0671541 | U208: 0.2416903903 | V208: 0.06909446803 | W208: 4.854879134 | X208: 61.50875315 | Y208: =+H208*GWP_HH+I208*ODP_HH+J208*IRP_HH+K208*HOFP_HH+L208*PMPF_HH+S208*HTPC_HH+T208*HTPNC_HH+X208*WCP_HH -> 0.0001756575757 | Z208: =+H208*GWP_FE+H208*GWP_TE+M208*EOFP_TE+N208*TAP_TE+O208*FEP_FE+P208*TETP_TE+Q208*FETP_FE+R208*METP_ME+U208*LOP_TE+X208*WCP_FE+X208*WCP_TE -> 9.285586683e-07 | AA208: =+V208*SOP+W208 -> 4.870845786
G209: Nickel, 99.5%, at plant/GLO U | H209: 11.002558 | I209: 8.0395415e-06 | J209: 2.3323551 | K209: 0.067885995 | L209: 0.42030581 | M209: 0.069182335 | N209: 1.4229883 | O209: 0.039815127 | P209: 0.18228072 | Q209: 7.1248229 | R209: 10.232113 | S209: 1.8906676 | T209: 8091.904 | U209: 0.29978904 | V209: 3.6722899 | W209: 2.6371442 | X209: 428.33816 | Y209: 0.0012850473 | Z209: 6.1669655e-06 | AA209: 1.7288191
G210: Ethanol from ethylene, at plant/RER U | H210: 1.3260169 | I210: 9.7907342e-08 | J210: 0.043950983 | K210: 0.0027040412 | L210: 0.00073839762 | M210: 0.0031433055 | N210: 0.0028660984 | O210: 0.00046430379 | P210: 0.00040982292 | Q210: 0.0096085862 | R210: 0.014412091 | S210: 0.023407729 | T210: 10.790317 | U210: 0.0045872916 | V210: 0.0028455292 | W210: 1.0065743 | X210: 0.88220638 | Y210: 3.8048574e-06 | Z210: 1.6991426e-08 | AA210: 0.4125682
G211: Vinyl acetate, at plant/RER U | H211: 2.057089866 | I211: 2.311298853e-07 | J211: 0.00682590325 | K211: 0.0009395426386 | L211: 0.0003310721224 | M211: 0.7839412237 | N211: 0.008032148375 | O211: 0.002296860038 | P211: 0.0003305845507 | Q211: 0.01863650478 | R211: 0.01873205564 | S211: 0.6508810899 | T211: 0.03457883556 | U211: 0.009296567686 | V211: 5.09658088e-05 | W211: 0.1400111836 | X211: 0.134898 | Y211: =+H211*GWP_HH+I211*ODP_HH+J211*IRP_HH+K211*HOFP_HH+L211*PMPF_HH+S211*HTPC_HH+T211*HTPNC_HH+X211*WCP_HH -> 4.578888222e-06 | Z211: =+H211*GWP_FE+H211*GWP_TE+M211*EOFP_TE+N211*TAP_TE+O211*FEP_FE+P211*TETP_TE+Q211*FETP_FE+R211*METP_ME+U211*LOP_TE+X211*WCP_FE+X211*WCP_TE -> 1.119295369e-07 | AA211: =+V211*SOP+W211 -> 0.140022961
G212: Diethylene glycol, at plant/RER U | H212: 1.1219837 | I212: 1.5645189e-07 | J212: 0.2523694 | K212: 0.0019436178 | L212: 0.00081172661 | M212: 0.0020901494 | N212: 0.002861715 | O212: 0.00042041624 | P212: 0.00043601913 | Q212: 0.022162149 | R212: 0.03167649 | S212: 0.037945635 | T212: 24.504142 | U212: 0.0080156534 | V212: 0.0049289323 | W212: 0.68470512 | X212: 3.032723 | Y212: 8.5762578e-06 | Z212: 4.5331811e-08 | AA212: 0.26429266
G213: Phthalic anhydride, at plant/RER U | H213: 2.6903864 | I213: 2.8395695e-07 | J213: 0.22908532 | K213: 0.0055716688 | L213: 0.002734492 | M213: 0.0063163663 | N213: 0.0092022285 | O213: 0.00045936009 | P213: 0.0013456214 | Q213: 0.023470201 | R213: 0.035743148 | S213: 0.06134075 | T213: 25.515001 | U213: 0.0099017087 | V213: 0.004515255 | W213: 1.6108116 | X213: 2.8046272 | Y213: 1.0820086e-05 | Z213: 4.8625913e-08 | AA213: 0.62344845
G214: 1-butanol, propylene hydroformylation, at plant/RER U | H214: 2.607071 | I214: 2.449251111e-07 | J214: 0.006083912333 | K214: 0.0002608384333 | L214: 0.0001843312111 | M214: 0.2720021778 | N214: 0.008498741556 | O214: 0.002018367444 | P214: 0.0001471853444 | Q214: 0.006485883778 | R214: 0.007707437889 | S214: 0.1526895778 | T214: 0.01717131444 | U214: 0.004873314556 | V214: 2.375498889e-05 | W214: 0.04024153111 | X214: 0.06584712 | Y214: 2.0370493e-05 | Z214: 1.0097039e-07 | AA214: 0.79039753
G215: Tetrachloroethylene, at plant/WEU U | H215: 4.0489754 | I215: 0.00010548254 | J215: 0.0012888359 | K215: 0.0092230637 | L215: 0.0037803959 | M215: 0.0094696722 | N215: 0.012587661 | O215: 4.239037e-05 | P215: 0.00017106463 | Q215: 0.0083568645 | R215: 0.011772963 | S215: 0.14451947 | T215: 8.7563572 | U215: 0.00021326005 | V215: 0.0002183282 | W215: 0.59411168 | X215: 0.13902753 | Y215: 7.046294e-06 | Z215: 1.7164719e-08 | AA215: 0.19876418
G216: Trichloroethylene, at plant/WEU U | H216: 0.57368956 | I216: 6.1242089e-05 | J216: 0.001844357 | K216: 0.01288517 | L216: 0.0083663131 | M216: 0.013409985 | N216: 0.028347334 | O216: 7.8009245e-05 | P216: 0.00018953399 | Q216: 0.011917369 | R216: 0.016883598 | S216: 0.25680127 | T216: 11.951076 | U216: 0.00027893738 | V216: 0.00054701816 | W216: 0.9369359 | X216: 0.080798505 | Y216: 6.9406927e-06 | Z216: 1.0510463e-08 | AA216: 0.3332536
G217: Isobutanol, at plant/RER U | H217: 2.738254 | I217: 4.9128117e-07 | J217: 0.13632224 | K217: 0.0042885358 | L217: 0.0014222963 | M217: 0.0048632217 | N217: 0.0054067421 | O217: 0.00026047983 | P217: 0.0015242169 | Q217: 0.01768254 | R217: 0.029319608 | S217: 0.041642987 | T217: 20.592935 | U217: 0.008576041 | V217: 0.0046738656 | W217: 1.7004672 | X217: 2.2817919 | Y217: 8.7799204e-06 | Z217: 4.0580863e-08 | AA217: 0.66724286
G218: Methyl ethyl ketone (solvent) | H218: 2.0702538 | I218: 5.5333443e-06 | J218: 0.15134837 | K218: 0.0041707592 | L218: 0.0019612679 | M218: 0.0043896513 | N218: 0.0088742431 | O218: 0.00052532781 | P218: 0.0023699972 | Q218: 0.034316792 | R218: 0.051824028 | S218: 0.056419078 | T218: 50.101961 | U218: 0.02242764 | V218: 0.0078047806 | W218: 1.1116467 | X218: 3.8831723 | Y218: =+H218*GWP_HH+I218*ODP_HH+J218*IRP_HH+K218*HOFP_HH+L218*PMPF_HH+S218*HTPC_HH+T218*HTPNC_HH+X218*WCP_HH -> 1.230398498e-05 | Z218: =+H218*GWP_FE+H218*GWP_TE+M218*EOFP_TE+N218*TAP_TE+O218*FEP_FE+P218*TETP_TE+Q218*FETP_FE+R218*METP_ME+U218*LOP_TE+X218*WCP_FE+X218*WCP_TE -> 6.134637747e-08 | AA218: =+V218*SOP+W218 -> 1.113450263
G219: Modified starch (binder) | H219: 2.0702538 | I219: 5.5333443e-06 | J219: 0.15134837 | K219: 0.0041707592 | L219: 0.0019612679 | M219: 0.0043896513 | N219: 0.0088742431 | O219: 0.00052532781 | P219: 0.0023699972 | Q219: 0.034316792 | R219: 0.051824028 | S219: 0.056419078 | T219: 50.101961 | U219: 0.02242764 | V219: 0.0078047806 | W219: 1.1116467 | X219: 3.8831723 | Y219: 1.2301886e-05 | Z219: 6.1346631e-08 | AA219: 0.41282639
G220: Ethylene glycol, at plant/RER U | H220: 1.6513962 | I220: 2.3027404e-07 | J220: 0.37145028 | K220: 0.0028607219 | L220: 0.0011947426 | M220: 0.0030763954 | N220: 0.0042120254 | O220: 0.00061879059 | P220: 0.00064175695 | Q220: 0.032619453 | R220: 0.046623177 | S220: 0.055850418 | T220: 36.06653 | U220: 0.011797879 | V220: 0.0072546786 | W220: 1.0077865 | X220: 4.4637199 | Y220: 1.2622987e-05 | Z220: 6.6721731e-08 | AA220: 0.3890005
G221: Water, deionised, at plant/CH U | H221: 0.00081190049 | I221: 7.182209e-10 | J221: 0.00068354242 | K221: 1.6626685e-06 | L221: 9.2579841e-07 | M221: 1.6887761e-06 | N221: 3.0289229e-06 | O221: 6.6143479e-07 | P221: 5.772848e-07 | Q221: 2.8151221e-05 | R221: 4.0214147e-05 | S221: 6.7720675e-05 | T221: 0.03010325 | U221: 2.5653166e-05 | V221: 5.7823045e-06 | W221: 0.00020910813 | X221: 0.0094412664 | Y221: 2.2726941e-08 | Z221: 1.3128169e-10 | AA221: 4.6646896e-05
G222: Nitric acid, 50% in H2O, at plant/RER U | H222: 3.17377823 | I222: 1.03573368e-07 | J222: 0.01079150758 | K222: 0.0001386065772 | L222: 0.0006326030758 | M222: 0.2402183287 | N222: 0.006022538062 | O222: 0.002607292978 | P222: 9.98177177e-05 | Q222: 0.004488900843 | R222: 0.005625219522 | S222: 0.05157361798 | T222: 0.01553183006 | U222: 0.003310252107 | V222: 1.871794944e-05 | W222: 0.006535355899 | X222: 0.07502690028 | Y222: =+H222*GWP_HH+I222*ODP_HH+J222*IRP_HH+K222*HOFP_HH+L222*PMPF_HH+S222*HTPC_HH+T222*HTPNC_HH+X222*WCP_HH -> 3.681333807e-06 | Z222: =+H222*GWP_FE+H222*GWP_TE+M222*EOFP_TE+N222*TAP_TE+O222*FEP_FE+P222*TETP_TE+Q222*FETP_FE+R222*METP_ME+U222*LOP_TE+X222*WCP_FE+X222*WCP_TE -> 4.379442664e-08 | AA222: =+V222*SOP+W222 -> 0.006539681324
G223: Chlorine, liquid, production mix, at plant/RER U | H223: 1.057015718 | I223: 1.707564471e-06 | J223: 0.004653562471 | K223: 0.0010381018 | L223: 0.0003807896941 | M223: 1.094316976 | N223: 0.002412024941 | O223: 0.001516470235 | P223: 0.0001080442588 | Q223: 0.01827292941 | R223: 0.01843658353 | S223: 0.7622818588 | T223: 0.02834606353 | U223: 0.005848181882 | V223: 3.897412941e-05 | W223: 0.1147004835 | X223: 0.08475143059 | Y223: 3.941430697e-06 | Z223: 1.467800725e-07 | AA223: 0.1147094898
G224: Petroleum coke, at refinery/RER U | H224: 0.5201488643 | I224: 5.218728929e-07 | J224: 0.005644425214 | K224: 0.00010086235 | L224: 0.0001083609786 | M224: 0.1063910571 | N224: 0.003800680071 | O224: 0.001557923286 | P224: 5.943281357e-05 | Q224: 0.003225870357 | R224: 0.0039072835 | S224: 0.0728684 | T224: 0.001706608643 | U224: 0.005407877143 | V224: 7.934465e-06 | W224: 0.01293115857 | X224: 0.01292760714 | Y224: =+H224*GWP_HH+I224*ODP_HH+J224*IRP_HH+K224*HOFP_HH+L224*PMPF_HH+S224*HTPC_HH+T224*HTPNC_HH+X224*WCP_HH -> 8.219078032e-07 | Z224: =+H224*GWP_FE+H224*GWP_TE+M224*EOFP_TE+N224*TAP_TE+O224*FEP_FE+P224*TETP_TE+Q224*FETP_FE+R224*METP_ME+U224*LOP_TE+X224*WCP_FE+X224*WCP_TE -> 1.716587817e-08 | AA224: =+V224*SOP+W224 -> 0.0129329921
G225: Urea, as N, at regional storehouse/RER U | H225: 3.303650571 | I225: 5.047672e-07 | J225: 0.01481376486 | K225: 0.0005731150857 | L225: 0.0009889682 | M225: 0.7899667143 | N225: 0.005802789143 | O225: 0.004865699429 | P225: 0.0002883016 | Q225: 0.01554600057 | R225: 0.01898257857 | S225: 0.2941939714 | T225: 0.04411534286 | U225: 0.01100115857 | V225: 5.748616e-05 | W225: 0.02081731657 | X225: 0.2124449457 | Y225: 1.4506725e-05 | Z225: 6.8804457e-08 | AA225: 0.5018384
... 271 more rows

Sheet Abbr&References
B2: Information about FC products
B3: SOFC | C3: http://convion.fi/products/
B4: SOFC | C4: https://www.bloomenergy.com/resources
B5: MCFC | C5: http://www.all-energy.co.uk/__novadocuments/80807?v=635633928775100000
B6: MCFC | C6: https://www.energy-saxony.net/fileadmin/Inhalte/Downloads/Pressemitteilungen/Pressefaecher/FCES/alt/FuelCell_product_sheet_DFC250EU_en.pdf
B7: SOEC | C7: https://www.sunfire.de/en/products-and-technology/sunfire-hylink
B11: References
A12: 1 | B12: Lee, Y. D., Ahn, K. Y., Morosuk, T., & Tsatsaronis, G. (2015). Environmental impact assessment of a solid-oxide fuel-cell-based combined-heat-and-power-generation system. Energy, 79, 455-466.
A13: =+A12+1 -> 2 | B13: Lozanovski, A., Schuller, O., & Faltenbacher, M. (2011). Guidance document for performing LCA on hydrogen production systems. European Commission-Fuel Cells and Hydrogen Joint Undertaking.
A14: =+A13+1 -> 3 | B14: Masoni, P., & Zamagni, A. (2011). Guidance document for performing LCA on fuel cells. Deliverable D3.
A15: 4 | B15: Mehmeti, A., Angelis-Dimakis, A., Arampatzis, G., McPhail, S. J., & Ulgiati, S. (2018). Life Cycle Assessment and Water Footprint of Hydrogen Production Methods: From Conventional to Emerging Technologies. Environments, 5(2), 24.
A16: 5 | B16: Mehmeti, A., Boigues Muñoz, C., & McPhail, S. J. (2017). Emergy resource-based life cycle analysis of solid-oxide fuel-cell power. XI Convegno della Rete Italiana LCA: Resource Efficiency e Sustainable Development Goals: il ruolo del Life Cycle Thinking, 389-396.
A17: 6 | B17: Mehmeti, A., Pérez-Trujillo, J. P., Elizalde-Blancas, F., Angelis-Dimakis, A., & McPhail, S. J. (2018). Exergetic, environmental and economic sustainability assessment of stationary Molten Carbonate Fuel Cells. Energy Conversion and Management, 168, 276-287.
A18: 7 | B18: Primas, A. (2007). Life Cycle Inventories of new CHP systems. Swiss Centre for Life Cycle Inventories Technical Report ecoinvent report, (20).
A19: 8 | B19: Rillo, E., Gandiglio, M., Lanzini, A., Bobba, S., Santarelli, M., & Blengini, G. (2017). Life Cycle Assessment (LCA) of biogas-fed Solid Oxide Fuel Cell (SOFC) plant. Energy, 126, 585-602.
A20: 9 | B20: Strazza, C., Del Borghi, A., Costamagna, P., Traverso, A., & Santin, M. (2010). Comparative LCA of methanol-fuelled SOFCs as auxiliary power systems on-board ships. Applied Energy, 87(5), 1670-1678.
A21: 10 | B21: Zucaro, A., Fiorentino, G., Zamagni, A., Bargigli, S., Masoni, P., Moreno, A., & Ulgiati, S. (2013). How can life cycle assessment foster environmentally sound fuel cell production and use?. international journal of hydrogen energy, 38(1), 453-468.
A22: 11 | B22: Staffell, I., Ingram, A., & Kendall, K. (2012). Energy and carbon payback times for solid oxide fuel cell based domestic CHP. International journal of hydrogen energy, 37(3), 2509-2523.
B26: Abbreviations
B27: CH4 | C27: Methane
B28: CHP | C28: Combined heat and power
B29: CO | C29: Carbon monoxide
B30: CO2 | C30: Carbon Dioxide
B31: EOFP | C31: Photochemical oxidant formation: ecosystem quality
B32: EQ | C32: Ecosystem quality
B33: FC | C33: Fuel Cell
B34: FETP | C34: Freshwater ecotoxicity potential
B35: GWP | C35: Global warming potential
B36: H2 | C36: Hydrogen
B37: H2O | C37: Water
B38: HOFP | C38: Photochemical oxidant formation: human health
B39: hr | C39: hour
B40: HRSG | C40: Heat-recovery steam generator
B41: HTPc | C41: Human toxicity potential: cancer
B42: HTPnc | C42: Human toxicity potential: non-cancer
B43: ILCD | C43: International Reference Life Cycle Data System
B44: IRP | C44: Ionizing radiation
B45: ISO | C45: International Organization for Standardization
B46: kg | C46: kilogramm
B47: kWh | C47: kilo Watt per hour
B48: LCA | C48: Life Cycle Assessment
B49: LCI | C49: Life Cycle Inventory
B50: LCIA | C50: Life Cycle Impact Assessment
B51: LHV | C51: Lower Heating Value
B52: LOP | C52: Land use
B53: MCFC | C53: Molten Carbonate Fuel Cell
B54: METP | C54: Marine ecotoxicity potential
B55: MJ | C55: Megajoule
B56: N2 | C56: Nitrogen
B57: NG | C57: Natural Gas
B58: Nm³ | C58: Standard cubic metre
B59: NO2 | C59: Nitrogen Oxides
B60: O2 | C60: Oxygen
B61: ODP | C61: Stratospheric ozone depletion
B62: PM2.5 | C62: Particulate matter 2.5
B63: PMPF | C63: Fine particulate matter formation
B64: RA | C64: Resource availability
B65: SO2 | C65: Sulphur Dioxide
B66: SOFC | C66: Solid Oxide Fuel Cell
B67: SOP | C67: Mineral resource scarcity
B68: TAP | C68: Terrestrial acidification potential
B69: TETP | C69: Terrestrial ecotoxicity potential
B70: WCP | C70: Water consumption potential
B71: yr | C71: year
